Workbook

Sheet ZAČIATOK
B1: INFORMÁCIE O TEJTO ŠABLÓNE
B2: Pomocou tohto zošita s rozpočtom výdavkov firmy môžete sledovať plánované a skutočné výdavky a odchýlky.
B3: Doplňte názov spoločnosti a pridajte logo.
B4: Zadajte údaje do tabuliek v hárku Plánované výdavky hárka a hárku Skutočné výdavky.
B5: Tabuľky v hárku Odchýlky vo výdavkoch a grafy v hárku Analýza výdavkov sa aktualizujú automaticky.
B6: Poznámka:
B7: V každom hárku sú v stĺpci A uvedené ďalšie pokyny. Tento text je zámerne skrytý. Ak chcete text odstrániť, vyberte stĺpec A a potom stlačte kláves DELETE. Ak chcete text zobraziť, vyberte stĺpec A a potom zmeňte farbu písma.
B8: Ak chcete získať ďalšie informácie o tabuľkách, v tabuľke stlačte kláves SHIFT a potom kláves F10, vyberte možnosť TABUĽKA a potom vyberte položku ALTERNATÍVNY TEXT.

Sheet PLÁNOVANÉ VÝDAVKY
A1: V tomto hárku zadajte do príslušných tabuliek plánované náklady na zamestnancov, náklady na kanceláriu, náklady na marketing a náklady na školenie a cestovné. Súčty sa vypočítajú automaticky. V bunkách v tomto stĺpci sú užitočné pokyny na používanie tohto hárka. Začnite stlačením šípky nadol.
A2: Do bunky napravo zadajte názov spoločnosti a do bunky N2 pridajte logo. V bunke K2 je uvedený názov hárka. | B2: Názov spoločnosti | K2: Podrobné odhady výdavkov | N2: V tejto bunke je zástupné logo.
A3: V bunke K3 je uvedený tip. | K3: Tieňované bunky sú výpočty.
A4: V bunke napravo je uvedené označenie Plánované výdavky, v bunkách C4 až N4 sú mesiace, v bunke O4 je označenie Rok a bunka R4 obsahuje pokyny na používanie tejto šablóny. | B4: PLÁNOVANÉ VÝDAVKY | C4: JAN | D4: FEB | E4: MAR | F4: APR | G4: MÁJ | H4: JÚN | I4: JÚL | J4: AUG | K4: SEP | L4: OKT | M4: NOV | N4: DEC | O4: ROK | R4: Tip: AKO POUŽÍVAŤ TÚTO ŠABLÓNU Zadajte údaje do bielych buniek v hárkoch PLÁNOVANÉ VÝDAVKY a SKUTOČNÉ VÝDAVKY a ODCHÝLKY VO VÝDAVKOCH a ANALÝZA VÝDAVKOV sa vypočítajú automaticky. Ak do niektorého hárka pridáte riadok, treba príslušne prispôsobiť aj ostatné hárky.
A5: Do tabuľky plánovaných Náklady na zamestnancov začínajúcej v bunke napravo planovane naklady na zamestnancov. Ďalší pokyn je v bunke A10. | B5: Náklady na zamestnancov | C5: Jan | D5: Feb | E5: Mar | F5: Apr | G5: Máj | H5: Jún | I5: Júl | J5: Aug | K5: Sep | L5: Okt | M5: Nov | N5: Dec | O5: ROK
B6: Mzdy | C6: 85,000.00 EUR | D6: 85,000.00 EUR | E6: 85,000.00 EUR | F6: 87,500.00 EUR | G6: 87,500.00 EUR | H6: 87,500.00 EUR | I6: 87,500.00 EUR | J6: 92,400.00 EUR | K6: 92,400.00 EUR | L6: 92,400.00 EUR | M6: 92,400.00 EUR | N6: 92,400.00 EUR | O6: =SUM(C6:N6) -> 1,067,000.00 EUR
B7: Benefity | C7: =C6*0.27 -> 22,950.00 EUR | D7: 22,950.00 EUR | E7: 22,950.00 EUR | F7: 23,625.00 EUR | G7: 23,625.00 EUR | H7: 23,625.00 EUR | I7: 23,625.00 EUR | J7: 24,948.00 EUR | K7: 24,948.00 EUR | L7: 24,948.00 EUR | M7: 24,948.00 EUR | N7: 24,948.00 EUR | O7: =SUM(C7:N7) -> 288,090.00 EUR
B8: Medzisúčet | C8: =SUBTOTAL(109,Planovane_naklady_na_zamestnancov[Jan]) -> 107,950.00 EUR | D8: =SUBTOTAL(109,Planovane_naklady_na_zamestnancov[Feb]) -> 107,950.00 EUR | E8: =SUBTOTAL(109,Planovane_naklady_na_zamestnancov[Mar]) -> 107,950.00 EUR | F8: =SUBTOTAL(109,Planovane_naklady_na_zamestnancov[Apr]) -> 111,125.00 EUR | G8: =SUBTOTAL(109,Planovane_naklady_na_zamestnancov[Máj]) -> 111,125.00 EUR | H8: =SUBTOTAL(109,Planovane_naklady_na_zamestnancov[Jún]) -> 111,125.00 EUR | I8: =SUBTOTAL(109,Planovane_naklady_na_zamestnancov[Júl]) -> 111,125.00 EUR | J8: =SUBTOTAL(109,Planovane_naklady_na_zamestnancov[Aug]) -> 117,348.00 EUR | K8: =SUBTOTAL(109,Planovane_naklady_na_zamestnancov[Sep]) -> 117,348.00 EUR | L8: =SUBTOTAL(109,Planovane_naklady_na_zamestnancov[Okt]) -> 117,348.00 EUR | M8: =SUBTOTAL(109,Planovane_naklady_na_zamestnancov[Nov]) -> 117,348.00 EUR | N8: =SUBTOTAL(109,Planovane_naklady_na_zamestnancov[Dec]) -> 117,348.00 EUR | O8: =SUBTOTAL(109,Planovane_naklady_na_zamestnancov[ROK]) -> 1,355,090.00 EUR
A10: Do tabuľky plánovaných Náklady na kanceláriu začínajúcej v bunke napravo planovane naklady na kancelariu. Ďalší pokyn je v bunke A21. | B10: Náklady na kanceláriu | C10: Jan | D10: Feb | E10: Mar | F10: Apr | G10: Máj | H10: Jún | I10: Júl | J10: Aug | K10: Sep | L10: Okt | M10: Nov | N10: Dec | O10: ROK
B11: Prenájom kancelárie | C11: 9,800.00 EUR | D11: 9,800.00 EUR | E11: 9,800.00 EUR | F11: 9,800.00 EUR | G11: 9,800.00 EUR | H11: 9,800.00 EUR | I11: 9,800.00 EUR | J11: 9,800.00 EUR | K11: 9,800.00 EUR | L11: 9,800.00 EUR | M11: 9,800.00 EUR | N11: 9,800.00 EUR | O11: =SUM(C11:N11) -> 117,600.00 EUR
B12: Plyn | D12: 400.00 EUR | E12: 400.00 EUR | F12: 100.00 EUR | G12: 100.00 EUR | H12: 100.00 EUR | I12: 100.00 EUR | J12: 100.00 EUR | K12: 100.00 EUR | L12: 100.00 EUR | M12: 400.00 EUR | N12: 400.00 EUR | O12: 2,300.00 EUR
B13: Elektrina | C13: 300.00 EUR | D13: 300.00 EUR | E13: 300.00 EUR | F13: 300.00 EUR | G13: 300.00 EUR | H13: 300.00 EUR | I13: 300.00 EUR | J13: 300.00 EUR | K13: 300.00 EUR | L13: 300.00 EUR | M13: 300.00 EUR | N13: 300.00 EUR | O13: 3,600.00 EUR
B14: Voda | C14: 40.00 EUR | D14: 40.00 EUR | E14: 40.00 EUR | F14: 40.00 EUR | G14: 40.00 EUR | H14: 40.00 EUR | I14: 40.00 EUR | J14: 40.00 EUR | K14: 40.00 EUR | L14: 40.00 EUR | M14: 40.00 EUR | N14: 40.00 EUR | O14: 480.00 EUR
B15: Telefón | C15: 250.00 EUR | D15: 250.00 EUR | E15: 250.00 EUR | F15: 250.00 EUR | G15: 250.00 EUR | H15: 250.00 EUR | I15: 250.00 EUR | J15: 250.00 EUR | K15: 250.00 EUR | L15: 250.00 EUR | M15: 250.00 EUR | N15: 250.00 EUR | O15: 3,000.00 EUR
B16: Prístup na Internet | C16: 180.00 EUR | D16: 180.00 EUR | E16: 180.00 EUR | F16: 180.00 EUR | G16: 180.00 EUR | H16: 180.00 EUR | I16: 180.00 EUR | J16: 180.00 EUR | K16: 180.00 EUR | L16: 180.00 EUR | M16: 180.00 EUR | N16: 180.00 EUR | O16: 2,160.00 EUR
B17: Kancelárske potreby | C17: 200.00 EUR | D17: 200.00 EUR | E17: 200.00 EUR | F17: 200.00 EUR | G17: 200.00 EUR | H17: 200.00 EUR | I17: 200.00 EUR | J17: 200.00 EUR | K17: 200.00 EUR | L17: 200.00 EUR | M17: 200.00 EUR | N17: 200.00 EUR | O17: 2,400.00 EUR
B18: Zabezpečenie | C18: 600.00 EUR | D18: 600.00 EUR | E18: 600.00 EUR | F18: 600.00 EUR | G18: 600.00 EUR | H18: 600.00 EUR | I18: 600.00 EUR | J18: 600.00 EUR | K18: 600.00 EUR | L18: 600.00 EUR | M18: 600.00 EUR | N18: 600.00 EUR | O18: 7,200.00 EUR
B19: Medzisúčet | C19: =SUBTOTAL(109,Planovane_naklady_na_kancelariu[Jan]) -> 11,370.00 EUR | D19: =SUBTOTAL(109,Planovane_naklady_na_kancelariu[Feb]) -> 11,770.00 EUR | E19: =SUBTOTAL(109,Planovane_naklady_na_kancelariu[Mar]) -> 11,770.00 EUR | F19: =SUBTOTAL(109,Planovane_naklady_na_kancelariu[Apr]) -> 11,470.00 EUR | G19: =SUBTOTAL(109,Planovane_naklady_na_kancelariu[Máj]) -> 11,470.00 EUR | H19: =SUBTOTAL(109,Planovane_naklady_na_kancelariu[Jún]) -> 11,470.00 EUR | I19: =SUBTOTAL(109,Planovane_naklady_na_kancelariu[Júl]) -> 11,470.00 EUR | J19: =SUBTOTAL(109,Planovane_naklady_na_kancelariu[Aug]) -> 11,470.00 EUR | K19: =SUBTOTAL(109,Planovane_naklady_na_kancelariu[Sep]) -> 11,470.00 EUR | L19: =SUBTOTAL(109,Planovane_naklady_na_kancelariu[Okt]) -> 11,470.00 EUR | M19: =SUBTOTAL(109,Planovane_naklady_na_kancelariu[Nov]) -> 11,770.00 EUR | N19: =SUBTOTAL(109,Planovane_naklady_na_kancelariu[Dec]) -> 11,770.00 EUR | O19: =SUBTOTAL(109,Planovane_naklady_na_kancelariu[ROK]) -> 138,740.00 EUR
A21: Do tabuľky plánovaných Náklady na marketing začínajúcej v bunke napravo planovane naklady na marketing. Ďalší pokyn je v bunke A30. | B21: Náklady na marketing | C21: Jan | D21: Feb | E21: Mar | F21: Apr | G21: Máj | H21: Jún | I21: Júl | J21: Aug | K21: Sep | L21: Okt | M21: Nov | N21: Dec | O21: ROK
B22: Hosťovanie webovej lokality | C22: 500.00 EUR | D22: 500.00 EUR | E22: 500.00 EUR | F22: 500.00 EUR | G22: 500.00 EUR | H22: 500.00 EUR | I22: 500.00 EUR | J22: 500.00 EUR | K22: 500.00 EUR | L22: 500.00 EUR | M22: 500.00 EUR | N22: 500.00 EUR | O22: =SUM(C22:N22) -> 6,000.00 EUR
B23: Aktualizácie webovej lokality | C23: 200.00 EUR | D23: 200.00 EUR | E23: 200.00 EUR | F23: 200.00 EUR | G23: 200.00 EUR | H23: 1,000.00 EUR | I23: 200.00 EUR | J23: 200.00 EUR | K23: 200.00 EUR | L23: 200.00 EUR | M23: 200.00 EUR | N23: 1,000.00 EUR | O23: 4,000.00 EUR
B24: Príprava sprievodnej dokumentácie | C24: 5,000.00 EUR | D24: 0.00 EUR | E24: 0.00 EUR | F24: 5,000.00 EUR | G24: 0.00 EUR | H24: 0.00 EUR | I24: 5,000.00 EUR | J24: 0.00 EUR | K24: 0.00 EUR | L24: 5,000.00 EUR | M24: 0.00 EUR | N24: 0.00 EUR | O24: 20,000.00 EUR
B25: Tlač sprievodnej dokumentácie | C25: 200.00 EUR | D25: 200.00 EUR | E25: 200.00 EUR | F25: 200.00 EUR | G25: 200.00 EUR | H25: 200.00 EUR | I25: 200.00 EUR | J25: 200.00 EUR | K25: 200.00 EUR | L25: 200.00 EUR | M25: 200.00 EUR | N25: 200.00 EUR | O25: 2,400.00 EUR
B26: Marketingové podujatia | C26: 2,000.00 EUR | D26: 2,000.00 EUR | E26: 2,000.00 EUR | F26: 5,000.00 EUR | G26: 2,000.00 EUR | H26: 2,000.00 EUR | I26: 2,000.00 EUR | J26: 5,000.00 EUR | K26: 2,000.00 EUR | L26: 2,000.00 EUR | M26: 2,000.00 EUR | N26: 5,000.00 EUR | O26: 33,000.00 EUR
B27: Rôzne výdavky | C27: 200.00 EUR | D27: 200.00 EUR | E27: 200.00 EUR | F27: 200.00 EUR | G27: 200.00 EUR | H27: 200.00 EUR | I27: 200.00 EUR | J27: 200.00 EUR | K27: 200.00 EUR | L27: 200.00 EUR | M27: 200.00 EUR | N27: 200.00 EUR | O27: 2,400.00 EUR
B28: Medzisúčet | C28: =SUBTOTAL(109,Planovane_naklady_na_marketing[Jan]) -> 8,100.00 EUR | D28: =SUBTOTAL(109,Planovane_naklady_na_marketing[Feb]) -> 3,100.00 EUR | E28: =SUBTOTAL(109,Planovane_naklady_na_marketing[Mar]) -> 3,100.00 EUR | F28: =SUBTOTAL(109,Planovane_naklady_na_marketing[Apr]) -> 11,100.00 EUR | G28: =SUBTOTAL(109,Planovane_naklady_na_marketing[Máj]) -> 3,100.00 EUR | H28: =SUBTOTAL(109,Planovane_naklady_na_marketing[Jún]) -> 3,900.00 EUR | I28: =SUBTOTAL(109,Planovane_naklady_na_marketing[Júl]) -> 8,100.00 EUR | J28: =SUBTOTAL(109,Planovane_naklady_na_marketing[Aug]) -> 6,100.00 EUR | K28: =SUBTOTAL(109,Planovane_naklady_na_marketing[Sep]) -> 3,100.00 EUR | L28: =SUBTOTAL(109,Planovane_naklady_na_marketing[Okt]) -> 8,100.00 EUR | M28: =SUBTOTAL(109,Planovane_naklady_na_marketing[Nov]) -> 3,100.00 EUR | N28: =SUBTOTAL(109,Planovane_naklady_na_marketing[Dec]) -> 6,900.00 EUR | O28: =SUBTOTAL(109,Planovane_naklady_na_marketing[ROK]) -> 67,800.00 EUR
A30: Do tabuľky plánovaných nákladov na školenie/cestovné začínajúcej v bunke napravo planovane naklady na skolenie a cestovne. Ďalší pokyn je v bunke A35. | B30: Školenie/cestovné | C30: Jan | D30: Feb | E30: Mar | F30: Apr | G30: Máj | H30: Jún | I30: Júl | J30: Aug | K30: Sep | L30: Okt | M30: Nov | N30: Dec | O30: ROK
B31: Školiace kurzy | C31: 2,000.00 EUR | D31: 2,000.00 EUR | E31: 2,000.00 EUR | F31: 2,000.00 EUR | G31: 2,000.00 EUR | H31: 2,000.00 EUR | I31: 2,000.00 EUR | J31: 2,000.00 EUR | K31: 2,000.00 EUR | L31: 2,000.00 EUR | M31: 2,000.00 EUR | N31: 2,000.00 EUR | O31: =SUM(C31:N31) -> 24,000.00 EUR
B32: Cestovné náklady súvisiace so školením | C32: 2,000.00 EUR | D32: 2,000.00 EUR | E32: 2,000.00 EUR | F32: 2,000.00 EUR | G32: 2,000.00 EUR | H32: 2,000.00 EUR | I32: 2,000.00 EUR | J32: 2,000.00 EUR | K32: 2,000.00 EUR | L32: 2,000.00 EUR | M32: 2,000.00 EUR | N32: 2,000.00 EUR | O32: =SUM(C32:N32) -> 24,000.00 EUR
B33: Medzisúčet | C33: =SUBTOTAL(109,Planovane_naklady_na_skolenie_a_cestovne[Jan]) -> 4,000.00 EUR | D33: =SUBTOTAL(109,Planovane_naklady_na_skolenie_a_cestovne[Feb]) -> 4,000.00 EUR | E33: =SUBTOTAL(109,Planovane_naklady_na_skolenie_a_cestovne[Mar]) -> 4,000.00 EUR | F33: =SUBTOTAL(109,Planovane_naklady_na_skolenie_a_cestovne[Apr]) -> 4,000.00 EUR | G33: =SUBTOTAL(109,Planovane_naklady_na_skolenie_a_cestovne[Máj]) -> 4,000.00 EUR | H33: =SUBTOTAL(109,Planovane_naklady_na_skolenie_a_cestovne[Jún]) -> 4,000.00 EUR | I33: =SUBTOTAL(109,Planovane_naklady_na_skolenie_a_cestovne[Júl]) -> 4,000.00 EUR | J33: =SUBTOTAL(109,Planovane_naklady_na_skolenie_a_cestovne[Aug]) -> 4,000.00 EUR | K33: =SUBTOTAL(109,Planovane_naklady_na_skolenie_a_cestovne[Sep]) -> 4,000.00 EUR | L33: =SUBTOTAL(109,Planovane_naklady_na_skolenie_a_cestovne[Okt]) -> 4,000.00 EUR | M33: =SUBTOTAL(109,Planovane_naklady_na_skolenie_a_cestovne[Nov]) -> 4,000.00 EUR | N33: =SUBTOTAL(109,Planovane_naklady_na_skolenie_a_cestovne[Dec]) -> 4,000.00 EUR | O33: =SUBTOTAL(109,Planovane_naklady_na_skolenie_a_cestovne[ROK]) -> 48,000.00 EUR
A35: Súčty v tabuľke celkove planovane vydavky začínajúcej v bunke napravo sa vypočítajú automaticky. | B35: SÚČTY | C35: Jan | D35: Feb | E35: Mar | F35: Apr | G35: Máj | H35: Jún | I35: Júl | J35: Aug | K35: Sep | L35: Okt | M35: Nov | N35: Dec | O35: Rok
B36: Mesačné plánované výdavky | C36: =Planovane_naklady_na_skolenie_a_cestovne[[#Totals],[Jan]]+Planovane_naklady_na_marketing[[#Totals],[Jan]]+Planovane_naklady_na_kancelariu[[#Totals],[Jan]]+Planovane_naklady_na_zamestnancov[[#Totals],[Jan]] -> 131,420.00 EUR | D36: =Planovane_naklady_na_skolenie_a_cestovne[[#Totals],[Feb]]+Planovane_naklady_na_marketing[[#Totals],[Feb]]+Planovane_naklady_na_kancelariu[[#Totals],[Feb]]+Planovane_naklady_na_zamestnancov[[#Totals],[Feb]] -> 126,820.00 EUR | E36: =Planovane_naklady_na_skolenie_a_cestovne[[#Totals],[Mar]]+Planovane_naklady_na_marketing[[#Totals],[Mar]]+Planovane_naklady_na_kancelariu[[#Totals],[Mar]]+Planovane_naklady_na_zamestnancov[[#Totals],[Mar]] -> 126,820.00 EUR | F36: =Planovane_naklady_na_skolenie_a_cestovne[[#Totals],[Apr]]+Planovane_naklady_na_marketing[[#Totals],[Apr]]+Planovane_naklady_na_kancelariu[[#Totals],[Apr]]+Planovane_naklady_na_zamestnancov[[#Totals],[Apr]] -> 137,695.00 EUR | G36: =Planovane_naklady_na_skolenie_a_cestovne[[#Totals],[Máj]]+Planovane_naklady_na_marketing[[#Totals],[Máj]]+Planovane_naklady_na_kancelariu[[#Totals],[Máj]]+Planovane_naklady_na_zamestnancov[[#Totals],[Máj]] -> 129,695.00 EUR | H36: =Planovane_naklady_na_skolenie_a_cestovne[[#Totals],[Jún]]+Planovane_naklady_na_marketing[[#Totals],[Jún]]+Planovane_naklady_na_kancelariu[[#Totals],[Jún]]+Planovane_naklady_na_zamestnancov[[#Totals],[Jún]] -> 130,495.00 EUR | I36: =Planovane_naklady_na_skolenie_a_cestovne[[#Totals],[Júl]]+Planovane_naklady_na_marketing[[#Totals],[Júl]]+Planovane_naklady_na_kancelariu[[#Totals],[Júl]]+Planovane_naklady_na_zamestnancov[[#Totals],[Júl]] -> 134,695.00 EUR | J36: =Planovane_naklady_na_skolenie_a_cestovne[[#Totals],[Aug]]+Planovane_naklady_na_marketing[[#Totals],[Aug]]+Planovane_naklady_na_kancelariu[[#Totals],[Aug]]+Planovane_naklady_na_zamestnancov[[#Totals],[Aug]] -> 138,918.00 EUR | K36: =Planovane_naklady_na_skolenie_a_cestovne[[#Totals],[Sep]]+Planovane_naklady_na_marketing[[#Totals],[Sep]]+Planovane_naklady_na_kancelariu[[#Totals],[Sep]]+Planovane_naklady_na_zamestnancov[[#Totals],[Sep]] -> 135,918.00 EUR | L36: =Planovane_naklady_na_skolenie_a_cestovne[[#Totals],[Okt]]+Planovane_naklady_na_marketing[[#Totals],[Okt]]+Planovane_naklady_na_kancelariu[[#Totals],[Okt]]+Planovane_naklady_na_zamestnancov[[#Totals],[Okt]] -> 140,918.00 EUR | M36: =Planovane_naklady_na_skolenie_a_cestovne[[#Totals],[Nov]]+Planovane_naklady_na_marketing[[#Totals],[Nov]]+Planovane_naklady_na_kancelariu[[#Totals],[Nov]]+Planovane_naklady_na_zamestnancov[[#Totals],[Nov]] -> 136,218.00 EUR | N36: =Planovane_naklady_na_skolenie_a_cestovne[[#Totals],[Dec]]+Planovane_naklady_na_marketing[[#Totals],[Dec]]+Planovane_naklady_na_kancelariu[[#Totals],[Dec]]+Planovane_naklady_na_zamestnancov[[#Totals],[Dec]] -> 140,018.00 EUR | O36: =Planovane_naklady_na_skolenie_a_cestovne[[#Totals],[ROK]]+Planovane_naklady_na_marketing[[#Totals],[ROK]]+Planovane_naklady_na_kancelariu[[#Totals],[ROK]]+Planovane_naklady_na_zamestnancov[[#Totals],[ROK]] -> 1,609,630.00 EUR
B37: CELKOVÉ plánované výdavky | C37: =SUM($C$36:C36) -> 131,420.00 EUR | D37: =SUM($C$36:D36) -> 258,240.00 EUR | E37: =SUM($C$36:E36) -> 385,060.00 EUR | F37: =SUM($C$36:F36) -> 522,755.00 EUR | G37: =SUM($C$36:G36) -> 652,450.00 EUR | H37: =SUM($C$36:H36) -> 782,945.00 EUR | I37: =SUM($C$36:I36) -> 917,640.00 EUR | J37: =SUM($C$36:J36) -> 1,056,558.00 EUR | K37: =SUM($C$36:K36) -> 1,192,476.00 EUR | L37: =SUM($C$36:L36) -> 1,333,394.00 EUR | M37: =SUM($C$36:M36) -> 1,469,612.00 EUR | N37: =SUM($C$36:N36) -> 1,609,630.00 EUR

Sheet SKUTOČNÉ VÝDAVKY
A1: V tomto hárku zadajte do príslušných tabuliek skutočné náklady na zamestnancov, náklady na kanceláriu, náklady na marketing a náklady na školenie a cestovné. Súčty sa vypočítajú automaticky. V bunkách v tomto stĺpci sú užitočné pokyny na používanie tohto hárka. Začnite stlačením šípky nadol.
A2: Názov spoločnosti v bunke napravo sa aktualizuje automaticky. V bunke K2 je uvedený názov hárka. Do bunky N2 pridajte logo. | B2: ='PLÁNOVANÉ VÝDAVKY'!B2:D3 -> Názov spoločnosti | K2: =worksheet_title -> Podrobné odhady výdavkov | N2: V tejto bunke je zástupné logo.
A3: V bunke K3 je uvedený tip. | K3: Tieňované bunky sú výpočty.
A4: V bunke napravo je uvedené označenie Skutočné výdavky, v bunkách C4 až N4 sú mesiace a v bunke O4 je označenie Rok. | B4: SKUTOČNÉ VÝDAVKY | C4: JAN | D4: FEB | E4: MAR | F4: APR | G4: MÁJ | H4: JÚN | I4: JÚL | J4: AUG | K4: SEP | L4: OKT | M4: NOV | N4: DEC | O4: ROK
A5: Do tabuľky skutočných Náklady na zamestnancov začínajúcej v bunke napravo skutocne naklady na zamestnancov. Ďalší pokyn je v bunke A10. | B5: Náklady na zamestnancov | C5: Jan | D5: Feb | E5: Mar | F5: Apr | G5: Máj | H5: Jún | I5: Júl | J5: Aug | K5: Sep | L5: Okt | M5: Nov | N5: Dec | O5: ROK
B6: Mzdy | C6: 85,000.00 EUR | D6: 85,000.00 EUR | E6: 85,000.00 EUR | F6: 88,000.00 EUR | G6: 88,000.00 EUR | H6: 88,000.00 EUR | O6: =SUM(C6:N6) -> 519,000.00 EUR
B7: Benefity | C7: =C6*0.27 -> 22,950.00 EUR | D7: 22,950.00 EUR | E7: 22,950.00 EUR | F7: 23,760.00 EUR | G7: 23,760.00 EUR | H7: 23,760.00 EUR | I7: 0.00 EUR | J7: 0.00 EUR | K7: 0.00 EUR | L7: 0.00 EUR | M7: 0.00 EUR | N7: 0.00 EUR | O7: =SUM(C7:N7) -> 140,130.00 EUR
B8: Medzisúčet | C8: =SUBTOTAL(109,Skutocne_naklady_na_zamestnancov[Jan]) -> 107,950.00 EUR | D8: =SUBTOTAL(109,Skutocne_naklady_na_zamestnancov[Feb]) -> 107,950.00 EUR | E8: =SUBTOTAL(109,Skutocne_naklady_na_zamestnancov[Mar]) -> 107,950.00 EUR | F8: =SUBTOTAL(109,Skutocne_naklady_na_zamestnancov[Apr]) -> 111,760.00 EUR | G8: =SUBTOTAL(109,Skutocne_naklady_na_zamestnancov[Máj]) -> 111,760.00 EUR | H8: =SUBTOTAL(109,Skutocne_naklady_na_zamestnancov[Jún]) -> 111,760.00 EUR | I8: =SUBTOTAL(109,Skutocne_naklady_na_zamestnancov[Júl]) -> 0.00 EUR | J8: =SUBTOTAL(109,Skutocne_naklady_na_zamestnancov[Aug]) -> 0.00 EUR | K8: =SUBTOTAL(109,Skutocne_naklady_na_zamestnancov[Sep]) -> 0.00 EUR | L8: =SUBTOTAL(109,Skutocne_naklady_na_zamestnancov[Okt]) -> 0.00 EUR | M8: =SUBTOTAL(109,Skutocne_naklady_na_zamestnancov[Nov]) -> 0.00 EUR | N8: =SUBTOTAL(109,Skutocne_naklady_na_zamestnancov[Dec]) -> 0.00 EUR | O8: =SUBTOTAL(109,Skutocne_naklady_na_zamestnancov[ROK]) -> 659,130.00 EUR
A10: Do tabuľky skutočných Náklady na kanceláriu začínajúcej v bunke napravo skutocne naklady na kancelariu. Ďalší pokyn je v bunke A21. | B10: Náklady na kanceláriu | C10: Jan | D10: Feb | E10: Mar | F10: Apr | G10: Máj | H10: Jún | I10: Júl | J10: Aug | K10: Sep | L10: Okt | M10: Nov | N10: Dec | O10: ROK
B11: Prenájom kancelárie | C11: 9,800.00 EUR | D11: 9,800.00 EUR | E11: 9,800.00 EUR | F11: 9,800.00 EUR | G11: 9,800.00 EUR | H11: 9,800.00 EUR | O11: =SUM(C11:N11) -> 58,800.00 EUR
B12: Plyn | C12: 4.00 EUR | D12: 430.00 EUR | E12: 385.00 EUR | F12: 230.00 EUR | G12: 87.00 EUR | H12: 88.00 EUR | O12: 1,224.00 EUR
B13: Elektrina | C13: 288.00 EUR | D13: 278.00 EUR | E13: 268.00 EUR | F13: 299.00 EUR | G13: 306.00 EUR | H13: 290.00 EUR | O13: 1,729.00 EUR
B14: Voda | C14: 35.00 EUR | D14: 33.00 EUR | E14: 34.00 EUR | F14: 36.00 EUR | G14: 34.00 EUR | H14: 36.00 EUR | O14: 208.00 EUR
B15: Telefón | C15: 224.00 EUR | D15: 235.00 EUR | E15: 265.00 EUR | F15: 245.00 EUR | G15: 245.00 EUR | H15: 220.00 EUR | O15: 1,434.00 EUR
B16: Prístup na Internet | C16: 180.00 EUR | D16: 180.00 EUR | E16: 180.00 EUR | F16: 180.00 EUR | G16: 180.00 EUR | H16: 180.00 EUR | O16: 1,080.00 EUR
B17: Kancelárske potreby | C17: 256.00 EUR | D17: 142.00 EUR | E17: 160.00 EUR | F17: 221.00 EUR | G17: 256.00 EUR | H17: 240.00 EUR | O17: 1,275.00 EUR
B18: Zabezpečenie | C18: 600.00 EUR | D18: 600.00 EUR | E18: 600.00 EUR | F18: 600.00 EUR | G18: 600.00 EUR | H18: 600.00 EUR | O18: 3,600.00 EUR
B19: Medzisúčet | C19: =SUBTOTAL(109,Skutocne_naklady_na_kancelariu[Jan]) -> 11,387.00 EUR | D19: =SUBTOTAL(109,Skutocne_naklady_na_kancelariu[Feb]) -> 11,698.00 EUR | E19: =SUBTOTAL(109,Skutocne_naklady_na_kancelariu[Mar]) -> 11,692.00 EUR | F19: =SUBTOTAL(109,Skutocne_naklady_na_kancelariu[Apr]) -> 11,611.00 EUR | G19: =SUBTOTAL(109,Skutocne_naklady_na_kancelariu[Máj]) -> 11,508.00 EUR | H19: =SUBTOTAL(109,Skutocne_naklady_na_kancelariu[Jún]) -> 11,454.00 EUR | I19: =SUBTOTAL(109,Skutocne_naklady_na_kancelariu[Júl]) -> 0.00 EUR | J19: =SUBTOTAL(109,Skutocne_naklady_na_kancelariu[Aug]) -> 0.00 EUR | K19: =SUBTOTAL(109,Skutocne_naklady_na_kancelariu[Sep]) -> 0.00 EUR | L19: =SUBTOTAL(109,Skutocne_naklady_na_kancelariu[Okt]) -> 0.00 EUR | M19: =SUBTOTAL(109,Skutocne_naklady_na_kancelariu[Nov]) -> 0.00 EUR | N19: =SUBTOTAL(109,Skutocne_naklady_na_kancelariu[Dec]) -> 0.00 EUR | O19: =SUBTOTAL(109,Skutocne_naklady_na_kancelariu[ROK]) -> 69,350.00 EUR
A21: Do tabuľky skutočných Náklady na marketing začínajúcej v bunke napravo skutocne naklady na marketing. Ďalší pokyn je v bunke A30. | B21: Náklady na marketing | C21: Jan | D21: Feb | E21: Mar | F21: Apr | G21: Máj | H21: Jún | I21: Júl | J21: Aug | K21: Sep | L21: Okt | M21: Nov | N21: Dec | O21: ROK
B22: Hosťovanie webovej lokality | C22: 500.00 EUR | D22: 500.00 EUR | E22: 500.00 EUR | F22: 500.00 EUR | G22: 500.00 EUR | H22: 500.00 EUR | O22: =SUM(C22:N22) -> 3,000.00 EUR
B23: Aktualizácie webovej lokality | C23: 200.00 EUR | D23: 200.00 EUR | E23: 200.00 EUR | F23: 200.00 EUR | G23: 200.00 EUR | H23: 1,500.00 EUR | O23: 2,500.00 EUR
B24: Príprava sprievodnej dokumentácie | C24: 4,800.00 EUR | D24: 0.00 EUR | E24: 0.00 EUR | F24: 5,500.00 EUR | G24: 0.00 EUR | H24: 0.00 EUR | O24: 10,300.00 EUR
B25: Tlač sprievodnej dokumentácie | C25: 100.00 EUR | D25: 500.00 EUR | E25: 100.00 EUR | F25: 100.00 EUR | G25: 600.00 EUR | H25: 180.00 EUR | O25: 1,580.00 EUR
B26: Marketingové podujatia | C26: 1,800.00 EUR | D26: 2,200.00 EUR | E26: 2,200.00 EUR | F26: 4,700.00 EUR | G26: 1,500.00 EUR | H26: 2,300.00 EUR | O26: 14,700.00 EUR
B27: Rôzne výdavky | C27: 145.00 EUR | D27: 156.00 EUR | E27: 123.00 EUR | F27: 223.00 EUR | G27: 187.00 EUR | H27: 245.00 EUR | O27: 1,079.00 EUR
B28: Medzisúčet | C28: =SUBTOTAL(109,Skutocne_naklady_na_marketing[Jan]) -> 7,545.00 EUR | D28: =SUBTOTAL(109,Skutocne_naklady_na_marketing[Feb]) -> 3,556.00 EUR | E28: =SUBTOTAL(109,Skutocne_naklady_na_marketing[Mar]) -> 3,123.00 EUR | F28: =SUBTOTAL(109,Skutocne_naklady_na_marketing[Apr]) -> 11,223.00 EUR | G28: =SUBTOTAL(109,Skutocne_naklady_na_marketing[Máj]) -> 2,987.00 EUR | H28: =SUBTOTAL(109,Skutocne_naklady_na_marketing[Jún]) -> 4,725.00 EUR | I28: =SUBTOTAL(109,Skutocne_naklady_na_marketing[Júl]) -> 0.00 EUR | J28: =SUBTOTAL(109,Skutocne_naklady_na_marketing[Aug]) -> 0.00 EUR | K28: =SUBTOTAL(109,Skutocne_naklady_na_marketing[Sep]) -> 0.00 EUR | L28: =SUBTOTAL(109,Skutocne_naklady_na_marketing[Okt]) -> 0.00 EUR | M28: =SUBTOTAL(109,Skutocne_naklady_na_marketing[Nov]) -> 0.00 EUR | N28: =SUBTOTAL(109,Skutocne_naklady_na_marketing[Dec]) -> 0.00 EUR | O28: =SUBTOTAL(109,Skutocne_naklady_na_marketing[ROK]) -> 33,159.00 EUR
A30: Do tabuľky skutočných Náklady na školenie a cestovné začínajúcej v bunke napravo skutocne naklady na skolenie a cestovne. Ďalší pokyn je v bunke A35. | B30: Školenie/cestovné | C30: Jan | D30: Feb | E30: Mar | F30: Apr | G30: Máj | H30: Jún | I30: Júl | J30: Aug | K30: Sep | L30: Okt | M30: Nov | N30: Dec | O30: ROK
B31: Školiace kurzy | C31: 1,600.00 EUR | D31: 2,400.00 EUR | E31: 1,400.00 EUR | F31: 1,600.00 EUR | G31: 1,200.00 EUR | H31: 2,800.00 EUR | O31: =SUM(C31:N31) -> 11,000.00 EUR
B32: Cestovné náklady súvisiace so školením | C32: 1,200.00 EUR | D32: 2,200.00 EUR | E32: 1,400.00 EUR | F32: 1,200.00 EUR | G32: 800.00 EUR | H32: 3,500.00 EUR | O32: =SUM(C32:N32) -> 10,300.00 EUR
B33: Medzisúčet | C33: =SUBTOTAL(109,Skutocne_naklady_na_skolenie_a_cestovne[Jan]) -> 2,800.00 EUR | D33: =SUBTOTAL(109,Skutocne_naklady_na_skolenie_a_cestovne[Feb]) -> 4,600.00 EUR | E33: =SUBTOTAL(109,Skutocne_naklady_na_skolenie_a_cestovne[Mar]) -> 2,800.00 EUR | F33: =SUBTOTAL(109,Skutocne_naklady_na_skolenie_a_cestovne[Apr]) -> 2,800.00 EUR | G33: =SUBTOTAL(109,Skutocne_naklady_na_skolenie_a_cestovne[Máj]) -> 2,000.00 EUR | H33: =SUBTOTAL(109,Skutocne_naklady_na_skolenie_a_cestovne[Jún]) -> 6,300.00 EUR | I33: =SUBTOTAL(109,Skutocne_naklady_na_skolenie_a_cestovne[Júl]) -> 0.00 EUR | J33: =SUBTOTAL(109,Skutocne_naklady_na_skolenie_a_cestovne[Aug]) -> 0.00 EUR | K33: =SUBTOTAL(109,Skutocne_naklady_na_skolenie_a_cestovne[Sep]) -> 0.00 EUR | L33: =SUBTOTAL(109,Skutocne_naklady_na_skolenie_a_cestovne[Okt]) -> 0.00 EUR | M33: =SUBTOTAL(109,Skutocne_naklady_na_skolenie_a_cestovne[Nov]) -> 0.00 EUR | N33: =SUBTOTAL(109,Skutocne_naklady_na_skolenie_a_cestovne[Dec]) -> 0.00 EUR | O33: =SUBTOTAL(109,Skutocne_naklady_na_skolenie_a_cestovne[ROK]) -> 21,300.00 EUR
A35: V tabuľke celkových skutočných Náklady začínajúcej v bunke napravo sa automaticky vypočítajú celkove skutocne vydavky. | B35: CELKOVÉ plánované výdavky | C35: Jan | D35: Feb | E35: Mar | F35: Apr | G35: Máj | H35: Jún | I35: Júl | J35: Aug | K35: Sep | L35: Okt | M35: Nov | N35: Dec | O35: Rok
B36: Mesačné skutočné výdavky | C36: =Skutocne_naklady_na_skolenie_a_cestovne[[#Totals],[Jan]]+Skutocne_naklady_na_marketing[[#Totals],[Jan]]+Skutocne_naklady_na_kancelariu[[#Totals],[Jan]]+Skutocne_naklady_na_zamestnancov[[#Totals],[Jan]] -> 129,682.00 EUR | D36: =Skutocne_naklady_na_skolenie_a_cestovne[[#Totals],[Feb]]+Skutocne_naklady_na_marketing[[#Totals],[Feb]]+Skutocne_naklady_na_kancelariu[[#Totals],[Feb]]+Skutocne_naklady_na_zamestnancov[[#Totals],[Feb]] -> 127,804.00 EUR | E36: =Skutocne_naklady_na_skolenie_a_cestovne[[#Totals],[Mar]]+Skutocne_naklady_na_marketing[[#Totals],[Mar]]+Skutocne_naklady_na_kancelariu[[#Totals],[Mar]]+Skutocne_naklady_na_zamestnancov[[#Totals],[Mar]] -> 125,565.00 EUR | F36: =Skutocne_naklady_na_skolenie_a_cestovne[[#Totals],[Apr]]+Skutocne_naklady_na_marketing[[#Totals],[Apr]]+Skutocne_naklady_na_kancelariu[[#Totals],[Apr]]+Skutocne_naklady_na_zamestnancov[[#Totals],[Apr]] -> 137,394.00 EUR | G36: =Skutocne_naklady_na_skolenie_a_cestovne[[#Totals],[Máj]]+Skutocne_naklady_na_marketing[[#Totals],[Máj]]+Skutocne_naklady_na_kancelariu[[#Totals],[Máj]]+Skutocne_naklady_na_zamestnancov[[#Totals],[Máj]] -> 128,255.00 EUR | H36: =Skutocne_naklady_na_skolenie_a_cestovne[[#Totals],[Jún]]+Skutocne_naklady_na_marketing[[#Totals],[Jún]]+Skutocne_naklady_na_kancelariu[[#Totals],[Jún]]+Skutocne_naklady_na_zamestnancov[[#Totals],[Jún]] -> 134,239.00 EUR | I36: =Skutocne_naklady_na_skolenie_a_cestovne[[#Totals],[Júl]]+Skutocne_naklady_na_marketing[[#Totals],[Júl]]+Skutocne_naklady_na_kancelariu[[#Totals],[Júl]]+Skutocne_naklady_na_zamestnancov[[#Totals],[Júl]] -> 0.00 EUR | J36: =Skutocne_naklady_na_skolenie_a_cestovne[[#Totals],[Aug]]+Skutocne_naklady_na_marketing[[#Totals],[Aug]]+Skutocne_naklady_na_kancelariu[[#Totals],[Aug]]+Skutocne_naklady_na_zamestnancov[[#Totals],[Aug]] -> 0.00 EUR | K36: =Skutocne_naklady_na_skolenie_a_cestovne[[#Totals],[Sep]]+Skutocne_naklady_na_marketing[[#Totals],[Sep]]+Skutocne_naklady_na_kancelariu[[#Totals],[Sep]]+Skutocne_naklady_na_zamestnancov[[#Totals],[Sep]] -> 0.00 EUR | L36: =Skutocne_naklady_na_skolenie_a_cestovne[[#Totals],[Okt]]+Skutocne_naklady_na_marketing[[#Totals],[Okt]]+Skutocne_naklady_na_kancelariu[[#Totals],[Okt]]+Skutocne_naklady_na_zamestnancov[[#Totals],[Okt]] -> 0.00 EUR | M36: =Skutocne_naklady_na_skolenie_a_cestovne[[#Totals],[Nov]]+Skutocne_naklady_na_marketing[[#Totals],[Nov]]+Skutocne_naklady_na_kancelariu[[#Totals],[Nov]]+Skutocne_naklady_na_zamestnancov[[#Totals],[Nov]] -> 0.00 EUR | N36: =Skutocne_naklady_na_skolenie_a_cestovne[[#Totals],[Dec]]+Skutocne_naklady_na_marketing[[#Totals],[Dec]]+Skutocne_naklady_na_kancelariu[[#Totals],[Dec]]+Skutocne_naklady_na_zamestnancov[[#Totals],[Dec]] -> 0.00 EUR | O36: =Skutocne_naklady_na_skolenie_a_cestovne[[#Totals],[ROK]]+Skutocne_naklady_na_marketing[[#Totals],[ROK]]+Skutocne_naklady_na_kancelariu[[#Totals],[ROK]]+Skutocne_naklady_na_zamestnancov[[#Totals],[ROK]] -> 782,939.00 EUR
B37: CELKOVÉ skutočné výdavky | C37: =SUM($C$36:C36) -> 129,682.00 EUR | D37: =SUM($C$36:D36) -> 257,486.00 EUR | E37: =SUM($C$36:E36) -> 383,051.00 EUR | F37: =SUM($C$36:F36) -> 520,445.00 EUR | G37: =SUM($C$36:G36) -> 648,700.00 EUR | H37: =SUM($C$36:H36) -> 782,939.00 EUR | I37: =SUM($C$36:I36) -> 782,939.00 EUR | J37: =SUM($C$36:J36) -> 782,939.00 EUR | K37: =SUM($C$36:K36) -> 782,939.00 EUR | L37: =SUM($C$36:L36) -> 782,939.00 EUR | M37: =SUM($C$36:M36) -> 782,939.00 EUR | N37: =SUM($C$36:N36) -> 782,939.00 EUR

Sheet ODCHÝLKY VO VÝDAVKOCH
A1: V príslušných tabuľkách v tomto hárku sa automaticky vypočítajú odchýlky vo výdavkoch týkajúce sa Náklady na zamestnancov, Náklady na kanceláriu, Náklady na marketing a Náklady na školenie a cestovné. V bunkách v tomto stĺpci sú užitočné pokyny na používanie tohto hárka. Začnite stlačením šípky nadol.
A2: Názov spoločnosti v bunke napravo sa aktualizuje automaticky. V bunke K2 je uvedený názov hárka. Do bunky N2 pridajte logo. | B2: ='PLÁNOVANÉ VÝDAVKY'!B2:D3 -> Názov spoločnosti | K2: =worksheet_title -> Podrobné odhady výdavkov | N2: V tejto bunke je zástupné logo.
A3: V bunke K3 je uvedený tip. | K3: Tieňované bunky sú výpočty.
A4: V bunke napravo je uvedené označenie Odchýlky vo výdavkoch, v bunkách C4 až N4 sú mesiace a v bunke O4 je označenie Rok. | B4: ODCHÝLKY VO VÝDAVKOCH | C4: JAN | D4: FEB | E4: MAR | F4: APR | G4: MÁJ | H4: JÚN | I4: JÚL | J4: AUG | K4: SEP | L4: OKT | M4: NOV | N4: DEC | O4: ROK
A5: V tabuľke odchýlok v Náklady na zamestnancov začínajúcej v bunke napravo sa automaticky vypočítajú odchylky v nakladoch na zamestnancov. Ďalší pokyn je v bunke A10. | B5: Náklady na zamestnancov | C5: Jan | D5: Feb | E5: Mar | F5: Apr | G5: Máj | H5: Jún | I5: Júl | J5: Aug | K5: Sep | L5: Okt | M5: Nov | N5: Dec | O5: ROK
B6: Mzdy | C6: =INDEX(Planovane_naklady_na_zamestnancov[],MATCH(INDEX(Odchylky_v_nakladoch[],ROW()-ROW(Odchylky_v_nakladoch[[#Headers],[Jan]]),1),INDEX(Planovane_naklady_na_zamestnancov[],,1),0),MATCH(Odchylky_v_nakladoch[[#Headers],[Jan]],Planovane_naklady_na_zamestnancov[#Headers],0))-INDEX(Skutocne_naklady_na_zamestnancov[],MATCH(INDEX(Odchylky_v_nakladoch[],ROW()-ROW(Odchylky_v_nakladoch[[#Headers],[Jan]]),1),INDEX(Planovane_naklady_na_zamestnancov[],,1),0),MATCH(Odchylky_v_nakladoch[[#Headers],[Jan]],Skutocne_naklady_na_zamestnancov[#Headers],0)) -> 0.00 EUR | D6: =INDEX(Planovane_naklady_na_zamestnancov[],MATCH(INDEX(Odchylky_v_nakladoch[],ROW()-ROW(Odchylky_v_nakladoch[[#Headers],[Feb]]),1),INDEX(Planovane_naklady_na_zamestnancov[],,1),0),MATCH(Odchylky_v_nakladoch[[#Headers],[Feb]],Planovane_naklady_na_zamestnancov[#Headers],0))-INDEX(Skutocne_naklady_na_zamestnancov[],MATCH(INDEX(Odchylky_v_nakladoch[],ROW()-ROW(Odchylky_v_nakladoch[[#Headers],[Feb]]),1),INDEX(Planovane_naklady_na_zamestnancov[],,1),0),MATCH(Odchylky_v_nakladoch[[#Headers],[Feb]],Skutocne_naklady_na_zamestnancov[#Headers],0)) -> 0.00 EUR | E6: =INDEX(Planovane_naklady_na_zamestnancov[],MATCH(INDEX(Odchylky_v_nakladoch[],ROW()-ROW(Odchylky_v_nakladoch[[#Headers],[Mar]]),1),INDEX(Planovane_naklady_na_zamestnancov[],,1),0),MATCH(Odchylky_v_nakladoch[[#Headers],[Mar]],Planovane_naklady_na_zamestnancov[#Headers],0))-INDEX(Skutocne_naklady_na_zamestnancov[],MATCH(INDEX(Odchylky_v_nakladoch[],ROW()-ROW(Odchylky_v_nakladoch[[#Headers],[Mar]]),1),INDEX(Planovane_naklady_na_zamestnancov[],,1),0),MATCH(Odchylky_v_nakladoch[[#Headers],[Mar]],Skutocne_naklady_na_zamestnancov[#Headers],0)) -> 0.00 EUR | F6: =INDEX(Planovane_naklady_na_zamestnancov[],MATCH(INDEX(Odchylky_v_nakladoch[],ROW()-ROW(Odchylky_v_nakladoch[[#Headers],[Apr]]),1),INDEX(Planovane_naklady_na_zamestnancov[],,1),0),MATCH(Odchylky_v_nakladoch[[#Headers],[Apr]],Planovane_naklady_na_zamestnancov[#Headers],0))-INDEX(Skutocne_naklady_na_zamestnancov[],MATCH(INDEX(Odchylky_v_nakladoch[],ROW()-ROW(Odchylky_v_nakladoch[[#Headers],[Apr]]),1),INDEX(Planovane_naklady_na_zamestnancov[],,1),0),MATCH(Odchylky_v_nakladoch[[#Headers],[Apr]],Skutocne_naklady_na_zamestnancov[#Headers],0)) -> -500.00 EUR | G6: =INDEX(Planovane_naklady_na_zamestnancov[],MATCH(INDEX(Odchylky_v_nakladoch[],ROW()-ROW(Odchylky_v_nakladoch[[#Headers],[Máj]]),1),INDEX(Planovane_naklady_na_zamestnancov[],,1),0),MATCH(Odchylky_v_nakladoch[[#Headers],[Máj]],Planovane_naklady_na_zamestnancov[#Headers],0))-INDEX(Skutocne_naklady_na_zamestnancov[],MATCH(INDEX(Odchylky_v_nakladoch[],ROW()-ROW(Odchylky_v_nakladoch[[#Headers],[Máj]]),1),INDEX(Planovane_naklady_na_zamestnancov[],,1),0),MATCH(Odchylky_v_nakladoch[[#Headers],[Máj]],Skutocne_naklady_na_zamestnancov[#Headers],0)) -> -500.00 EUR | H6: =INDEX(Planovane_naklady_na_zamestnancov[],MATCH(INDEX(Odchylky_v_nakladoch[],ROW()-ROW(Odchylky_v_nakladoch[[#Headers],[Jún]]),1),INDEX(Planovane_naklady_na_zamestnancov[],,1),0),MATCH(Odchylky_v_nakladoch[[#Headers],[Jún]],Planovane_naklady_na_zamestnancov[#Headers],0))-INDEX(Skutocne_naklady_na_zamestnancov[],MATCH(INDEX(Odchylky_v_nakladoch[],ROW()-ROW(Odchylky_v_nakladoch[[#Headers],[Jún]]),1),INDEX(Planovane_naklady_na_zamestnancov[],,1),0),MATCH(Odchylky_v_nakladoch[[#Headers],[Jún]],Skutocne_naklady_na_zamestnancov[#Headers],0)) -> -500.00 EUR | I6: =INDEX(Planovane_naklady_na_zamestnancov[],MATCH(INDEX(Odchylky_v_nakladoch[],ROW()-ROW(Odchylky_v_nakladoch[[#Headers],[Júl]]),1),INDEX(Planovane_naklady_na_zamestnancov[],,1),0),MATCH(Odchylky_v_nakladoch[[#Headers],[Júl]],Planovane_naklady_na_zamestnancov[#Headers],0))-INDEX(Skutocne_naklady_na_zamestnancov[],MATCH(INDEX(Odchylky_v_nakladoch[],ROW()-ROW(Odchylky_v_nakladoch[[#Headers],[Júl]]),1),INDEX(Planovane_naklady_na_zamestnancov[],,1),0),MATCH(Odchylky_v_nakladoch[[#Headers],[Júl]],Skutocne_naklady_na_zamestnancov[#Headers],0)) -> 87,500.00 EUR | J6: =INDEX(Planovane_naklady_na_zamestnancov[],MATCH(INDEX(Odchylky_v_nakladoch[],ROW()-ROW(Odchylky_v_nakladoch[[#Headers],[Aug]]),1),INDEX(Planovane_naklady_na_zamestnancov[],,1),0),MATCH(Odchylky_v_nakladoch[[#Headers],[Aug]],Planovane_naklady_na_zamestnancov[#Headers],0))-INDEX(Skutocne_naklady_na_zamestnancov[],MATCH(INDEX(Odchylky_v_nakladoch[],ROW()-ROW(Odchylky_v_nakladoch[[#Headers],[Aug]]),1),INDEX(Planovane_naklady_na_zamestnancov[],,1),0),MATCH(Odchylky_v_nakladoch[[#Headers],[Aug]],Skutocne_naklady_na_zamestnancov[#Headers],0)) -> 92,400.00 EUR | K6: =INDEX(Planovane_naklady_na_zamestnancov[],MATCH(INDEX(Odchylky_v_nakladoch[],ROW()-ROW(Odchylky_v_nakladoch[[#Headers],[Sep]]),1),INDEX(Planovane_naklady_na_zamestnancov[],,1),0),MATCH(Odchylky_v_nakladoch[[#Headers],[Sep]],Planovane_naklady_na_zamestnancov[#Headers],0))-INDEX(Skutocne_naklady_na_zamestnancov[],MATCH(INDEX(Odchylky_v_nakladoch[],ROW()-ROW(Odchylky_v_nakladoch[[#Headers],[Sep]]),1),INDEX(Planovane_naklady_na_zamestnancov[],,1),0),MATCH(Odchylky_v_nakladoch[[#Headers],[Sep]],Skutocne_naklady_na_zamestnancov[#Headers],0)) -> 92,400.00 EUR | L6: =INDEX(Planovane_naklady_na_zamestnancov[],MATCH(INDEX(Odchylky_v_nakladoch[],ROW()-ROW(Odchylky_v_nakladoch[[#Headers],[Okt]]),1),INDEX(Planovane_naklady_na_zamestnancov[],,1),0),MATCH(Odchylky_v_nakladoch[[#Headers],[Okt]],Planovane_naklady_na_zamestnancov[#Headers],0))-INDEX(Skutocne_naklady_na_zamestnancov[],MATCH(INDEX(Odchylky_v_nakladoch[],ROW()-ROW(Odchylky_v_nakladoch[[#Headers],[Okt]]),1),INDEX(Planovane_naklady_na_zamestnancov[],,1),0),MATCH(Odchylky_v_nakladoch[[#Headers],[Okt]],Skutocne_naklady_na_zamestnancov[#Headers],0)) -> 92,400.00 EUR | M6: =INDEX(Planovane_naklady_na_zamestnancov[],MATCH(INDEX(Odchylky_v_nakladoch[],ROW()-ROW(Odchylky_v_nakladoch[[#Headers],[Nov]]),1),INDEX(Planovane_naklady_na_zamestnancov[],,1),0),MATCH(Odchylky_v_nakladoch[[#Headers],[Nov]],Planovane_naklady_na_zamestnancov[#Headers],0))-INDEX(Skutocne_naklady_na_zamestnancov[],MATCH(INDEX(Odchylky_v_nakladoch[],ROW()-ROW(Odchylky_v_nakladoch[[#Headers],[Nov]]),1),INDEX(Planovane_naklady_na_zamestnancov[],,1),0),MATCH(Odchylky_v_nakladoch[[#Headers],[Nov]],Skutocne_naklady_na_zamestnancov[#Headers],0)) -> 92,400.00 EUR | N6: =INDEX(Planovane_naklady_na_zamestnancov[],MATCH(INDEX(Odchylky_v_nakladoch[],ROW()-ROW(Odchylky_v_nakladoch[[#Headers],[Dec]]),1),INDEX(Planovane_naklady_na_zamestnancov[],,1),0),MATCH(Odchylky_v_nakladoch[[#Headers],[Dec]],Planovane_naklady_na_zamestnancov[#Headers],0))-INDEX(Skutocne_naklady_na_zamestnancov[],MATCH(INDEX(Odchylky_v_nakladoch[],ROW()-ROW(Odchylky_v_nakladoch[[#Headers],[Dec]]),1),INDEX(Planovane_naklady_na_zamestnancov[],,1),0),MATCH(Odchylky_v_nakladoch[[#Headers],[Dec]],Skutocne_naklady_na_zamestnancov[#Headers],0)) -> 92,400.00 EUR | O6: =SUM(Odchylky_v_nakladoch[[#This Row],[Jan]:[Dec]]) -> 548,000.00 EUR
B7: Benefity | C7: =INDEX(Planovane_naklady_na_zamestnancov[],MATCH(INDEX(Odchylky_v_nakladoch[],ROW()-ROW(Odchylky_v_nakladoch[[#Headers],[Jan]]),1),INDEX(Planovane_naklady_na_zamestnancov[],,1),0),MATCH(Odchylky_v_nakladoch[[#Headers],[Jan]],Planovane_naklady_na_zamestnancov[#Headers],0))-INDEX(Skutocne_naklady_na_zamestnancov[],MATCH(INDEX(Odchylky_v_nakladoch[],ROW()-ROW(Odchylky_v_nakladoch[[#Headers],[Jan]]),1),INDEX(Planovane_naklady_na_zamestnancov[],,1),0),MATCH(Odchylky_v_nakladoch[[#Headers],[Jan]],Skutocne_naklady_na_zamestnancov[#Headers],0)) -> 0.00 EUR | D7: =INDEX(Planovane_naklady_na_zamestnancov[],MATCH(INDEX(Odchylky_v_nakladoch[],ROW()-ROW(Odchylky_v_nakladoch[[#Headers],[Feb]]),1),INDEX(Planovane_naklady_na_zamestnancov[],,1),0),MATCH(Odchylky_v_nakladoch[[#Headers],[Feb]],Planovane_naklady_na_zamestnancov[#Headers],0))-INDEX(Skutocne_naklady_na_zamestnancov[],MATCH(INDEX(Odchylky_v_nakladoch[],ROW()-ROW(Odchylky_v_nakladoch[[#Headers],[Feb]]),1),INDEX(Planovane_naklady_na_zamestnancov[],,1),0),MATCH(Odchylky_v_nakladoch[[#Headers],[Feb]],Skutocne_naklady_na_zamestnancov[#Headers],0)) -> 0.00 EUR | E7: =INDEX(Planovane_naklady_na_zamestnancov[],MATCH(INDEX(Odchylky_v_nakladoch[],ROW()-ROW(Odchylky_v_nakladoch[[#Headers],[Mar]]),1),INDEX(Planovane_naklady_na_zamestnancov[],,1),0),MATCH(Odchylky_v_nakladoch[[#Headers],[Mar]],Planovane_naklady_na_zamestnancov[#Headers],0))-INDEX(Skutocne_naklady_na_zamestnancov[],MATCH(INDEX(Odchylky_v_nakladoch[],ROW()-ROW(Odchylky_v_nakladoch[[#Headers],[Mar]]),1),INDEX(Planovane_naklady_na_zamestnancov[],,1),0),MATCH(Odchylky_v_nakladoch[[#Headers],[Mar]],Skutocne_naklady_na_zamestnancov[#Headers],0)) -> 0.00 EUR | F7: =INDEX(Planovane_naklady_na_zamestnancov[],MATCH(INDEX(Odchylky_v_nakladoch[],ROW()-ROW(Odchylky_v_nakladoch[[#Headers],[Apr]]),1),INDEX(Planovane_naklady_na_zamestnancov[],,1),0),MATCH(Odchylky_v_nakladoch[[#Headers],[Apr]],Planovane_naklady_na_zamestnancov[#Headers],0))-INDEX(Skutocne_naklady_na_zamestnancov[],MATCH(INDEX(Odchylky_v_nakladoch[],ROW()-ROW(Odchylky_v_nakladoch[[#Headers],[Apr]]),1),INDEX(Planovane_naklady_na_zamestnancov[],,1),0),MATCH(Odchylky_v_nakladoch[[#Headers],[Apr]],Skutocne_naklady_na_zamestnancov[#Headers],0)) -> -135.00 EUR | G7: =INDEX(Planovane_naklady_na_zamestnancov[],MATCH(INDEX(Odchylky_v_nakladoch[],ROW()-ROW(Odchylky_v_nakladoch[[#Headers],[Máj]]),1),INDEX(Planovane_naklady_na_zamestnancov[],,1),0),MATCH(Odchylky_v_nakladoch[[#Headers],[Máj]],Planovane_naklady_na_zamestnancov[#Headers],0))-INDEX(Skutocne_naklady_na_zamestnancov[],MATCH(INDEX(Odchylky_v_nakladoch[],ROW()-ROW(Odchylky_v_nakladoch[[#Headers],[Máj]]),1),INDEX(Planovane_naklady_na_zamestnancov[],,1),0),MATCH(Odchylky_v_nakladoch[[#Headers],[Máj]],Skutocne_naklady_na_zamestnancov[#Headers],0)) -> -135.00 EUR | H7: =INDEX(Planovane_naklady_na_zamestnancov[],MATCH(INDEX(Odchylky_v_nakladoch[],ROW()-ROW(Odchylky_v_nakladoch[[#Headers],[Jún]]),1),INDEX(Planovane_naklady_na_zamestnancov[],,1),0),MATCH(Odchylky_v_nakladoch[[#Headers],[Jún]],Planovane_naklady_na_zamestnancov[#Headers],0))-INDEX(Skutocne_naklady_na_zamestnancov[],MATCH(INDEX(Odchylky_v_nakladoch[],ROW()-ROW(Odchylky_v_nakladoch[[#Headers],[Jún]]),1),INDEX(Planovane_naklady_na_zamestnancov[],,1),0),MATCH(Odchylky_v_nakladoch[[#Headers],[Jún]],Skutocne_naklady_na_zamestnancov[#Headers],0)) -> -135.00 EUR | I7: =INDEX(Planovane_naklady_na_zamestnancov[],MATCH(INDEX(Odchylky_v_nakladoch[],ROW()-ROW(Odchylky_v_nakladoch[[#Headers],[Júl]]),1),INDEX(Planovane_naklady_na_zamestnancov[],,1),0),MATCH(Odchylky_v_nakladoch[[#Headers],[Júl]],Planovane_naklady_na_zamestnancov[#Headers],0))-INDEX(Skutocne_naklady_na_zamestnancov[],MATCH(INDEX(Odchylky_v_nakladoch[],ROW()-ROW(Odchylky_v_nakladoch[[#Headers],[Júl]]),1),INDEX(Planovane_naklady_na_zamestnancov[],,1),0),MATCH(Odchylky_v_nakladoch[[#Headers],[Júl]],Skutocne_naklady_na_zamestnancov[#Headers],0)) -> 23,625.00 EUR | J7: =INDEX(Planovane_naklady_na_zamestnancov[],MATCH(INDEX(Odchylky_v_nakladoch[],ROW()-ROW(Odchylky_v_nakladoch[[#Headers],[Aug]]),1),INDEX(Planovane_naklady_na_zamestnancov[],,1),0),MATCH(Odchylky_v_nakladoch[[#Headers],[Aug]],Planovane_naklady_na_zamestnancov[#Headers],0))-INDEX(Skutocne_naklady_na_zamestnancov[],MATCH(INDEX(Odchylky_v_nakladoch[],ROW()-ROW(Odchylky_v_nakladoch[[#Headers],[Aug]]),1),INDEX(Planovane_naklady_na_zamestnancov[],,1),0),MATCH(Odchylky_v_nakladoch[[#Headers],[Aug]],Skutocne_naklady_na_zamestnancov[#Headers],0)) -> 24,948.00 EUR | K7: =INDEX(Planovane_naklady_na_zamestnancov[],MATCH(INDEX(Odchylky_v_nakladoch[],ROW()-ROW(Odchylky_v_nakladoch[[#Headers],[Sep]]),1),INDEX(Planovane_naklady_na_zamestnancov[],,1),0),MATCH(Odchylky_v_nakladoch[[#Headers],[Sep]],Planovane_naklady_na_zamestnancov[#Headers],0))-INDEX(Skutocne_naklady_na_zamestnancov[],MATCH(INDEX(Odchylky_v_nakladoch[],ROW()-ROW(Odchylky_v_nakladoch[[#Headers],[Sep]]),1),INDEX(Planovane_naklady_na_zamestnancov[],,1),0),MATCH(Odchylky_v_nakladoch[[#Headers],[Sep]],Skutocne_naklady_na_zamestnancov[#Headers],0)) -> 24,948.00 EUR | L7: =INDEX(Planovane_naklady_na_zamestnancov[],MATCH(INDEX(Odchylky_v_nakladoch[],ROW()-ROW(Odchylky_v_nakladoch[[#Headers],[Okt]]),1),INDEX(Planovane_naklady_na_zamestnancov[],,1),0),MATCH(Odchylky_v_nakladoch[[#Headers],[Okt]],Planovane_naklady_na_zamestnancov[#Headers],0))-INDEX(Skutocne_naklady_na_zamestnancov[],MATCH(INDEX(Odchylky_v_nakladoch[],ROW()-ROW(Odchylky_v_nakladoch[[#Headers],[Okt]]),1),INDEX(Planovane_naklady_na_zamestnancov[],,1),0),MATCH(Odchylky_v_nakladoch[[#Headers],[Okt]],Skutocne_naklady_na_zamestnancov[#Headers],0)) -> 24,948.00 EUR | M7: =INDEX(Planovane_naklady_na_zamestnancov[],MATCH(INDEX(Odchylky_v_nakladoch[],ROW()-ROW(Odchylky_v_nakladoch[[#Headers],[Nov]]),1),INDEX(Planovane_naklady_na_zamestnancov[],,1),0),MATCH(Odchylky_v_nakladoch[[#Headers],[Nov]],Planovane_naklady_na_zamestnancov[#Headers],0))-INDEX(Skutocne_naklady_na_zamestnancov[],MATCH(INDEX(Odchylky_v_nakladoch[],ROW()-ROW(Odchylky_v_nakladoch[[#Headers],[Nov]]),1),INDEX(Planovane_naklady_na_zamestnancov[],,1),0),MATCH(Odchylky_v_nakladoch[[#Headers],[Nov]],Skutocne_naklady_na_zamestnancov[#Headers],0)) -> 24,948.00 EUR | N7: =INDEX(Planovane_naklady_na_zamestnancov[],MATCH(INDEX(Odchylky_v_nakladoch[],ROW()-ROW(Odchylky_v_nakladoch[[#Headers],[Dec]]),1),INDEX(Planovane_naklady_na_zamestnancov[],,1),0),MATCH(Odchylky_v_nakladoch[[#Headers],[Dec]],Planovane_naklady_na_zamestnancov[#Headers],0))-INDEX(Skutocne_naklady_na_zamestnancov[],MATCH(INDEX(Odchylky_v_nakladoch[],ROW()-ROW(Odchylky_v_nakladoch[[#Headers],[Dec]]),1),INDEX(Planovane_naklady_na_zamestnancov[],,1),0),MATCH(Odchylky_v_nakladoch[[#Headers],[Dec]],Skutocne_naklady_na_zamestnancov[#Headers],0)) -> 24,948.00 EUR | O7: =SUM(Odchylky_v_nakladoch[[#This Row],[Jan]:[Dec]]) -> 147,960.00 EUR
B8: Medzisúčet | C8: =SUBTOTAL(109,Odchylky_v_nakladoch[Jan]) -> 0.00 EUR | D8: =SUBTOTAL(109,Odchylky_v_nakladoch[Feb]) -> 0.00 EUR | E8: =SUBTOTAL(109,Odchylky_v_nakladoch[Mar]) -> 0.00 EUR | F8: =SUBTOTAL(109,Odchylky_v_nakladoch[Apr]) -> -635.00 EUR | G8: =SUBTOTAL(109,Odchylky_v_nakladoch[Máj]) -> -635.00 EUR | H8: =SUBTOTAL(109,Odchylky_v_nakladoch[Jún]) -> -635.00 EUR | I8: =SUBTOTAL(109,Odchylky_v_nakladoch[Júl]) -> 111,125.00 EUR | J8: =SUBTOTAL(109,Odchylky_v_nakladoch[Aug]) -> 117,348.00 EUR | K8: =SUBTOTAL(109,Odchylky_v_nakladoch[Sep]) -> 117,348.00 EUR | L8: =SUBTOTAL(109,Odchylky_v_nakladoch[Okt]) -> 117,348.00 EUR | M8: =SUBTOTAL(109,Odchylky_v_nakladoch[Nov]) -> 117,348.00 EUR | N8: =SUBTOTAL(109,Odchylky_v_nakladoch[Dec]) -> 117,348.00 EUR | O8: =SUBTOTAL(109,Odchylky_v_nakladoch[ROK]) -> 695,960.00 EUR
A10: V tabuľke odchýlok v Náklady na kanceláriu začínajúcej v bunke napravo sa automaticky vypočítajú odchylky v nakladoch na kancelariu. Ďalší pokyn je v bunke A21. | B10: Náklady na kanceláriu | C10: Jan | D10: Feb | E10: Mar | F10: Apr | G10: Máj | H10: Jún | I10: Júl | J10: Aug | K10: Sep | L10: Okt | M10: Nov | N10: Dec | O10: ROK
B11: Prenájom kancelárie | C11: =INDEX(Planovane_naklady_na_kancelariu[],MATCH(INDEX(Odchylky_v_nakladoch_na_kancelariu[],ROW()-ROW(Odchylky_v_nakladoch_na_kancelariu[[#Headers],[Jan]]),1),INDEX(Planovane_naklady_na_kancelariu[],,1),0),MATCH(Odchylky_v_nakladoch_na_kancelariu[[#Headers],[Jan]],Planovane_naklady_na_kancelariu[#Headers],0))-INDEX(Skutocne_naklady_na_kancelariu[],MATCH(INDEX(Odchylky_v_nakladoch_na_kancelariu[],ROW()-ROW(Odchylky_v_nakladoch_na_kancelariu[[#Headers],[Jan]]),1),INDEX(Planovane_naklady_na_kancelariu[],,1),0),MATCH(Odchylky_v_nakladoch_na_kancelariu[[#Headers],[Jan]],Skutocne_naklady_na_kancelariu[#Headers],0)) -> 0.00 EUR | D11: =INDEX(Planovane_naklady_na_kancelariu[],MATCH(INDEX(Odchylky_v_nakladoch_na_kancelariu[],ROW()-ROW(Odchylky_v_nakladoch_na_kancelariu[[#Headers],[Feb]]),1),INDEX(Planovane_naklady_na_kancelariu[],,1),0),MATCH(Odchylky_v_nakladoch_na_kancelariu[[#Headers],[Feb]],Planovane_naklady_na_kancelariu[#Headers],0))-INDEX(Skutocne_naklady_na_kancelariu[],MATCH(INDEX(Odchylky_v_nakladoch_na_kancelariu[],ROW()-ROW(Odchylky_v_nakladoch_na_kancelariu[[#Headers],[Feb]]),1),INDEX(Planovane_naklady_na_kancelariu[],,1),0),MATCH(Odchylky_v_nakladoch_na_kancelariu[[#Headers],[Feb]],Skutocne_naklady_na_kancelariu[#Headers],0)) -> 0.00 EUR | E11: =INDEX(Planovane_naklady_na_kancelariu[],MATCH(INDEX(Odchylky_v_nakladoch_na_kancelariu[],ROW()-ROW(Odchylky_v_nakladoch_na_kancelariu[[#Headers],[Mar]]),1),INDEX(Planovane_naklady_na_kancelariu[],,1),0),MATCH(Odchylky_v_nakladoch_na_kancelariu[[#Headers],[Mar]],Planovane_naklady_na_kancelariu[#Headers],0))-INDEX(Skutocne_naklady_na_kancelariu[],MATCH(INDEX(Odchylky_v_nakladoch_na_kancelariu[],ROW()-ROW(Odchylky_v_nakladoch_na_kancelariu[[#Headers],[Mar]]),1),INDEX(Planovane_naklady_na_kancelariu[],,1),0),MATCH(Odchylky_v_nakladoch_na_kancelariu[[#Headers],[Mar]],Skutocne_naklady_na_kancelariu[#Headers],0)) -> 0.00 EUR | F11: =INDEX(Planovane_naklady_na_kancelariu[],MATCH(INDEX(Odchylky_v_nakladoch_na_kancelariu[],ROW()-ROW(Odchylky_v_nakladoch_na_kancelariu[[#Headers],[Apr]]),1),INDEX(Planovane_naklady_na_kancelariu[],,1),0),MATCH(Odchylky_v_nakladoch_na_kancelariu[[#Headers],[Apr]],Planovane_naklady_na_kancelariu[#Headers],0))-INDEX(Skutocne_naklady_na_kancelariu[],MATCH(INDEX(Odchylky_v_nakladoch_na_kancelariu[],ROW()-ROW(Odchylky_v_nakladoch_na_kancelariu[[#Headers],[Apr]]),1),INDEX(Planovane_naklady_na_kancelariu[],,1),0),MATCH(Odchylky_v_nakladoch_na_kancelariu[[#Headers],[Apr]],Skutocne_naklady_na_kancelariu[#Headers],0)) -> 0.00 EUR | G11: =INDEX(Planovane_naklady_na_kancelariu[],MATCH(INDEX(Odchylky_v_nakladoch_na_kancelariu[],ROW()-ROW(Odchylky_v_nakladoch_na_kancelariu[[#Headers],[Máj]]),1),INDEX(Planovane_naklady_na_kancelariu[],,1),0),MATCH(Odchylky_v_nakladoch_na_kancelariu[[#Headers],[Máj]],Planovane_naklady_na_kancelariu[#Headers],0))-INDEX(Skutocne_naklady_na_kancelariu[],MATCH(INDEX(Odchylky_v_nakladoch_na_kancelariu[],ROW()-ROW(Odchylky_v_nakladoch_na_kancelariu[[#Headers],[Máj]]),1),INDEX(Planovane_naklady_na_kancelariu[],,1),0),MATCH(Odchylky_v_nakladoch_na_kancelariu[[#Headers],[Máj]],Skutocne_naklady_na_kancelariu[#Headers],0)) -> 0.00 EUR | H11: =INDEX(Planovane_naklady_na_kancelariu[],MATCH(INDEX(Odchylky_v_nakladoch_na_kancelariu[],ROW()-ROW(Odchylky_v_nakladoch_na_kancelariu[[#Headers],[Jún]]),1),INDEX(Planovane_naklady_na_kancelariu[],,1),0),MATCH(Odchylky_v_nakladoch_na_kancelariu[[#Headers],[Jún]],Planovane_naklady_na_kancelariu[#Headers],0))-INDEX(Skutocne_naklady_na_kancelariu[],MATCH(INDEX(Odchylky_v_nakladoch_na_kancelariu[],ROW()-ROW(Odchylky_v_nakladoch_na_kancelariu[[#Headers],[Jún]]),1),INDEX(Planovane_naklady_na_kancelariu[],,1),0),MATCH(Odchylky_v_nakladoch_na_kancelariu[[#Headers],[Jún]],Skutocne_naklady_na_kancelariu[#Headers],0)) -> 0.00 EUR | I11: =INDEX(Planovane_naklady_na_kancelariu[],MATCH(INDEX(Odchylky_v_nakladoch_na_kancelariu[],ROW()-ROW(Odchylky_v_nakladoch_na_kancelariu[[#Headers],[Júl]]),1),INDEX(Planovane_naklady_na_kancelariu[],,1),0),MATCH(Odchylky_v_nakladoch_na_kancelariu[[#Headers],[Júl]],Planovane_naklady_na_kancelariu[#Headers],0))-INDEX(Skutocne_naklady_na_kancelariu[],MATCH(INDEX(Odchylky_v_nakladoch_na_kancelariu[],ROW()-ROW(Odchylky_v_nakladoch_na_kancelariu[[#Headers],[Júl]]),1),INDEX(Planovane_naklady_na_kancelariu[],,1),0),MATCH(Odchylky_v_nakladoch_na_kancelariu[[#Headers],[Júl]],Skutocne_naklady_na_kancelariu[#Headers],0)) -> 9,800.00 EUR | J11: =INDEX(Planovane_naklady_na_kancelariu[],MATCH(INDEX(Odchylky_v_nakladoch_na_kancelariu[],ROW()-ROW(Odchylky_v_nakladoch_na_kancelariu[[#Headers],[Aug]]),1),INDEX(Planovane_naklady_na_kancelariu[],,1),0),MATCH(Odchylky_v_nakladoch_na_kancelariu[[#Headers],[Aug]],Planovane_naklady_na_kancelariu[#Headers],0))-INDEX(Skutocne_naklady_na_kancelariu[],MATCH(INDEX(Odchylky_v_nakladoch_na_kancelariu[],ROW()-ROW(Odchylky_v_nakladoch_na_kancelariu[[#Headers],[Aug]]),1),INDEX(Planovane_naklady_na_kancelariu[],,1),0),MATCH(Odchylky_v_nakladoch_na_kancelariu[[#Headers],[Aug]],Skutocne_naklady_na_kancelariu[#Headers],0)) -> 9,800.00 EUR | K11: =INDEX(Planovane_naklady_na_kancelariu[],MATCH(INDEX(Odchylky_v_nakladoch_na_kancelariu[],ROW()-ROW(Odchylky_v_nakladoch_na_kancelariu[[#Headers],[Sep]]),1),INDEX(Planovane_naklady_na_kancelariu[],,1),0),MATCH(Odchylky_v_nakladoch_na_kancelariu[[#Headers],[Sep]],Planovane_naklady_na_kancelariu[#Headers],0))-INDEX(Skutocne_naklady_na_kancelariu[],MATCH(INDEX(Odchylky_v_nakladoch_na_kancelariu[],ROW()-ROW(Odchylky_v_nakladoch_na_kancelariu[[#Headers],[Sep]]),1),INDEX(Planovane_naklady_na_kancelariu[],,1),0),MATCH(Odchylky_v_nakladoch_na_kancelariu[[#Headers],[Sep]],Skutocne_naklady_na_kancelariu[#Headers],0)) -> 9,800.00 EUR | L11: =INDEX(Planovane_naklady_na_kancelariu[],MATCH(INDEX(Odchylky_v_nakladoch_na_kancelariu[],ROW()-ROW(Odchylky_v_nakladoch_na_kancelariu[[#Headers],[Okt]]),1),INDEX(Planovane_naklady_na_kancelariu[],,1),0),MATCH(Odchylky_v_nakladoch_na_kancelariu[[#Headers],[Okt]],Planovane_naklady_na_kancelariu[#Headers],0))-INDEX(Skutocne_naklady_na_kancelariu[],MATCH(INDEX(Odchylky_v_nakladoch_na_kancelariu[],ROW()-ROW(Odchylky_v_nakladoch_na_kancelariu[[#Headers],[Okt]]),1),INDEX(Planovane_naklady_na_kancelariu[],,1),0),MATCH(Odchylky_v_nakladoch_na_kancelariu[[#Headers],[Okt]],Skutocne_naklady_na_kancelariu[#Headers],0)) -> 9,800.00 EUR | M11: =INDEX(Planovane_naklady_na_kancelariu[],MATCH(INDEX(Odchylky_v_nakladoch_na_kancelariu[],ROW()-ROW(Odchylky_v_nakladoch_na_kancelariu[[#Headers],[Nov]]),1),INDEX(Planovane_naklady_na_kancelariu[],,1),0),MATCH(Odchylky_v_nakladoch_na_kancelariu[[#Headers],[Nov]],Planovane_naklady_na_kancelariu[#Headers],0))-INDEX(Skutocne_naklady_na_kancelariu[],MATCH(INDEX(Odchylky_v_nakladoch_na_kancelariu[],ROW()-ROW(Odchylky_v_nakladoch_na_kancelariu[[#Headers],[Nov]]),1),INDEX(Planovane_naklady_na_kancelariu[],,1),0),MATCH(Odchylky_v_nakladoch_na_kancelariu[[#Headers],[Nov]],Skutocne_naklady_na_kancelariu[#Headers],0)) -> 9,800.00 EUR | N11: =INDEX(Planovane_naklady_na_kancelariu[],MATCH(INDEX(Odchylky_v_nakladoch_na_kancelariu[],ROW()-ROW(Odchylky_v_nakladoch_na_kancelariu[[#Headers],[Dec]]),1),INDEX(Planovane_naklady_na_kancelariu[],,1),0),MATCH(Odchylky_v_nakladoch_na_kancelariu[[#Headers],[Dec]],Planovane_naklady_na_kancelariu[#Headers],0))-INDEX(Skutocne_naklady_na_kancelariu[],MATCH(INDEX(Odchylky_v_nakladoch_na_kancelariu[],ROW()-ROW(Odchylky_v_nakladoch_na_kancelariu[[#Headers],[Dec]]),1),INDEX(Planovane_naklady_na_kancelariu[],,1),0),MATCH(Odchylky_v_nakladoch_na_kancelariu[[#Headers],[Dec]],Skutocne_naklady_na_kancelariu[#Headers],0)) -> 9,800.00 EUR | O11: =SUM(Odchylky_v_nakladoch_na_kancelariu[[#This Row],[Jan]:[Dec]]) -> 58,800.00 EUR
B12: Plyn | C12: =INDEX(Planovane_naklady_na_kancelariu[],MATCH(INDEX(Odchylky_v_nakladoch_na_kancelariu[],ROW()-ROW(Odchylky_v_nakladoch_na_kancelariu[[#Headers],[Jan]]),1),INDEX(Planovane_naklady_na_kancelariu[],,1),0),MATCH(Odchylky_v_nakladoch_na_kancelariu[[#Headers],[Jan]],Planovane_naklady_na_kancelariu[#Headers],0))-INDEX(Skutocne_naklady_na_kancelariu[],MATCH(INDEX(Odchylky_v_nakladoch_na_kancelariu[],ROW()-ROW(Odchylky_v_nakladoch_na_kancelariu[[#Headers],[Jan]]),1),INDEX(Planovane_naklady_na_kancelariu[],,1),0),MATCH(Odchylky_v_nakladoch_na_kancelariu[[#Headers],[Jan]],Skutocne_naklady_na_kancelariu[#Headers],0)) -> -4.00 EUR | D12: =INDEX(Planovane_naklady_na_kancelariu[],MATCH(INDEX(Odchylky_v_nakladoch_na_kancelariu[],ROW()-ROW(Odchylky_v_nakladoch_na_kancelariu[[#Headers],[Feb]]),1),INDEX(Planovane_naklady_na_kancelariu[],,1),0),MATCH(Odchylky_v_nakladoch_na_kancelariu[[#Headers],[Feb]],Planovane_naklady_na_kancelariu[#Headers],0))-INDEX(Skutocne_naklady_na_kancelariu[],MATCH(INDEX(Odchylky_v_nakladoch_na_kancelariu[],ROW()-ROW(Odchylky_v_nakladoch_na_kancelariu[[#Headers],[Feb]]),1),INDEX(Planovane_naklady_na_kancelariu[],,1),0),MATCH(Odchylky_v_nakladoch_na_kancelariu[[#Headers],[Feb]],Skutocne_naklady_na_kancelariu[#Headers],0)) -> -30.00 EUR | E12: =INDEX(Planovane_naklady_na_kancelariu[],MATCH(INDEX(Odchylky_v_nakladoch_na_kancelariu[],ROW()-ROW(Odchylky_v_nakladoch_na_kancelariu[[#Headers],[Mar]]),1),INDEX(Planovane_naklady_na_kancelariu[],,1),0),MATCH(Odchylky_v_nakladoch_na_kancelariu[[#Headers],[Mar]],Planovane_naklady_na_kancelariu[#Headers],0))-INDEX(Skutocne_naklady_na_kancelariu[],MATCH(INDEX(Odchylky_v_nakladoch_na_kancelariu[],ROW()-ROW(Odchylky_v_nakladoch_na_kancelariu[[#Headers],[Mar]]),1),INDEX(Planovane_naklady_na_kancelariu[],,1),0),MATCH(Odchylky_v_nakladoch_na_kancelariu[[#Headers],[Mar]],Skutocne_naklady_na_kancelariu[#Headers],0)) -> 15.00 EUR | F12: =INDEX(Planovane_naklady_na_kancelariu[],MATCH(INDEX(Odchylky_v_nakladoch_na_kancelariu[],ROW()-ROW(Odchylky_v_nakladoch_na_kancelariu[[#Headers],[Apr]]),1),INDEX(Planovane_naklady_na_kancelariu[],,1),0),MATCH(Odchylky_v_nakladoch_na_kancelariu[[#Headers],[Apr]],Planovane_naklady_na_kancelariu[#Headers],0))-INDEX(Skutocne_naklady_na_kancelariu[],MATCH(INDEX(Odchylky_v_nakladoch_na_kancelariu[],ROW()-ROW(Odchylky_v_nakladoch_na_kancelariu[[#Headers],[Apr]]),1),INDEX(Planovane_naklady_na_kancelariu[],,1),0),MATCH(Odchylky_v_nakladoch_na_kancelariu[[#Headers],[Apr]],Skutocne_naklady_na_kancelariu[#Headers],0)) -> -130.00 EUR | G12: =INDEX(Planovane_naklady_na_kancelariu[],MATCH(INDEX(Odchylky_v_nakladoch_na_kancelariu[],ROW()-ROW(Odchylky_v_nakladoch_na_kancelariu[[#Headers],[Máj]]),1),INDEX(Planovane_naklady_na_kancelariu[],,1),0),MATCH(Odchylky_v_nakladoch_na_kancelariu[[#Headers],[Máj]],Planovane_naklady_na_kancelariu[#Headers],0))-INDEX(Skutocne_naklady_na_kancelariu[],MATCH(INDEX(Odchylky_v_nakladoch_na_kancelariu[],ROW()-ROW(Odchylky_v_nakladoch_na_kancelariu[[#Headers],[Máj]]),1),INDEX(Planovane_naklady_na_kancelariu[],,1),0),MATCH(Odchylky_v_nakladoch_na_kancelariu[[#Headers],[Máj]],Skutocne_naklady_na_kancelariu[#Headers],0)) -> 13.00 EUR | H12: =INDEX(Planovane_naklady_na_kancelariu[],MATCH(INDEX(Odchylky_v_nakladoch_na_kancelariu[],ROW()-ROW(Odchylky_v_nakladoch_na_kancelariu[[#Headers],[Jún]]),1),INDEX(Planovane_naklady_na_kancelariu[],,1),0),MATCH(Odchylky_v_nakladoch_na_kancelariu[[#Headers],[Jún]],Planovane_naklady_na_kancelariu[#Headers],0))-INDEX(Skutocne_naklady_na_kancelariu[],MATCH(INDEX(Odchylky_v_nakladoch_na_kancelariu[],ROW()-ROW(Odchylky_v_nakladoch_na_kancelariu[[#Headers],[Jún]]),1),INDEX(Planovane_naklady_na_kancelariu[],,1),0),MATCH(Odchylky_v_nakladoch_na_kancelariu[[#Headers],[Jún]],Skutocne_naklady_na_kancelariu[#Headers],0)) -> 12.00 EUR | I12: =INDEX(Planovane_naklady_na_kancelariu[],MATCH(INDEX(Odchylky_v_nakladoch_na_kancelariu[],ROW()-ROW(Odchylky_v_nakladoch_na_kancelariu[[#Headers],[Júl]]),1),INDEX(Planovane_naklady_na_kancelariu[],,1),0),MATCH(Odchylky_v_nakladoch_na_kancelariu[[#Headers],[Júl]],Planovane_naklady_na_kancelariu[#Headers],0))-INDEX(Skutocne_naklady_na_kancelariu[],MATCH(INDEX(Odchylky_v_nakladoch_na_kancelariu[],ROW()-ROW(Odchylky_v_nakladoch_na_kancelariu[[#Headers],[Júl]]),1),INDEX(Planovane_naklady_na_kancelariu[],,1),0),MATCH(Odchylky_v_nakladoch_na_kancelariu[[#Headers],[Júl]],Skutocne_naklady_na_kancelariu[#Headers],0)) -> 100.00 EUR | J12: =INDEX(Planovane_naklady_na_kancelariu[],MATCH(INDEX(Odchylky_v_nakladoch_na_kancelariu[],ROW()-ROW(Odchylky_v_nakladoch_na_kancelariu[[#Headers],[Aug]]),1),INDEX(Planovane_naklady_na_kancelariu[],,1),0),MATCH(Odchylky_v_nakladoch_na_kancelariu[[#Headers],[Aug]],Planovane_naklady_na_kancelariu[#Headers],0))-INDEX(Skutocne_naklady_na_kancelariu[],MATCH(INDEX(Odchylky_v_nakladoch_na_kancelariu[],ROW()-ROW(Odchylky_v_nakladoch_na_kancelariu[[#Headers],[Aug]]),1),INDEX(Planovane_naklady_na_kancelariu[],,1),0),MATCH(Odchylky_v_nakladoch_na_kancelariu[[#Headers],[Aug]],Skutocne_naklady_na_kancelariu[#Headers],0)) -> 100.00 EUR | K12: =INDEX(Planovane_naklady_na_kancelariu[],MATCH(INDEX(Odchylky_v_nakladoch_na_kancelariu[],ROW()-ROW(Odchylky_v_nakladoch_na_kancelariu[[#Headers],[Sep]]),1),INDEX(Planovane_naklady_na_kancelariu[],,1),0),MATCH(Odchylky_v_nakladoch_na_kancelariu[[#Headers],[Sep]],Planovane_naklady_na_kancelariu[#Headers],0))-INDEX(Skutocne_naklady_na_kancelariu[],MATCH(INDEX(Odchylky_v_nakladoch_na_kancelariu[],ROW()-ROW(Odchylky_v_nakladoch_na_kancelariu[[#Headers],[Sep]]),1),INDEX(Planovane_naklady_na_kancelariu[],,1),0),MATCH(Odchylky_v_nakladoch_na_kancelariu[[#Headers],[Sep]],Skutocne_naklady_na_kancelariu[#Headers],0)) -> 100.00 EUR | L12: =INDEX(Planovane_naklady_na_kancelariu[],MATCH(INDEX(Odchylky_v_nakladoch_na_kancelariu[],ROW()-ROW(Odchylky_v_nakladoch_na_kancelariu[[#Headers],[Okt]]),1),INDEX(Planovane_naklady_na_kancelariu[],,1),0),MATCH(Odchylky_v_nakladoch_na_kancelariu[[#Headers],[Okt]],Planovane_naklady_na_kancelariu[#Headers],0))-INDEX(Skutocne_naklady_na_kancelariu[],MATCH(INDEX(Odchylky_v_nakladoch_na_kancelariu[],ROW()-ROW(Odchylky_v_nakladoch_na_kancelariu[[#Headers],[Okt]]),1),INDEX(Planovane_naklady_na_kancelariu[],,1),0),MATCH(Odchylky_v_nakladoch_na_kancelariu[[#Headers],[Okt]],Skutocne_naklady_na_kancelariu[#Headers],0)) -> 100.00 EUR | M12: =INDEX(Planovane_naklady_na_kancelariu[],MATCH(INDEX(Odchylky_v_nakladoch_na_kancelariu[],ROW()-ROW(Odchylky_v_nakladoch_na_kancelariu[[#Headers],[Nov]]),1),INDEX(Planovane_naklady_na_kancelariu[],,1),0),MATCH(Odchylky_v_nakladoch_na_kancelariu[[#Headers],[Nov]],Planovane_naklady_na_kancelariu[#Headers],0))-INDEX(Skutocne_naklady_na_kancelariu[],MATCH(INDEX(Odchylky_v_nakladoch_na_kancelariu[],ROW()-ROW(Odchylky_v_nakladoch_na_kancelariu[[#Headers],[Nov]]),1),INDEX(Planovane_naklady_na_kancelariu[],,1),0),MATCH(Odchylky_v_nakladoch_na_kancelariu[[#Headers],[Nov]],Skutocne_naklady_na_kancelariu[#Headers],0)) -> 400.00 EUR | N12: =INDEX(Planovane_naklady_na_kancelariu[],MATCH(INDEX(Odchylky_v_nakladoch_na_kancelariu[],ROW()-ROW(Odchylky_v_nakladoch_na_kancelariu[[#Headers],[Dec]]),1),INDEX(Planovane_naklady_na_kancelariu[],,1),0),MATCH(Odchylky_v_nakladoch_na_kancelariu[[#Headers],[Dec]],Planovane_naklady_na_kancelariu[#Headers],0))-INDEX(Skutocne_naklady_na_kancelariu[],MATCH(INDEX(Odchylky_v_nakladoch_na_kancelariu[],ROW()-ROW(Odchylky_v_nakladoch_na_kancelariu[[#Headers],[Dec]]),1),INDEX(Planovane_naklady_na_kancelariu[],,1),0),MATCH(Odchylky_v_nakladoch_na_kancelariu[[#Headers],[Dec]],Skutocne_naklady_na_kancelariu[#Headers],0)) -> 400.00 EUR | O12: =SUM(Odchylky_v_nakladoch_na_kancelariu[[#This Row],[Jan]:[Dec]]) -> 1,076.00 EUR
B13: Elektrina | C13: =INDEX(Planovane_naklady_na_kancelariu[],MATCH(INDEX(Odchylky_v_nakladoch_na_kancelariu[],ROW()-ROW(Odchylky_v_nakladoch_na_kancelariu[[#Headers],[Jan]]),1),INDEX(Planovane_naklady_na_kancelariu[],,1),0),MATCH(Odchylky_v_nakladoch_na_kancelariu[[#Headers],[Jan]],Planovane_naklady_na_kancelariu[#Headers],0))-INDEX(Skutocne_naklady_na_kancelariu[],MATCH(INDEX(Odchylky_v_nakladoch_na_kancelariu[],ROW()-ROW(Odchylky_v_nakladoch_na_kancelariu[[#Headers],[Jan]]),1),INDEX(Planovane_naklady_na_kancelariu[],,1),0),MATCH(Odchylky_v_nakladoch_na_kancelariu[[#Headers],[Jan]],Skutocne_naklady_na_kancelariu[#Headers],0)) -> 12.00 EUR | D13: =INDEX(Planovane_naklady_na_kancelariu[],MATCH(INDEX(Odchylky_v_nakladoch_na_kancelariu[],ROW()-ROW(Odchylky_v_nakladoch_na_kancelariu[[#Headers],[Feb]]),1),INDEX(Planovane_naklady_na_kancelariu[],,1),0),MATCH(Odchylky_v_nakladoch_na_kancelariu[[#Headers],[Feb]],Planovane_naklady_na_kancelariu[#Headers],0))-INDEX(Skutocne_naklady_na_kancelariu[],MATCH(INDEX(Odchylky_v_nakladoch_na_kancelariu[],ROW()-ROW(Odchylky_v_nakladoch_na_kancelariu[[#Headers],[Feb]]),1),INDEX(Planovane_naklady_na_kancelariu[],,1),0),MATCH(Odchylky_v_nakladoch_na_kancelariu[[#Headers],[Feb]],Skutocne_naklady_na_kancelariu[#Headers],0)) -> 22.00 EUR | E13: =INDEX(Planovane_naklady_na_kancelariu[],MATCH(INDEX(Odchylky_v_nakladoch_na_kancelariu[],ROW()-ROW(Odchylky_v_nakladoch_na_kancelariu[[#Headers],[Mar]]),1),INDEX(Planovane_naklady_na_kancelariu[],,1),0),MATCH(Odchylky_v_nakladoch_na_kancelariu[[#Headers],[Mar]],Planovane_naklady_na_kancelariu[#Headers],0))-INDEX(Skutocne_naklady_na_kancelariu[],MATCH(INDEX(Odchylky_v_nakladoch_na_kancelariu[],ROW()-ROW(Odchylky_v_nakladoch_na_kancelariu[[#Headers],[Mar]]),1),INDEX(Planovane_naklady_na_kancelariu[],,1),0),MATCH(Odchylky_v_nakladoch_na_kancelariu[[#Headers],[Mar]],Skutocne_naklady_na_kancelariu[#Headers],0)) -> 32.00 EUR | F13: =INDEX(Planovane_naklady_na_kancelariu[],MATCH(INDEX(Odchylky_v_nakladoch_na_kancelariu[],ROW()-ROW(Odchylky_v_nakladoch_na_kancelariu[[#Headers],[Apr]]),1),INDEX(Planovane_naklady_na_kancelariu[],,1),0),MATCH(Odchylky_v_nakladoch_na_kancelariu[[#Headers],[Apr]],Planovane_naklady_na_kancelariu[#Headers],0))-INDEX(Skutocne_naklady_na_kancelariu[],MATCH(INDEX(Odchylky_v_nakladoch_na_kancelariu[],ROW()-ROW(Odchylky_v_nakladoch_na_kancelariu[[#Headers],[Apr]]),1),INDEX(Planovane_naklady_na_kancelariu[],,1),0),MATCH(Odchylky_v_nakladoch_na_kancelariu[[#Headers],[Apr]],Skutocne_naklady_na_kancelariu[#Headers],0)) -> 1.00 EUR | G13: =INDEX(Planovane_naklady_na_kancelariu[],MATCH(INDEX(Odchylky_v_nakladoch_na_kancelariu[],ROW()-ROW(Odchylky_v_nakladoch_na_kancelariu[[#Headers],[Máj]]),1),INDEX(Planovane_naklady_na_kancelariu[],,1),0),MATCH(Odchylky_v_nakladoch_na_kancelariu[[#Headers],[Máj]],Planovane_naklady_na_kancelariu[#Headers],0))-INDEX(Skutocne_naklady_na_kancelariu[],MATCH(INDEX(Odchylky_v_nakladoch_na_kancelariu[],ROW()-ROW(Odchylky_v_nakladoch_na_kancelariu[[#Headers],[Máj]]),1),INDEX(Planovane_naklady_na_kancelariu[],,1),0),MATCH(Odchylky_v_nakladoch_na_kancelariu[[#Headers],[Máj]],Skutocne_naklady_na_kancelariu[#Headers],0)) -> -6.00 EUR | H13: =INDEX(Planovane_naklady_na_kancelariu[],MATCH(INDEX(Odchylky_v_nakladoch_na_kancelariu[],ROW()-ROW(Odchylky_v_nakladoch_na_kancelariu[[#Headers],[Jún]]),1),INDEX(Planovane_naklady_na_kancelariu[],,1),0),MATCH(Odchylky_v_nakladoch_na_kancelariu[[#Headers],[Jún]],Planovane_naklady_na_kancelariu[#Headers],0))-INDEX(Skutocne_naklady_na_kancelariu[],MATCH(INDEX(Odchylky_v_nakladoch_na_kancelariu[],ROW()-ROW(Odchylky_v_nakladoch_na_kancelariu[[#Headers],[Jún]]),1),INDEX(Planovane_naklady_na_kancelariu[],,1),0),MATCH(Odchylky_v_nakladoch_na_kancelariu[[#Headers],[Jún]],Skutocne_naklady_na_kancelariu[#Headers],0)) -> 10.00 EUR | I13: =INDEX(Planovane_naklady_na_kancelariu[],MATCH(INDEX(Odchylky_v_nakladoch_na_kancelariu[],ROW()-ROW(Odchylky_v_nakladoch_na_kancelariu[[#Headers],[Júl]]),1),INDEX(Planovane_naklady_na_kancelariu[],,1),0),MATCH(Odchylky_v_nakladoch_na_kancelariu[[#Headers],[Júl]],Planovane_naklady_na_kancelariu[#Headers],0))-INDEX(Skutocne_naklady_na_kancelariu[],MATCH(INDEX(Odchylky_v_nakladoch_na_kancelariu[],ROW()-ROW(Odchylky_v_nakladoch_na_kancelariu[[#Headers],[Júl]]),1),INDEX(Planovane_naklady_na_kancelariu[],,1),0),MATCH(Odchylky_v_nakladoch_na_kancelariu[[#Headers],[Júl]],Skutocne_naklady_na_kancelariu[#Headers],0)) -> 300.00 EUR | J13: =INDEX(Planovane_naklady_na_kancelariu[],MATCH(INDEX(Odchylky_v_nakladoch_na_kancelariu[],ROW()-ROW(Odchylky_v_nakladoch_na_kancelariu[[#Headers],[Aug]]),1),INDEX(Planovane_naklady_na_kancelariu[],,1),0),MATCH(Odchylky_v_nakladoch_na_kancelariu[[#Headers],[Aug]],Planovane_naklady_na_kancelariu[#Headers],0))-INDEX(Skutocne_naklady_na_kancelariu[],MATCH(INDEX(Odchylky_v_nakladoch_na_kancelariu[],ROW()-ROW(Odchylky_v_nakladoch_na_kancelariu[[#Headers],[Aug]]),1),INDEX(Planovane_naklady_na_kancelariu[],,1),0),MATCH(Odchylky_v_nakladoch_na_kancelariu[[#Headers],[Aug]],Skutocne_naklady_na_kancelariu[#Headers],0)) -> 300.00 EUR | K13: =INDEX(Planovane_naklady_na_kancelariu[],MATCH(INDEX(Odchylky_v_nakladoch_na_kancelariu[],ROW()-ROW(Odchylky_v_nakladoch_na_kancelariu[[#Headers],[Sep]]),1),INDEX(Planovane_naklady_na_kancelariu[],,1),0),MATCH(Odchylky_v_nakladoch_na_kancelariu[[#Headers],[Sep]],Planovane_naklady_na_kancelariu[#Headers],0))-INDEX(Skutocne_naklady_na_kancelariu[],MATCH(INDEX(Odchylky_v_nakladoch_na_kancelariu[],ROW()-ROW(Odchylky_v_nakladoch_na_kancelariu[[#Headers],[Sep]]),1),INDEX(Planovane_naklady_na_kancelariu[],,1),0),MATCH(Odchylky_v_nakladoch_na_kancelariu[[#Headers],[Sep]],Skutocne_naklady_na_kancelariu[#Headers],0)) -> 300.00 EUR | L13: =INDEX(Planovane_naklady_na_kancelariu[],MATCH(INDEX(Odchylky_v_nakladoch_na_kancelariu[],ROW()-ROW(Odchylky_v_nakladoch_na_kancelariu[[#Headers],[Okt]]),1),INDEX(Planovane_naklady_na_kancelariu[],,1),0),MATCH(Odchylky_v_nakladoch_na_kancelariu[[#Headers],[Okt]],Planovane_naklady_na_kancelariu[#Headers],0))-INDEX(Skutocne_naklady_na_kancelariu[],MATCH(INDEX(Odchylky_v_nakladoch_na_kancelariu[],ROW()-ROW(Odchylky_v_nakladoch_na_kancelariu[[#Headers],[Okt]]),1),INDEX(Planovane_naklady_na_kancelariu[],,1),0),MATCH(Odchylky_v_nakladoch_na_kancelariu[[#Headers],[Okt]],Skutocne_naklady_na_kancelariu[#Headers],0)) -> 300.00 EUR | M13: =INDEX(Planovane_naklady_na_kancelariu[],MATCH(INDEX(Odchylky_v_nakladoch_na_kancelariu[],ROW()-ROW(Odchylky_v_nakladoch_na_kancelariu[[#Headers],[Nov]]),1),INDEX(Planovane_naklady_na_kancelariu[],,1),0),MATCH(Odchylky_v_nakladoch_na_kancelariu[[#Headers],[Nov]],Planovane_naklady_na_kancelariu[#Headers],0))-INDEX(Skutocne_naklady_na_kancelariu[],MATCH(INDEX(Odchylky_v_nakladoch_na_kancelariu[],ROW()-ROW(Odchylky_v_nakladoch_na_kancelariu[[#Headers],[Nov]]),1),INDEX(Planovane_naklady_na_kancelariu[],,1),0),MATCH(Odchylky_v_nakladoch_na_kancelariu[[#Headers],[Nov]],Skutocne_naklady_na_kancelariu[#Headers],0)) -> 300.00 EUR | N13: =INDEX(Planovane_naklady_na_kancelariu[],MATCH(INDEX(Odchylky_v_nakladoch_na_kancelariu[],ROW()-ROW(Odchylky_v_nakladoch_na_kancelariu[[#Headers],[Dec]]),1),INDEX(Planovane_naklady_na_kancelariu[],,1),0),MATCH(Odchylky_v_nakladoch_na_kancelariu[[#Headers],[Dec]],Planovane_naklady_na_kancelariu[#Headers],0))-INDEX(Skutocne_naklady_na_kancelariu[],MATCH(INDEX(Odchylky_v_nakladoch_na_kancelariu[],ROW()-ROW(Odchylky_v_nakladoch_na_kancelariu[[#Headers],[Dec]]),1),INDEX(Planovane_naklady_na_kancelariu[],,1),0),MATCH(Odchylky_v_nakladoch_na_kancelariu[[#Headers],[Dec]],Skutocne_naklady_na_kancelariu[#Headers],0)) -> 300.00 EUR | O13: =SUM(Odchylky_v_nakladoch_na_kancelariu[[#This Row],[Jan]:[Dec]]) -> 1,871.00 EUR
B14: Voda | C14: =INDEX(Planovane_naklady_na_kancelariu[],MATCH(INDEX(Odchylky_v_nakladoch_na_kancelariu[],ROW()-ROW(Odchylky_v_nakladoch_na_kancelariu[[#Headers],[Jan]]),1),INDEX(Planovane_naklady_na_kancelariu[],,1),0),MATCH(Odchylky_v_nakladoch_na_kancelariu[[#Headers],[Jan]],Planovane_naklady_na_kancelariu[#Headers],0))-INDEX(Skutocne_naklady_na_kancelariu[],MATCH(INDEX(Odchylky_v_nakladoch_na_kancelariu[],ROW()-ROW(Odchylky_v_nakladoch_na_kancelariu[[#Headers],[Jan]]),1),INDEX(Planovane_naklady_na_kancelariu[],,1),0),MATCH(Odchylky_v_nakladoch_na_kancelariu[[#Headers],[Jan]],Skutocne_naklady_na_kancelariu[#Headers],0)) -> 5.00 EUR | D14: =INDEX(Planovane_naklady_na_kancelariu[],MATCH(INDEX(Odchylky_v_nakladoch_na_kancelariu[],ROW()-ROW(Odchylky_v_nakladoch_na_kancelariu[[#Headers],[Feb]]),1),INDEX(Planovane_naklady_na_kancelariu[],,1),0),MATCH(Odchylky_v_nakladoch_na_kancelariu[[#Headers],[Feb]],Planovane_naklady_na_kancelariu[#Headers],0))-INDEX(Skutocne_naklady_na_kancelariu[],MATCH(INDEX(Odchylky_v_nakladoch_na_kancelariu[],ROW()-ROW(Odchylky_v_nakladoch_na_kancelariu[[#Headers],[Feb]]),1),INDEX(Planovane_naklady_na_kancelariu[],,1),0),MATCH(Odchylky_v_nakladoch_na_kancelariu[[#Headers],[Feb]],Skutocne_naklady_na_kancelariu[#Headers],0)) -> 7.00 EUR | E14: =INDEX(Planovane_naklady_na_kancelariu[],MATCH(INDEX(Odchylky_v_nakladoch_na_kancelariu[],ROW()-ROW(Odchylky_v_nakladoch_na_kancelariu[[#Headers],[Mar]]),1),INDEX(Planovane_naklady_na_kancelariu[],,1),0),MATCH(Odchylky_v_nakladoch_na_kancelariu[[#Headers],[Mar]],Planovane_naklady_na_kancelariu[#Headers],0))-INDEX(Skutocne_naklady_na_kancelariu[],MATCH(INDEX(Odchylky_v_nakladoch_na_kancelariu[],ROW()-ROW(Odchylky_v_nakladoch_na_kancelariu[[#Headers],[Mar]]),1),INDEX(Planovane_naklady_na_kancelariu[],,1),0),MATCH(Odchylky_v_nakladoch_na_kancelariu[[#Headers],[Mar]],Skutocne_naklady_na_kancelariu[#Headers],0)) -> 6.00 EUR | F14: =INDEX(Planovane_naklady_na_kancelariu[],MATCH(INDEX(Odchylky_v_nakladoch_na_kancelariu[],ROW()-ROW(Odchylky_v_nakladoch_na_kancelariu[[#Headers],[Apr]]),1),INDEX(Planovane_naklady_na_kancelariu[],,1),0),MATCH(Odchylky_v_nakladoch_na_kancelariu[[#Headers],[Apr]],Planovane_naklady_na_kancelariu[#Headers],0))-INDEX(Skutocne_naklady_na_kancelariu[],MATCH(INDEX(Odchylky_v_nakladoch_na_kancelariu[],ROW()-ROW(Odchylky_v_nakladoch_na_kancelariu[[#Headers],[Apr]]),1),INDEX(Planovane_naklady_na_kancelariu[],,1),0),MATCH(Odchylky_v_nakladoch_na_kancelariu[[#Headers],[Apr]],Skutocne_naklady_na_kancelariu[#Headers],0)) -> 4.00 EUR | G14: =INDEX(Planovane_naklady_na_kancelariu[],MATCH(INDEX(Odchylky_v_nakladoch_na_kancelariu[],ROW()-ROW(Odchylky_v_nakladoch_na_kancelariu[[#Headers],[Máj]]),1),INDEX(Planovane_naklady_na_kancelariu[],,1),0),MATCH(Odchylky_v_nakladoch_na_kancelariu[[#Headers],[Máj]],Planovane_naklady_na_kancelariu[#Headers],0))-INDEX(Skutocne_naklady_na_kancelariu[],MATCH(INDEX(Odchylky_v_nakladoch_na_kancelariu[],ROW()-ROW(Odchylky_v_nakladoch_na_kancelariu[[#Headers],[Máj]]),1),INDEX(Planovane_naklady_na_kancelariu[],,1),0),MATCH(Odchylky_v_nakladoch_na_kancelariu[[#Headers],[Máj]],Skutocne_naklady_na_kancelariu[#Headers],0)) -> 6.00 EUR | H14: =INDEX(Planovane_naklady_na_kancelariu[],MATCH(INDEX(Odchylky_v_nakladoch_na_kancelariu[],ROW()-ROW(Odchylky_v_nakladoch_na_kancelariu[[#Headers],[Jún]]),1),INDEX(Planovane_naklady_na_kancelariu[],,1),0),MATCH(Odchylky_v_nakladoch_na_kancelariu[[#Headers],[Jún]],Planovane_naklady_na_kancelariu[#Headers],0))-INDEX(Skutocne_naklady_na_kancelariu[],MATCH(INDEX(Odchylky_v_nakladoch_na_kancelariu[],ROW()-ROW(Odchylky_v_nakladoch_na_kancelariu[[#Headers],[Jún]]),1),INDEX(Planovane_naklady_na_kancelariu[],,1),0),MATCH(Odchylky_v_nakladoch_na_kancelariu[[#Headers],[Jún]],Skutocne_naklady_na_kancelariu[#Headers],0)) -> 4.00 EUR | I14: =INDEX(Planovane_naklady_na_kancelariu[],MATCH(INDEX(Odchylky_v_nakladoch_na_kancelariu[],ROW()-ROW(Odchylky_v_nakladoch_na_kancelariu[[#Headers],[Júl]]),1),INDEX(Planovane_naklady_na_kancelariu[],,1),0),MATCH(Odchylky_v_nakladoch_na_kancelariu[[#Headers],[Júl]],Planovane_naklady_na_kancelariu[#Headers],0))-INDEX(Skutocne_naklady_na_kancelariu[],MATCH(INDEX(Odchylky_v_nakladoch_na_kancelariu[],ROW()-ROW(Odchylky_v_nakladoch_na_kancelariu[[#Headers],[Júl]]),1),INDEX(Planovane_naklady_na_kancelariu[],,1),0),MATCH(Odchylky_v_nakladoch_na_kancelariu[[#Headers],[Júl]],Skutocne_naklady_na_kancelariu[#Headers],0)) -> 40.00 EUR | J14: =INDEX(Planovane_naklady_na_kancelariu[],MATCH(INDEX(Odchylky_v_nakladoch_na_kancelariu[],ROW()-ROW(Odchylky_v_nakladoch_na_kancelariu[[#Headers],[Aug]]),1),INDEX(Planovane_naklady_na_kancelariu[],,1),0),MATCH(Odchylky_v_nakladoch_na_kancelariu[[#Headers],[Aug]],Planovane_naklady_na_kancelariu[#Headers],0))-INDEX(Skutocne_naklady_na_kancelariu[],MATCH(INDEX(Odchylky_v_nakladoch_na_kancelariu[],ROW()-ROW(Odchylky_v_nakladoch_na_kancelariu[[#Headers],[Aug]]),1),INDEX(Planovane_naklady_na_kancelariu[],,1),0),MATCH(Odchylky_v_nakladoch_na_kancelariu[[#Headers],[Aug]],Skutocne_naklady_na_kancelariu[#Headers],0)) -> 40.00 EUR | K14: =INDEX(Planovane_naklady_na_kancelariu[],MATCH(INDEX(Odchylky_v_nakladoch_na_kancelariu[],ROW()-ROW(Odchylky_v_nakladoch_na_kancelariu[[#Headers],[Sep]]),1),INDEX(Planovane_naklady_na_kancelariu[],,1),0),MATCH(Odchylky_v_nakladoch_na_kancelariu[[#Headers],[Sep]],Planovane_naklady_na_kancelariu[#Headers],0))-INDEX(Skutocne_naklady_na_kancelariu[],MATCH(INDEX(Odchylky_v_nakladoch_na_kancelariu[],ROW()-ROW(Odchylky_v_nakladoch_na_kancelariu[[#Headers],[Sep]]),1),INDEX(Planovane_naklady_na_kancelariu[],,1),0),MATCH(Odchylky_v_nakladoch_na_kancelariu[[#Headers],[Sep]],Skutocne_naklady_na_kancelariu[#Headers],0)) -> 40.00 EUR | L14: =INDEX(Planovane_naklady_na_kancelariu[],MATCH(INDEX(Odchylky_v_nakladoch_na_kancelariu[],ROW()-ROW(Odchylky_v_nakladoch_na_kancelariu[[#Headers],[Okt]]),1),INDEX(Planovane_naklady_na_kancelariu[],,1),0),MATCH(Odchylky_v_nakladoch_na_kancelariu[[#Headers],[Okt]],Planovane_naklady_na_kancelariu[#Headers],0))-INDEX(Skutocne_naklady_na_kancelariu[],MATCH(INDEX(Odchylky_v_nakladoch_na_kancelariu[],ROW()-ROW(Odchylky_v_nakladoch_na_kancelariu[[#Headers],[Okt]]),1),INDEX(Planovane_naklady_na_kancelariu[],,1),0),MATCH(Odchylky_v_nakladoch_na_kancelariu[[#Headers],[Okt]],Skutocne_naklady_na_kancelariu[#Headers],0)) -> 40.00 EUR | M14: =INDEX(Planovane_naklady_na_kancelariu[],MATCH(INDEX(Odchylky_v_nakladoch_na_kancelariu[],ROW()-ROW(Odchylky_v_nakladoch_na_kancelariu[[#Headers],[Nov]]),1),INDEX(Planovane_naklady_na_kancelariu[],,1),0),MATCH(Odchylky_v_nakladoch_na_kancelariu[[#Headers],[Nov]],Planovane_naklady_na_kancelariu[#Headers],0))-INDEX(Skutocne_naklady_na_kancelariu[],MATCH(INDEX(Odchylky_v_nakladoch_na_kancelariu[],ROW()-ROW(Odchylky_v_nakladoch_na_kancelariu[[#Headers],[Nov]]),1),INDEX(Planovane_naklady_na_kancelariu[],,1),0),MATCH(Odchylky_v_nakladoch_na_kancelariu[[#Headers],[Nov]],Skutocne_naklady_na_kancelariu[#Headers],0)) -> 40.00 EUR | N14: =INDEX(Planovane_naklady_na_kancelariu[],MATCH(INDEX(Odchylky_v_nakladoch_na_kancelariu[],ROW()-ROW(Odchylky_v_nakladoch_na_kancelariu[[#Headers],[Dec]]),1),INDEX(Planovane_naklady_na_kancelariu[],,1),0),MATCH(Odchylky_v_nakladoch_na_kancelariu[[#Headers],[Dec]],Planovane_naklady_na_kancelariu[#Headers],0))-INDEX(Skutocne_naklady_na_kancelariu[],MATCH(INDEX(Odchylky_v_nakladoch_na_kancelariu[],ROW()-ROW(Odchylky_v_nakladoch_na_kancelariu[[#Headers],[Dec]]),1),INDEX(Planovane_naklady_na_kancelariu[],,1),0),MATCH(Odchylky_v_nakladoch_na_kancelariu[[#Headers],[Dec]],Skutocne_naklady_na_kancelariu[#Headers],0)) -> 40.00 EUR | O14: =SUM(Odchylky_v_nakladoch_na_kancelariu[[#This Row],[Jan]:[Dec]]) -> 272.00 EUR
B15: Telefón | C15: =INDEX(Planovane_naklady_na_kancelariu[],MATCH(INDEX(Odchylky_v_nakladoch_na_kancelariu[],ROW()-ROW(Odchylky_v_nakladoch_na_kancelariu[[#Headers],[Jan]]),1),INDEX(Planovane_naklady_na_kancelariu[],,1),0),MATCH(Odchylky_v_nakladoch_na_kancelariu[[#Headers],[Jan]],Planovane_naklady_na_kancelariu[#Headers],0))-INDEX(Skutocne_naklady_na_kancelariu[],MATCH(INDEX(Odchylky_v_nakladoch_na_kancelariu[],ROW()-ROW(Odchylky_v_nakladoch_na_kancelariu[[#Headers],[Jan]]),1),INDEX(Planovane_naklady_na_kancelariu[],,1),0),MATCH(Odchylky_v_nakladoch_na_kancelariu[[#Headers],[Jan]],Skutocne_naklady_na_kancelariu[#Headers],0)) -> 26.00 EUR | D15: =INDEX(Planovane_naklady_na_kancelariu[],MATCH(INDEX(Odchylky_v_nakladoch_na_kancelariu[],ROW()-ROW(Odchylky_v_nakladoch_na_kancelariu[[#Headers],[Feb]]),1),INDEX(Planovane_naklady_na_kancelariu[],,1),0),MATCH(Odchylky_v_nakladoch_na_kancelariu[[#Headers],[Feb]],Planovane_naklady_na_kancelariu[#Headers],0))-INDEX(Skutocne_naklady_na_kancelariu[],MATCH(INDEX(Odchylky_v_nakladoch_na_kancelariu[],ROW()-ROW(Odchylky_v_nakladoch_na_kancelariu[[#Headers],[Feb]]),1),INDEX(Planovane_naklady_na_kancelariu[],,1),0),MATCH(Odchylky_v_nakladoch_na_kancelariu[[#Headers],[Feb]],Skutocne_naklady_na_kancelariu[#Headers],0)) -> 15.00 EUR | E15: =INDEX(Planovane_naklady_na_kancelariu[],MATCH(INDEX(Odchylky_v_nakladoch_na_kancelariu[],ROW()-ROW(Odchylky_v_nakladoch_na_kancelariu[[#Headers],[Mar]]),1),INDEX(Planovane_naklady_na_kancelariu[],,1),0),MATCH(Odchylky_v_nakladoch_na_kancelariu[[#Headers],[Mar]],Planovane_naklady_na_kancelariu[#Headers],0))-INDEX(Skutocne_naklady_na_kancelariu[],MATCH(INDEX(Odchylky_v_nakladoch_na_kancelariu[],ROW()-ROW(Odchylky_v_nakladoch_na_kancelariu[[#Headers],[Mar]]),1),INDEX(Planovane_naklady_na_kancelariu[],,1),0),MATCH(Odchylky_v_nakladoch_na_kancelariu[[#Headers],[Mar]],Skutocne_naklady_na_kancelariu[#Headers],0)) -> -15.00 EUR | F15: =INDEX(Planovane_naklady_na_kancelariu[],MATCH(INDEX(Odchylky_v_nakladoch_na_kancelariu[],ROW()-ROW(Odchylky_v_nakladoch_na_kancelariu[[#Headers],[Apr]]),1),INDEX(Planovane_naklady_na_kancelariu[],,1),0),MATCH(Odchylky_v_nakladoch_na_kancelariu[[#Headers],[Apr]],Planovane_naklady_na_kancelariu[#Headers],0))-INDEX(Skutocne_naklady_na_kancelariu[],MATCH(INDEX(Odchylky_v_nakladoch_na_kancelariu[],ROW()-ROW(Odchylky_v_nakladoch_na_kancelariu[[#Headers],[Apr]]),1),INDEX(Planovane_naklady_na_kancelariu[],,1),0),MATCH(Odchylky_v_nakladoch_na_kancelariu[[#Headers],[Apr]],Skutocne_naklady_na_kancelariu[#Headers],0)) -> 5.00 EUR | G15: =INDEX(Planovane_naklady_na_kancelariu[],MATCH(INDEX(Odchylky_v_nakladoch_na_kancelariu[],ROW()-ROW(Odchylky_v_nakladoch_na_kancelariu[[#Headers],[Máj]]),1),INDEX(Planovane_naklady_na_kancelariu[],,1),0),MATCH(Odchylky_v_nakladoch_na_kancelariu[[#Headers],[Máj]],Planovane_naklady_na_kancelariu[#Headers],0))-INDEX(Skutocne_naklady_na_kancelariu[],MATCH(INDEX(Odchylky_v_nakladoch_na_kancelariu[],ROW()-ROW(Odchylky_v_nakladoch_na_kancelariu[[#Headers],[Máj]]),1),INDEX(Planovane_naklady_na_kancelariu[],,1),0),MATCH(Odchylky_v_nakladoch_na_kancelariu[[#Headers],[Máj]],Skutocne_naklady_na_kancelariu[#Headers],0)) -> 5.00 EUR | H15: =INDEX(Planovane_naklady_na_kancelariu[],MATCH(INDEX(Odchylky_v_nakladoch_na_kancelariu[],ROW()-ROW(Odchylky_v_nakladoch_na_kancelariu[[#Headers],[Jún]]),1),INDEX(Planovane_naklady_na_kancelariu[],,1),0),MATCH(Odchylky_v_nakladoch_na_kancelariu[[#Headers],[Jún]],Planovane_naklady_na_kancelariu[#Headers],0))-INDEX(Skutocne_naklady_na_kancelariu[],MATCH(INDEX(Odchylky_v_nakladoch_na_kancelariu[],ROW()-ROW(Odchylky_v_nakladoch_na_kancelariu[[#Headers],[Jún]]),1),INDEX(Planovane_naklady_na_kancelariu[],,1),0),MATCH(Odchylky_v_nakladoch_na_kancelariu[[#Headers],[Jún]],Skutocne_naklady_na_kancelariu[#Headers],0)) -> 30.00 EUR | I15: =INDEX(Planovane_naklady_na_kancelariu[],MATCH(INDEX(Odchylky_v_nakladoch_na_kancelariu[],ROW()-ROW(Odchylky_v_nakladoch_na_kancelariu[[#Headers],[Júl]]),1),INDEX(Planovane_naklady_na_kancelariu[],,1),0),MATCH(Odchylky_v_nakladoch_na_kancelariu[[#Headers],[Júl]],Planovane_naklady_na_kancelariu[#Headers],0))-INDEX(Skutocne_naklady_na_kancelariu[],MATCH(INDEX(Odchylky_v_nakladoch_na_kancelariu[],ROW()-ROW(Odchylky_v_nakladoch_na_kancelariu[[#Headers],[Júl]]),1),INDEX(Planovane_naklady_na_kancelariu[],,1),0),MATCH(Odchylky_v_nakladoch_na_kancelariu[[#Headers],[Júl]],Skutocne_naklady_na_kancelariu[#Headers],0)) -> 250.00 EUR | J15: =INDEX(Planovane_naklady_na_kancelariu[],MATCH(INDEX(Odchylky_v_nakladoch_na_kancelariu[],ROW()-ROW(Odchylky_v_nakladoch_na_kancelariu[[#Headers],[Aug]]),1),INDEX(Planovane_naklady_na_kancelariu[],,1),0),MATCH(Odchylky_v_nakladoch_na_kancelariu[[#Headers],[Aug]],Planovane_naklady_na_kancelariu[#Headers],0))-INDEX(Skutocne_naklady_na_kancelariu[],MATCH(INDEX(Odchylky_v_nakladoch_na_kancelariu[],ROW()-ROW(Odchylky_v_nakladoch_na_kancelariu[[#Headers],[Aug]]),1),INDEX(Planovane_naklady_na_kancelariu[],,1),0),MATCH(Odchylky_v_nakladoch_na_kancelariu[[#Headers],[Aug]],Skutocne_naklady_na_kancelariu[#Headers],0)) -> 250.00 EUR | K15: =INDEX(Planovane_naklady_na_kancelariu[],MATCH(INDEX(Odchylky_v_nakladoch_na_kancelariu[],ROW()-ROW(Odchylky_v_nakladoch_na_kancelariu[[#Headers],[Sep]]),1),INDEX(Planovane_naklady_na_kancelariu[],,1),0),MATCH(Odchylky_v_nakladoch_na_kancelariu[[#Headers],[Sep]],Planovane_naklady_na_kancelariu[#Headers],0))-INDEX(Skutocne_naklady_na_kancelariu[],MATCH(INDEX(Odchylky_v_nakladoch_na_kancelariu[],ROW()-ROW(Odchylky_v_nakladoch_na_kancelariu[[#Headers],[Sep]]),1),INDEX(Planovane_naklady_na_kancelariu[],,1),0),MATCH(Odchylky_v_nakladoch_na_kancelariu[[#Headers],[Sep]],Skutocne_naklady_na_kancelariu[#Headers],0)) -> 250.00 EUR | L15: =INDEX(Planovane_naklady_na_kancelariu[],MATCH(INDEX(Odchylky_v_nakladoch_na_kancelariu[],ROW()-ROW(Odchylky_v_nakladoch_na_kancelariu[[#Headers],[Okt]]),1),INDEX(Planovane_naklady_na_kancelariu[],,1),0),MATCH(Odchylky_v_nakladoch_na_kancelariu[[#Headers],[Okt]],Planovane_naklady_na_kancelariu[#Headers],0))-INDEX(Skutocne_naklady_na_kancelariu[],MATCH(INDEX(Odchylky_v_nakladoch_na_kancelariu[],ROW()-ROW(Odchylky_v_nakladoch_na_kancelariu[[#Headers],[Okt]]),1),INDEX(Planovane_naklady_na_kancelariu[],,1),0),MATCH(Odchylky_v_nakladoch_na_kancelariu[[#Headers],[Okt]],Skutocne_naklady_na_kancelariu[#Headers],0)) -> 250.00 EUR | M15: =INDEX(Planovane_naklady_na_kancelariu[],MATCH(INDEX(Odchylky_v_nakladoch_na_kancelariu[],ROW()-ROW(Odchylky_v_nakladoch_na_kancelariu[[#Headers],[Nov]]),1),INDEX(Planovane_naklady_na_kancelariu[],,1),0),MATCH(Odchylky_v_nakladoch_na_kancelariu[[#Headers],[Nov]],Planovane_naklady_na_kancelariu[#Headers],0))-INDEX(Skutocne_naklady_na_kancelariu[],MATCH(INDEX(Odchylky_v_nakladoch_na_kancelariu[],ROW()-ROW(Odchylky_v_nakladoch_na_kancelariu[[#Headers],[Nov]]),1),INDEX(Planovane_naklady_na_kancelariu[],,1),0),MATCH(Odchylky_v_nakladoch_na_kancelariu[[#Headers],[Nov]],Skutocne_naklady_na_kancelariu[#Headers],0)) -> 250.00 EUR | N15: =INDEX(Planovane_naklady_na_kancelariu[],MATCH(INDEX(Odchylky_v_nakladoch_na_kancelariu[],ROW()-ROW(Odchylky_v_nakladoch_na_kancelariu[[#Headers],[Dec]]),1),INDEX(Planovane_naklady_na_kancelariu[],,1),0),MATCH(Odchylky_v_nakladoch_na_kancelariu[[#Headers],[Dec]],Planovane_naklady_na_kancelariu[#Headers],0))-INDEX(Skutocne_naklady_na_kancelariu[],MATCH(INDEX(Odchylky_v_nakladoch_na_kancelariu[],ROW()-ROW(Odchylky_v_nakladoch_na_kancelariu[[#Headers],[Dec]]),1),INDEX(Planovane_naklady_na_kancelariu[],,1),0),MATCH(Odchylky_v_nakladoch_na_kancelariu[[#Headers],[Dec]],Skutocne_naklady_na_kancelariu[#Headers],0)) -> 250.00 EUR | O15: =SUM(Odchylky_v_nakladoch_na_kancelariu[[#This Row],[Jan]:[Dec]]) -> 1,566.00 EUR
B16: Prístup na Internet | C16: =INDEX(Planovane_naklady_na_kancelariu[],MATCH(INDEX(Odchylky_v_nakladoch_na_kancelariu[],ROW()-ROW(Odchylky_v_nakladoch_na_kancelariu[[#Headers],[Jan]]),1),INDEX(Planovane_naklady_na_kancelariu[],,1),0),MATCH(Odchylky_v_nakladoch_na_kancelariu[[#Headers],[Jan]],Planovane_naklady_na_kancelariu[#Headers],0))-INDEX(Skutocne_naklady_na_kancelariu[],MATCH(INDEX(Odchylky_v_nakladoch_na_kancelariu[],ROW()-ROW(Odchylky_v_nakladoch_na_kancelariu[[#Headers],[Jan]]),1),INDEX(Planovane_naklady_na_kancelariu[],,1),0),MATCH(Odchylky_v_nakladoch_na_kancelariu[[#Headers],[Jan]],Skutocne_naklady_na_kancelariu[#Headers],0)) -> 0.00 EUR | D16: =INDEX(Planovane_naklady_na_kancelariu[],MATCH(INDEX(Odchylky_v_nakladoch_na_kancelariu[],ROW()-ROW(Odchylky_v_nakladoch_na_kancelariu[[#Headers],[Feb]]),1),INDEX(Planovane_naklady_na_kancelariu[],,1),0),MATCH(Odchylky_v_nakladoch_na_kancelariu[[#Headers],[Feb]],Planovane_naklady_na_kancelariu[#Headers],0))-INDEX(Skutocne_naklady_na_kancelariu[],MATCH(INDEX(Odchylky_v_nakladoch_na_kancelariu[],ROW()-ROW(Odchylky_v_nakladoch_na_kancelariu[[#Headers],[Feb]]),1),INDEX(Planovane_naklady_na_kancelariu[],,1),0),MATCH(Odchylky_v_nakladoch_na_kancelariu[[#Headers],[Feb]],Skutocne_naklady_na_kancelariu[#Headers],0)) -> 0.00 EUR | E16: =INDEX(Planovane_naklady_na_kancelariu[],MATCH(INDEX(Odchylky_v_nakladoch_na_kancelariu[],ROW()-ROW(Odchylky_v_nakladoch_na_kancelariu[[#Headers],[Mar]]),1),INDEX(Planovane_naklady_na_kancelariu[],,1),0),MATCH(Odchylky_v_nakladoch_na_kancelariu[[#Headers],[Mar]],Planovane_naklady_na_kancelariu[#Headers],0))-INDEX(Skutocne_naklady_na_kancelariu[],MATCH(INDEX(Odchylky_v_nakladoch_na_kancelariu[],ROW()-ROW(Odchylky_v_nakladoch_na_kancelariu[[#Headers],[Mar]]),1),INDEX(Planovane_naklady_na_kancelariu[],,1),0),MATCH(Odchylky_v_nakladoch_na_kancelariu[[#Headers],[Mar]],Skutocne_naklady_na_kancelariu[#Headers],0)) -> 0.00 EUR | F16: =INDEX(Planovane_naklady_na_kancelariu[],MATCH(INDEX(Odchylky_v_nakladoch_na_kancelariu[],ROW()-ROW(Odchylky_v_nakladoch_na_kancelariu[[#Headers],[Apr]]),1),INDEX(Planovane_naklady_na_kancelariu[],,1),0),MATCH(Odchylky_v_nakladoch_na_kancelariu[[#Headers],[Apr]],Planovane_naklady_na_kancelariu[#Headers],0))-INDEX(Skutocne_naklady_na_kancelariu[],MATCH(INDEX(Odchylky_v_nakladoch_na_kancelariu[],ROW()-ROW(Odchylky_v_nakladoch_na_kancelariu[[#Headers],[Apr]]),1),INDEX(Planovane_naklady_na_kancelariu[],,1),0),MATCH(Odchylky_v_nakladoch_na_kancelariu[[#Headers],[Apr]],Skutocne_naklady_na_kancelariu[#Headers],0)) -> 0.00 EUR | G16: =INDEX(Planovane_naklady_na_kancelariu[],MATCH(INDEX(Odchylky_v_nakladoch_na_kancelariu[],ROW()-ROW(Odchylky_v_nakladoch_na_kancelariu[[#Headers],[Máj]]),1),INDEX(Planovane_naklady_na_kancelariu[],,1),0),MATCH(Odchylky_v_nakladoch_na_kancelariu[[#Headers],[Máj]],Planovane_naklady_na_kancelariu[#Headers],0))-INDEX(Skutocne_naklady_na_kancelariu[],MATCH(INDEX(Odchylky_v_nakladoch_na_kancelariu[],ROW()-ROW(Odchylky_v_nakladoch_na_kancelariu[[#Headers],[Máj]]),1),INDEX(Planovane_naklady_na_kancelariu[],,1),0),MATCH(Odchylky_v_nakladoch_na_kancelariu[[#Headers],[Máj]],Skutocne_naklady_na_kancelariu[#Headers],0)) -> 0.00 EUR | H16: =INDEX(Planovane_naklady_na_kancelariu[],MATCH(INDEX(Odchylky_v_nakladoch_na_kancelariu[],ROW()-ROW(Odchylky_v_nakladoch_na_kancelariu[[#Headers],[Jún]]),1),INDEX(Planovane_naklady_na_kancelariu[],,1),0),MATCH(Odchylky_v_nakladoch_na_kancelariu[[#Headers],[Jún]],Planovane_naklady_na_kancelariu[#Headers],0))-INDEX(Skutocne_naklady_na_kancelariu[],MATCH(INDEX(Odchylky_v_nakladoch_na_kancelariu[],ROW()-ROW(Odchylky_v_nakladoch_na_kancelariu[[#Headers],[Jún]]),1),INDEX(Planovane_naklady_na_kancelariu[],,1),0),MATCH(Odchylky_v_nakladoch_na_kancelariu[[#Headers],[Jún]],Skutocne_naklady_na_kancelariu[#Headers],0)) -> 0.00 EUR | I16: =INDEX(Planovane_naklady_na_kancelariu[],MATCH(INDEX(Odchylky_v_nakladoch_na_kancelariu[],ROW()-ROW(Odchylky_v_nakladoch_na_kancelariu[[#Headers],[Júl]]),1),INDEX(Planovane_naklady_na_kancelariu[],,1),0),MATCH(Odchylky_v_nakladoch_na_kancelariu[[#Headers],[Júl]],Planovane_naklady_na_kancelariu[#Headers],0))-INDEX(Skutocne_naklady_na_kancelariu[],MATCH(INDEX(Odchylky_v_nakladoch_na_kancelariu[],ROW()-ROW(Odchylky_v_nakladoch_na_kancelariu[[#Headers],[Júl]]),1),INDEX(Planovane_naklady_na_kancelariu[],,1),0),MATCH(Odchylky_v_nakladoch_na_kancelariu[[#Headers],[Júl]],Skutocne_naklady_na_kancelariu[#Headers],0)) -> 180.00 EUR | J16: =INDEX(Planovane_naklady_na_kancelariu[],MATCH(INDEX(Odchylky_v_nakladoch_na_kancelariu[],ROW()-ROW(Odchylky_v_nakladoch_na_kancelariu[[#Headers],[Aug]]),1),INDEX(Planovane_naklady_na_kancelariu[],,1),0),MATCH(Odchylky_v_nakladoch_na_kancelariu[[#Headers],[Aug]],Planovane_naklady_na_kancelariu[#Headers],0))-INDEX(Skutocne_naklady_na_kancelariu[],MATCH(INDEX(Odchylky_v_nakladoch_na_kancelariu[],ROW()-ROW(Odchylky_v_nakladoch_na_kancelariu[[#Headers],[Aug]]),1),INDEX(Planovane_naklady_na_kancelariu[],,1),0),MATCH(Odchylky_v_nakladoch_na_kancelariu[[#Headers],[Aug]],Skutocne_naklady_na_kancelariu[#Headers],0)) -> 180.00 EUR | K16: =INDEX(Planovane_naklady_na_kancelariu[],MATCH(INDEX(Odchylky_v_nakladoch_na_kancelariu[],ROW()-ROW(Odchylky_v_nakladoch_na_kancelariu[[#Headers],[Sep]]),1),INDEX(Planovane_naklady_na_kancelariu[],,1),0),MATCH(Odchylky_v_nakladoch_na_kancelariu[[#Headers],[Sep]],Planovane_naklady_na_kancelariu[#Headers],0))-INDEX(Skutocne_naklady_na_kancelariu[],MATCH(INDEX(Odchylky_v_nakladoch_na_kancelariu[],ROW()-ROW(Odchylky_v_nakladoch_na_kancelariu[[#Headers],[Sep]]),1),INDEX(Planovane_naklady_na_kancelariu[],,1),0),MATCH(Odchylky_v_nakladoch_na_kancelariu[[#Headers],[Sep]],Skutocne_naklady_na_kancelariu[#Headers],0)) -> 180.00 EUR | L16: =INDEX(Planovane_naklady_na_kancelariu[],MATCH(INDEX(Odchylky_v_nakladoch_na_kancelariu[],ROW()-ROW(Odchylky_v_nakladoch_na_kancelariu[[#Headers],[Okt]]),1),INDEX(Planovane_naklady_na_kancelariu[],,1),0),MATCH(Odchylky_v_nakladoch_na_kancelariu[[#Headers],[Okt]],Planovane_naklady_na_kancelariu[#Headers],0))-INDEX(Skutocne_naklady_na_kancelariu[],MATCH(INDEX(Odchylky_v_nakladoch_na_kancelariu[],ROW()-ROW(Odchylky_v_nakladoch_na_kancelariu[[#Headers],[Okt]]),1),INDEX(Planovane_naklady_na_kancelariu[],,1),0),MATCH(Odchylky_v_nakladoch_na_kancelariu[[#Headers],[Okt]],Skutocne_naklady_na_kancelariu[#Headers],0)) -> 180.00 EUR | M16: =INDEX(Planovane_naklady_na_kancelariu[],MATCH(INDEX(Odchylky_v_nakladoch_na_kancelariu[],ROW()-ROW(Odchylky_v_nakladoch_na_kancelariu[[#Headers],[Nov]]),1),INDEX(Planovane_naklady_na_kancelariu[],,1),0),MATCH(Odchylky_v_nakladoch_na_kancelariu[[#Headers],[Nov]],Planovane_naklady_na_kancelariu[#Headers],0))-INDEX(Skutocne_naklady_na_kancelariu[],MATCH(INDEX(Odchylky_v_nakladoch_na_kancelariu[],ROW()-ROW(Odchylky_v_nakladoch_na_kancelariu[[#Headers],[Nov]]),1),INDEX(Planovane_naklady_na_kancelariu[],,1),0),MATCH(Odchylky_v_nakladoch_na_kancelariu[[#Headers],[Nov]],Skutocne_naklady_na_kancelariu[#Headers],0)) -> 180.00 EUR | N16: =INDEX(Planovane_naklady_na_kancelariu[],MATCH(INDEX(Odchylky_v_nakladoch_na_kancelariu[],ROW()-ROW(Odchylky_v_nakladoch_na_kancelariu[[#Headers],[Dec]]),1),INDEX(Planovane_naklady_na_kancelariu[],,1),0),MATCH(Odchylky_v_nakladoch_na_kancelariu[[#Headers],[Dec]],Planovane_naklady_na_kancelariu[#Headers],0))-INDEX(Skutocne_naklady_na_kancelariu[],MATCH(INDEX(Odchylky_v_nakladoch_na_kancelariu[],ROW()-ROW(Odchylky_v_nakladoch_na_kancelariu[[#Headers],[Dec]]),1),INDEX(Planovane_naklady_na_kancelariu[],,1),0),MATCH(Odchylky_v_nakladoch_na_kancelariu[[#Headers],[Dec]],Skutocne_naklady_na_kancelariu[#Headers],0)) -> 180.00 EUR | O16: =SUM(Odchylky_v_nakladoch_na_kancelariu[[#This Row],[Jan]:[Dec]]) -> 1,080.00 EUR
B17: Kancelárske potreby | C17: =INDEX(Planovane_naklady_na_kancelariu[],MATCH(INDEX(Odchylky_v_nakladoch_na_kancelariu[],ROW()-ROW(Odchylky_v_nakladoch_na_kancelariu[[#Headers],[Jan]]),1),INDEX(Planovane_naklady_na_kancelariu[],,1),0),MATCH(Odchylky_v_nakladoch_na_kancelariu[[#Headers],[Jan]],Planovane_naklady_na_kancelariu[#Headers],0))-INDEX(Skutocne_naklady_na_kancelariu[],MATCH(INDEX(Odchylky_v_nakladoch_na_kancelariu[],ROW()-ROW(Odchylky_v_nakladoch_na_kancelariu[[#Headers],[Jan]]),1),INDEX(Planovane_naklady_na_kancelariu[],,1),0),MATCH(Odchylky_v_nakladoch_na_kancelariu[[#Headers],[Jan]],Skutocne_naklady_na_kancelariu[#Headers],0)) -> -56.00 EUR | D17: =INDEX(Planovane_naklady_na_kancelariu[],MATCH(INDEX(Odchylky_v_nakladoch_na_kancelariu[],ROW()-ROW(Odchylky_v_nakladoch_na_kancelariu[[#Headers],[Feb]]),1),INDEX(Planovane_naklady_na_kancelariu[],,1),0),MATCH(Odchylky_v_nakladoch_na_kancelariu[[#Headers],[Feb]],Planovane_naklady_na_kancelariu[#Headers],0))-INDEX(Skutocne_naklady_na_kancelariu[],MATCH(INDEX(Odchylky_v_nakladoch_na_kancelariu[],ROW()-ROW(Odchylky_v_nakladoch_na_kancelariu[[#Headers],[Feb]]),1),INDEX(Planovane_naklady_na_kancelariu[],,1),0),MATCH(Odchylky_v_nakladoch_na_kancelariu[[#Headers],[Feb]],Skutocne_naklady_na_kancelariu[#Headers],0)) -> 58.00 EUR | E17: =INDEX(Planovane_naklady_na_kancelariu[],MATCH(INDEX(Odchylky_v_nakladoch_na_kancelariu[],ROW()-ROW(Odchylky_v_nakladoch_na_kancelariu[[#Headers],[Mar]]),1),INDEX(Planovane_naklady_na_kancelariu[],,1),0),MATCH(Odchylky_v_nakladoch_na_kancelariu[[#Headers],[Mar]],Planovane_naklady_na_kancelariu[#Headers],0))-INDEX(Skutocne_naklady_na_kancelariu[],MATCH(INDEX(Odchylky_v_nakladoch_na_kancelariu[],ROW()-ROW(Odchylky_v_nakladoch_na_kancelariu[[#Headers],[Mar]]),1),INDEX(Planovane_naklady_na_kancelariu[],,1),0),MATCH(Odchylky_v_nakladoch_na_kancelariu[[#Headers],[Mar]],Skutocne_naklady_na_kancelariu[#Headers],0)) -> 40.00 EUR | F17: =INDEX(Planovane_naklady_na_kancelariu[],MATCH(INDEX(Odchylky_v_nakladoch_na_kancelariu[],ROW()-ROW(Odchylky_v_nakladoch_na_kancelariu[[#Headers],[Apr]]),1),INDEX(Planovane_naklady_na_kancelariu[],,1),0),MATCH(Odchylky_v_nakladoch_na_kancelariu[[#Headers],[Apr]],Planovane_naklady_na_kancelariu[#Headers],0))-INDEX(Skutocne_naklady_na_kancelariu[],MATCH(INDEX(Odchylky_v_nakladoch_na_kancelariu[],ROW()-ROW(Odchylky_v_nakladoch_na_kancelariu[[#Headers],[Apr]]),1),INDEX(Planovane_naklady_na_kancelariu[],,1),0),MATCH(Odchylky_v_nakladoch_na_kancelariu[[#Headers],[Apr]],Skutocne_naklady_na_kancelariu[#Headers],0)) -> -21.00 EUR | G17: =INDEX(Planovane_naklady_na_kancelariu[],MATCH(INDEX(Odchylky_v_nakladoch_na_kancelariu[],ROW()-ROW(Odchylky_v_nakladoch_na_kancelariu[[#Headers],[Máj]]),1),INDEX(Planovane_naklady_na_kancelariu[],,1),0),MATCH(Odchylky_v_nakladoch_na_kancelariu[[#Headers],[Máj]],Planovane_naklady_na_kancelariu[#Headers],0))-INDEX(Skutocne_naklady_na_kancelariu[],MATCH(INDEX(Odchylky_v_nakladoch_na_kancelariu[],ROW()-ROW(Odchylky_v_nakladoch_na_kancelariu[[#Headers],[Máj]]),1),INDEX(Planovane_naklady_na_kancelariu[],,1),0),MATCH(Odchylky_v_nakladoch_na_kancelariu[[#Headers],[Máj]],Skutocne_naklady_na_kancelariu[#Headers],0)) -> -56.00 EUR | H17: =INDEX(Planovane_naklady_na_kancelariu[],MATCH(INDEX(Odchylky_v_nakladoch_na_kancelariu[],ROW()-ROW(Odchylky_v_nakladoch_na_kancelariu[[#Headers],[Jún]]),1),INDEX(Planovane_naklady_na_kancelariu[],,1),0),MATCH(Odchylky_v_nakladoch_na_kancelariu[[#Headers],[Jún]],Planovane_naklady_na_kancelariu[#Headers],0))-INDEX(Skutocne_naklady_na_kancelariu[],MATCH(INDEX(Odchylky_v_nakladoch_na_kancelariu[],ROW()-ROW(Odchylky_v_nakladoch_na_kancelariu[[#Headers],[Jún]]),1),INDEX(Planovane_naklady_na_kancelariu[],,1),0),MATCH(Odchylky_v_nakladoch_na_kancelariu[[#Headers],[Jún]],Skutocne_naklady_na_kancelariu[#Headers],0)) -> -40.00 EUR | I17: =INDEX(Planovane_naklady_na_kancelariu[],MATCH(INDEX(Odchylky_v_nakladoch_na_kancelariu[],ROW()-ROW(Odchylky_v_nakladoch_na_kancelariu[[#Headers],[Júl]]),1),INDEX(Planovane_naklady_na_kancelariu[],,1),0),MATCH(Odchylky_v_nakladoch_na_kancelariu[[#Headers],[Júl]],Planovane_naklady_na_kancelariu[#Headers],0))-INDEX(Skutocne_naklady_na_kancelariu[],MATCH(INDEX(Odchylky_v_nakladoch_na_kancelariu[],ROW()-ROW(Odchylky_v_nakladoch_na_kancelariu[[#Headers],[Júl]]),1),INDEX(Planovane_naklady_na_kancelariu[],,1),0),MATCH(Odchylky_v_nakladoch_na_kancelariu[[#Headers],[Júl]],Skutocne_naklady_na_kancelariu[#Headers],0)) -> 200.00 EUR | J17: =INDEX(Planovane_naklady_na_kancelariu[],MATCH(INDEX(Odchylky_v_nakladoch_na_kancelariu[],ROW()-ROW(Odchylky_v_nakladoch_na_kancelariu[[#Headers],[Aug]]),1),INDEX(Planovane_naklady_na_kancelariu[],,1),0),MATCH(Odchylky_v_nakladoch_na_kancelariu[[#Headers],[Aug]],Planovane_naklady_na_kancelariu[#Headers],0))-INDEX(Skutocne_naklady_na_kancelariu[],MATCH(INDEX(Odchylky_v_nakladoch_na_kancelariu[],ROW()-ROW(Odchylky_v_nakladoch_na_kancelariu[[#Headers],[Aug]]),1),INDEX(Planovane_naklady_na_kancelariu[],,1),0),MATCH(Odchylky_v_nakladoch_na_kancelariu[[#Headers],[Aug]],Skutocne_naklady_na_kancelariu[#Headers],0)) -> 200.00 EUR | K17: =INDEX(Planovane_naklady_na_kancelariu[],MATCH(INDEX(Odchylky_v_nakladoch_na_kancelariu[],ROW()-ROW(Odchylky_v_nakladoch_na_kancelariu[[#Headers],[Sep]]),1),INDEX(Planovane_naklady_na_kancelariu[],,1),0),MATCH(Odchylky_v_nakladoch_na_kancelariu[[#Headers],[Sep]],Planovane_naklady_na_kancelariu[#Headers],0))-INDEX(Skutocne_naklady_na_kancelariu[],MATCH(INDEX(Odchylky_v_nakladoch_na_kancelariu[],ROW()-ROW(Odchylky_v_nakladoch_na_kancelariu[[#Headers],[Sep]]),1),INDEX(Planovane_naklady_na_kancelariu[],,1),0),MATCH(Odchylky_v_nakladoch_na_kancelariu[[#Headers],[Sep]],Skutocne_naklady_na_kancelariu[#Headers],0)) -> 200.00 EUR | L17: =INDEX(Planovane_naklady_na_kancelariu[],MATCH(INDEX(Odchylky_v_nakladoch_na_kancelariu[],ROW()-ROW(Odchylky_v_nakladoch_na_kancelariu[[#Headers],[Okt]]),1),INDEX(Planovane_naklady_na_kancelariu[],,1),0),MATCH(Odchylky_v_nakladoch_na_kancelariu[[#Headers],[Okt]],Planovane_naklady_na_kancelariu[#Headers],0))-INDEX(Skutocne_naklady_na_kancelariu[],MATCH(INDEX(Odchylky_v_nakladoch_na_kancelariu[],ROW()-ROW(Odchylky_v_nakladoch_na_kancelariu[[#Headers],[Okt]]),1),INDEX(Planovane_naklady_na_kancelariu[],,1),0),MATCH(Odchylky_v_nakladoch_na_kancelariu[[#Headers],[Okt]],Skutocne_naklady_na_kancelariu[#Headers],0)) -> 200.00 EUR | M17: =INDEX(Planovane_naklady_na_kancelariu[],MATCH(INDEX(Odchylky_v_nakladoch_na_kancelariu[],ROW()-ROW(Odchylky_v_nakladoch_na_kancelariu[[#Headers],[Nov]]),1),INDEX(Planovane_naklady_na_kancelariu[],,1),0),MATCH(Odchylky_v_nakladoch_na_kancelariu[[#Headers],[Nov]],Planovane_naklady_na_kancelariu[#Headers],0))-INDEX(Skutocne_naklady_na_kancelariu[],MATCH(INDEX(Odchylky_v_nakladoch_na_kancelariu[],ROW()-ROW(Odchylky_v_nakladoch_na_kancelariu[[#Headers],[Nov]]),1),INDEX(Planovane_naklady_na_kancelariu[],,1),0),MATCH(Odchylky_v_nakladoch_na_kancelariu[[#Headers],[Nov]],Skutocne_naklady_na_kancelariu[#Headers],0)) -> 200.00 EUR | N17: =INDEX(Planovane_naklady_na_kancelariu[],MATCH(INDEX(Odchylky_v_nakladoch_na_kancelariu[],ROW()-ROW(Odchylky_v_nakladoch_na_kancelariu[[#Headers],[Dec]]),1),INDEX(Planovane_naklady_na_kancelariu[],,1),0),MATCH(Odchylky_v_nakladoch_na_kancelariu[[#Headers],[Dec]],Planovane_naklady_na_kancelariu[#Headers],0))-INDEX(Skutocne_naklady_na_kancelariu[],MATCH(INDEX(Odchylky_v_nakladoch_na_kancelariu[],ROW()-ROW(Odchylky_v_nakladoch_na_kancelariu[[#Headers],[Dec]]),1),INDEX(Planovane_naklady_na_kancelariu[],,1),0),MATCH(Odchylky_v_nakladoch_na_kancelariu[[#Headers],[Dec]],Skutocne_naklady_na_kancelariu[#Headers],0)) -> 200.00 EUR | O17: =SUM(Odchylky_v_nakladoch_na_kancelariu[[#This Row],[Jan]:[Dec]]) -> 1,125.00 EUR
B18: Zabezpečenie | C18: =INDEX(Planovane_naklady_na_kancelariu[],MATCH(INDEX(Odchylky_v_nakladoch_na_kancelariu[],ROW()-ROW(Odchylky_v_nakladoch_na_kancelariu[[#Headers],[Jan]]),1),INDEX(Planovane_naklady_na_kancelariu[],,1),0),MATCH(Odchylky_v_nakladoch_na_kancelariu[[#Headers],[Jan]],Planovane_naklady_na_kancelariu[#Headers],0))-INDEX(Skutocne_naklady_na_kancelariu[],MATCH(INDEX(Odchylky_v_nakladoch_na_kancelariu[],ROW()-ROW(Odchylky_v_nakladoch_na_kancelariu[[#Headers],[Jan]]),1),INDEX(Planovane_naklady_na_kancelariu[],,1),0),MATCH(Odchylky_v_nakladoch_na_kancelariu[[#Headers],[Jan]],Skutocne_naklady_na_kancelariu[#Headers],0)) -> 0.00 EUR | D18: =INDEX(Planovane_naklady_na_kancelariu[],MATCH(INDEX(Odchylky_v_nakladoch_na_kancelariu[],ROW()-ROW(Odchylky_v_nakladoch_na_kancelariu[[#Headers],[Feb]]),1),INDEX(Planovane_naklady_na_kancelariu[],,1),0),MATCH(Odchylky_v_nakladoch_na_kancelariu[[#Headers],[Feb]],Planovane_naklady_na_kancelariu[#Headers],0))-INDEX(Skutocne_naklady_na_kancelariu[],MATCH(INDEX(Odchylky_v_nakladoch_na_kancelariu[],ROW()-ROW(Odchylky_v_nakladoch_na_kancelariu[[#Headers],[Feb]]),1),INDEX(Planovane_naklady_na_kancelariu[],,1),0),MATCH(Odchylky_v_nakladoch_na_kancelariu[[#Headers],[Feb]],Skutocne_naklady_na_kancelariu[#Headers],0)) -> 0.00 EUR | E18: =INDEX(Planovane_naklady_na_kancelariu[],MATCH(INDEX(Odchylky_v_nakladoch_na_kancelariu[],ROW()-ROW(Odchylky_v_nakladoch_na_kancelariu[[#Headers],[Mar]]),1),INDEX(Planovane_naklady_na_kancelariu[],,1),0),MATCH(Odchylky_v_nakladoch_na_kancelariu[[#Headers],[Mar]],Planovane_naklady_na_kancelariu[#Headers],0))-INDEX(Skutocne_naklady_na_kancelariu[],MATCH(INDEX(Odchylky_v_nakladoch_na_kancelariu[],ROW()-ROW(Odchylky_v_nakladoch_na_kancelariu[[#Headers],[Mar]]),1),INDEX(Planovane_naklady_na_kancelariu[],,1),0),MATCH(Odchylky_v_nakladoch_na_kancelariu[[#Headers],[Mar]],Skutocne_naklady_na_kancelariu[#Headers],0)) -> 0.00 EUR | F18: =INDEX(Planovane_naklady_na_kancelariu[],MATCH(INDEX(Odchylky_v_nakladoch_na_kancelariu[],ROW()-ROW(Odchylky_v_nakladoch_na_kancelariu[[#Headers],[Apr]]),1),INDEX(Planovane_naklady_na_kancelariu[],,1),0),MATCH(Odchylky_v_nakladoch_na_kancelariu[[#Headers],[Apr]],Planovane_naklady_na_kancelariu[#Headers],0))-INDEX(Skutocne_naklady_na_kancelariu[],MATCH(INDEX(Odchylky_v_nakladoch_na_kancelariu[],ROW()-ROW(Odchylky_v_nakladoch_na_kancelariu[[#Headers],[Apr]]),1),INDEX(Planovane_naklady_na_kancelariu[],,1),0),MATCH(Odchylky_v_nakladoch_na_kancelariu[[#Headers],[Apr]],Skutocne_naklady_na_kancelariu[#Headers],0)) -> 0.00 EUR | G18: =INDEX(Planovane_naklady_na_kancelariu[],MATCH(INDEX(Odchylky_v_nakladoch_na_kancelariu[],ROW()-ROW(Odchylky_v_nakladoch_na_kancelariu[[#Headers],[Máj]]),1),INDEX(Planovane_naklady_na_kancelariu[],,1),0),MATCH(Odchylky_v_nakladoch_na_kancelariu[[#Headers],[Máj]],Planovane_naklady_na_kancelariu[#Headers],0))-INDEX(Skutocne_naklady_na_kancelariu[],MATCH(INDEX(Odchylky_v_nakladoch_na_kancelariu[],ROW()-ROW(Odchylky_v_nakladoch_na_kancelariu[[#Headers],[Máj]]),1),INDEX(Planovane_naklady_na_kancelariu[],,1),0),MATCH(Odchylky_v_nakladoch_na_kancelariu[[#Headers],[Máj]],Skutocne_naklady_na_kancelariu[#Headers],0)) -> 0.00 EUR | H18: =INDEX(Planovane_naklady_na_kancelariu[],MATCH(INDEX(Odchylky_v_nakladoch_na_kancelariu[],ROW()-ROW(Odchylky_v_nakladoch_na_kancelariu[[#Headers],[Jún]]),1),INDEX(Planovane_naklady_na_kancelariu[],,1),0),MATCH(Odchylky_v_nakladoch_na_kancelariu[[#Headers],[Jún]],Planovane_naklady_na_kancelariu[#Headers],0))-INDEX(Skutocne_naklady_na_kancelariu[],MATCH(INDEX(Odchylky_v_nakladoch_na_kancelariu[],ROW()-ROW(Odchylky_v_nakladoch_na_kancelariu[[#Headers],[Jún]]),1),INDEX(Planovane_naklady_na_kancelariu[],,1),0),MATCH(Odchylky_v_nakladoch_na_kancelariu[[#Headers],[Jún]],Skutocne_naklady_na_kancelariu[#Headers],0)) -> 0.00 EUR | I18: =INDEX(Planovane_naklady_na_kancelariu[],MATCH(INDEX(Odchylky_v_nakladoch_na_kancelariu[],ROW()-ROW(Odchylky_v_nakladoch_na_kancelariu[[#Headers],[Júl]]),1),INDEX(Planovane_naklady_na_kancelariu[],,1),0),MATCH(Odchylky_v_nakladoch_na_kancelariu[[#Headers],[Júl]],Planovane_naklady_na_kancelariu[#Headers],0))-INDEX(Skutocne_naklady_na_kancelariu[],MATCH(INDEX(Odchylky_v_nakladoch_na_kancelariu[],ROW()-ROW(Odchylky_v_nakladoch_na_kancelariu[[#Headers],[Júl]]),1),INDEX(Planovane_naklady_na_kancelariu[],,1),0),MATCH(Odchylky_v_nakladoch_na_kancelariu[[#Headers],[Júl]],Skutocne_naklady_na_kancelariu[#Headers],0)) -> 600.00 EUR | J18: =INDEX(Planovane_naklady_na_kancelariu[],MATCH(INDEX(Odchylky_v_nakladoch_na_kancelariu[],ROW()-ROW(Odchylky_v_nakladoch_na_kancelariu[[#Headers],[Aug]]),1),INDEX(Planovane_naklady_na_kancelariu[],,1),0),MATCH(Odchylky_v_nakladoch_na_kancelariu[[#Headers],[Aug]],Planovane_naklady_na_kancelariu[#Headers],0))-INDEX(Skutocne_naklady_na_kancelariu[],MATCH(INDEX(Odchylky_v_nakladoch_na_kancelariu[],ROW()-ROW(Odchylky_v_nakladoch_na_kancelariu[[#Headers],[Aug]]),1),INDEX(Planovane_naklady_na_kancelariu[],,1),0),MATCH(Odchylky_v_nakladoch_na_kancelariu[[#Headers],[Aug]],Skutocne_naklady_na_kancelariu[#Headers],0)) -> 600.00 EUR | K18: =INDEX(Planovane_naklady_na_kancelariu[],MATCH(INDEX(Odchylky_v_nakladoch_na_kancelariu[],ROW()-ROW(Odchylky_v_nakladoch_na_kancelariu[[#Headers],[Sep]]),1),INDEX(Planovane_naklady_na_kancelariu[],,1),0),MATCH(Odchylky_v_nakladoch_na_kancelariu[[#Headers],[Sep]],Planovane_naklady_na_kancelariu[#Headers],0))-INDEX(Skutocne_naklady_na_kancelariu[],MATCH(INDEX(Odchylky_v_nakladoch_na_kancelariu[],ROW()-ROW(Odchylky_v_nakladoch_na_kancelariu[[#Headers],[Sep]]),1),INDEX(Planovane_naklady_na_kancelariu[],,1),0),MATCH(Odchylky_v_nakladoch_na_kancelariu[[#Headers],[Sep]],Skutocne_naklady_na_kancelariu[#Headers],0)) -> 600.00 EUR | L18: =INDEX(Planovane_naklady_na_kancelariu[],MATCH(INDEX(Odchylky_v_nakladoch_na_kancelariu[],ROW()-ROW(Odchylky_v_nakladoch_na_kancelariu[[#Headers],[Okt]]),1),INDEX(Planovane_naklady_na_kancelariu[],,1),0),MATCH(Odchylky_v_nakladoch_na_kancelariu[[#Headers],[Okt]],Planovane_naklady_na_kancelariu[#Headers],0))-INDEX(Skutocne_naklady_na_kancelariu[],MATCH(INDEX(Odchylky_v_nakladoch_na_kancelariu[],ROW()-ROW(Odchylky_v_nakladoch_na_kancelariu[[#Headers],[Okt]]),1),INDEX(Planovane_naklady_na_kancelariu[],,1),0),MATCH(Odchylky_v_nakladoch_na_kancelariu[[#Headers],[Okt]],Skutocne_naklady_na_kancelariu[#Headers],0)) -> 600.00 EUR | M18: =INDEX(Planovane_naklady_na_kancelariu[],MATCH(INDEX(Odchylky_v_nakladoch_na_kancelariu[],ROW()-ROW(Odchylky_v_nakladoch_na_kancelariu[[#Headers],[Nov]]),1),INDEX(Planovane_naklady_na_kancelariu[],,1),0),MATCH(Odchylky_v_nakladoch_na_kancelariu[[#Headers],[Nov]],Planovane_naklady_na_kancelariu[#Headers],0))-INDEX(Skutocne_naklady_na_kancelariu[],MATCH(INDEX(Odchylky_v_nakladoch_na_kancelariu[],ROW()-ROW(Odchylky_v_nakladoch_na_kancelariu[[#Headers],[Nov]]),1),INDEX(Planovane_naklady_na_kancelariu[],,1),0),MATCH(Odchylky_v_nakladoch_na_kancelariu[[#Headers],[Nov]],Skutocne_naklady_na_kancelariu[#Headers],0)) -> 600.00 EUR | N18: =INDEX(Planovane_naklady_na_kancelariu[],MATCH(INDEX(Odchylky_v_nakladoch_na_kancelariu[],ROW()-ROW(Odchylky_v_nakladoch_na_kancelariu[[#Headers],[Dec]]),1),INDEX(Planovane_naklady_na_kancelariu[],,1),0),MATCH(Odchylky_v_nakladoch_na_kancelariu[[#Headers],[Dec]],Planovane_naklady_na_kancelariu[#Headers],0))-INDEX(Skutocne_naklady_na_kancelariu[],MATCH(INDEX(Odchylky_v_nakladoch_na_kancelariu[],ROW()-ROW(Odchylky_v_nakladoch_na_kancelariu[[#Headers],[Dec]]),1),INDEX(Planovane_naklady_na_kancelariu[],,1),0),MATCH(Odchylky_v_nakladoch_na_kancelariu[[#Headers],[Dec]],Skutocne_naklady_na_kancelariu[#Headers],0)) -> 600.00 EUR | O18: =SUM(Odchylky_v_nakladoch_na_kancelariu[[#This Row],[Jan]:[Dec]]) -> 3,600.00 EUR
B19: Medzisúčet | C19: =SUBTOTAL(109,Odchylky_v_nakladoch_na_kancelariu[Jan]) -> -17.00 EUR | D19: =SUBTOTAL(109,Odchylky_v_nakladoch_na_kancelariu[Feb]) -> 72.00 EUR | E19: =SUBTOTAL(109,Odchylky_v_nakladoch_na_kancelariu[Mar]) -> 78.00 EUR | F19: =SUBTOTAL(109,Odchylky_v_nakladoch_na_kancelariu[Apr]) -> -141.00 EUR | G19: =SUBTOTAL(109,Odchylky_v_nakladoch_na_kancelariu[Máj]) -> -38.00 EUR | H19: =SUBTOTAL(109,Odchylky_v_nakladoch_na_kancelariu[Jún]) -> 16.00 EUR | I19: =SUBTOTAL(109,Odchylky_v_nakladoch_na_kancelariu[Júl]) -> 11,470.00 EUR | J19: =SUBTOTAL(109,Odchylky_v_nakladoch_na_kancelariu[Aug]) -> 11,470.00 EUR | K19: =SUBTOTAL(109,Odchylky_v_nakladoch_na_kancelariu[Sep]) -> 11,470.00 EUR | L19: =SUBTOTAL(109,Odchylky_v_nakladoch_na_kancelariu[Okt]) -> 11,470.00 EUR | M19: =SUBTOTAL(109,Odchylky_v_nakladoch_na_kancelariu[Nov]) -> 11,770.00 EUR | N19: =SUBTOTAL(109,Odchylky_v_nakladoch_na_kancelariu[Dec]) -> 11,770.00 EUR | O19: =SUBTOTAL(109,Odchylky_v_nakladoch_na_kancelariu[ROK]) -> 69,390.00 EUR
A21: V tabuľke odchýlok v Náklady na marketing začínajúcej v bunke napravo sa automaticky vypočítajú odchylky v nakladoch na marketing. Ďalší pokyn je v bunke A30. | B21: Náklady na marketing | C21: Jan | D21: Feb | E21: Mar | F21: Apr | G21: Máj | H21: Jún | I21: Júl | J21: Aug | K21: Sep | L21: Okt | M21: Nov | N21: Dec | O21: ROK
B22: Hosťovanie webovej lokality | C22: =INDEX(Planovane_naklady_na_marketing[],MATCH(INDEX(Odchylky_v_nakladoch_na_marketing[],ROW()-ROW(Odchylky_v_nakladoch_na_marketing[[#Headers],[Jan]]),1),INDEX(Planovane_naklady_na_marketing[],,1),0),MATCH(Odchylky_v_nakladoch_na_marketing[[#Headers],[Jan]],Planovane_naklady_na_marketing[#Headers],0))-INDEX(Skutocne_naklady_na_marketing[],MATCH(INDEX(Odchylky_v_nakladoch_na_marketing[],ROW()-ROW(Odchylky_v_nakladoch_na_marketing[[#Headers],[Jan]]),1),INDEX(Planovane_naklady_na_marketing[],,1),0),MATCH(Odchylky_v_nakladoch_na_marketing[[#Headers],[Jan]],Skutocne_naklady_na_marketing[#Headers],0)) -> 0.00 EUR | D22: =INDEX(Planovane_naklady_na_marketing[],MATCH(INDEX(Odchylky_v_nakladoch_na_marketing[],ROW()-ROW(Odchylky_v_nakladoch_na_marketing[[#Headers],[Feb]]),1),INDEX(Planovane_naklady_na_marketing[],,1),0),MATCH(Odchylky_v_nakladoch_na_marketing[[#Headers],[Feb]],Planovane_naklady_na_marketing[#Headers],0))-INDEX(Skutocne_naklady_na_marketing[],MATCH(INDEX(Odchylky_v_nakladoch_na_marketing[],ROW()-ROW(Odchylky_v_nakladoch_na_marketing[[#Headers],[Feb]]),1),INDEX(Planovane_naklady_na_marketing[],,1),0),MATCH(Odchylky_v_nakladoch_na_marketing[[#Headers],[Feb]],Skutocne_naklady_na_marketing[#Headers],0)) -> 0.00 EUR | E22: =INDEX(Planovane_naklady_na_marketing[],MATCH(INDEX(Odchylky_v_nakladoch_na_marketing[],ROW()-ROW(Odchylky_v_nakladoch_na_marketing[[#Headers],[Mar]]),1),INDEX(Planovane_naklady_na_marketing[],,1),0),MATCH(Odchylky_v_nakladoch_na_marketing[[#Headers],[Mar]],Planovane_naklady_na_marketing[#Headers],0))-INDEX(Skutocne_naklady_na_marketing[],MATCH(INDEX(Odchylky_v_nakladoch_na_marketing[],ROW()-ROW(Odchylky_v_nakladoch_na_marketing[[#Headers],[Mar]]),1),INDEX(Planovane_naklady_na_marketing[],,1),0),MATCH(Odchylky_v_nakladoch_na_marketing[[#Headers],[Mar]],Skutocne_naklady_na_marketing[#Headers],0)) -> 0.00 EUR | F22: =INDEX(Planovane_naklady_na_marketing[],MATCH(INDEX(Odchylky_v_nakladoch_na_marketing[],ROW()-ROW(Odchylky_v_nakladoch_na_marketing[[#Headers],[Apr]]),1),INDEX(Planovane_naklady_na_marketing[],,1),0),MATCH(Odchylky_v_nakladoch_na_marketing[[#Headers],[Apr]],Planovane_naklady_na_marketing[#Headers],0))-INDEX(Skutocne_naklady_na_marketing[],MATCH(INDEX(Odchylky_v_nakladoch_na_marketing[],ROW()-ROW(Odchylky_v_nakladoch_na_marketing[[#Headers],[Apr]]),1),INDEX(Planovane_naklady_na_marketing[],,1),0),MATCH(Odchylky_v_nakladoch_na_marketing[[#Headers],[Apr]],Skutocne_naklady_na_marketing[#Headers],0)) -> 0.00 EUR | G22: =INDEX(Planovane_naklady_na_marketing[],MATCH(INDEX(Odchylky_v_nakladoch_na_marketing[],ROW()-ROW(Odchylky_v_nakladoch_na_marketing[[#Headers],[Máj]]),1),INDEX(Planovane_naklady_na_marketing[],,1),0),MATCH(Odchylky_v_nakladoch_na_marketing[[#Headers],[Máj]],Planovane_naklady_na_marketing[#Headers],0))-INDEX(Skutocne_naklady_na_marketing[],MATCH(INDEX(Odchylky_v_nakladoch_na_marketing[],ROW()-ROW(Odchylky_v_nakladoch_na_marketing[[#Headers],[Máj]]),1),INDEX(Planovane_naklady_na_marketing[],,1),0),MATCH(Odchylky_v_nakladoch_na_marketing[[#Headers],[Máj]],Skutocne_naklady_na_marketing[#Headers],0)) -> 0.00 EUR | H22: =INDEX(Planovane_naklady_na_marketing[],MATCH(INDEX(Odchylky_v_nakladoch_na_marketing[],ROW()-ROW(Odchylky_v_nakladoch_na_marketing[[#Headers],[Jún]]),1),INDEX(Planovane_naklady_na_marketing[],,1),0),MATCH(Odchylky_v_nakladoch_na_marketing[[#Headers],[Jún]],Planovane_naklady_na_marketing[#Headers],0))-INDEX(Skutocne_naklady_na_marketing[],MATCH(INDEX(Odchylky_v_nakladoch_na_marketing[],ROW()-ROW(Odchylky_v_nakladoch_na_marketing[[#Headers],[Jún]]),1),INDEX(Planovane_naklady_na_marketing[],,1),0),MATCH(Odchylky_v_nakladoch_na_marketing[[#Headers],[Jún]],Skutocne_naklady_na_marketing[#Headers],0)) -> 0.00 EUR | I22: =INDEX(Planovane_naklady_na_marketing[],MATCH(INDEX(Odchylky_v_nakladoch_na_marketing[],ROW()-ROW(Odchylky_v_nakladoch_na_marketing[[#Headers],[Júl]]),1),INDEX(Planovane_naklady_na_marketing[],,1),0),MATCH(Odchylky_v_nakladoch_na_marketing[[#Headers],[Júl]],Planovane_naklady_na_marketing[#Headers],0))-INDEX(Skutocne_naklady_na_marketing[],MATCH(INDEX(Odchylky_v_nakladoch_na_marketing[],ROW()-ROW(Odchylky_v_nakladoch_na_marketing[[#Headers],[Júl]]),1),INDEX(Planovane_naklady_na_marketing[],,1),0),MATCH(Odchylky_v_nakladoch_na_marketing[[#Headers],[Júl]],Skutocne_naklady_na_marketing[#Headers],0)) -> 500.00 EUR | J22: =INDEX(Planovane_naklady_na_marketing[],MATCH(INDEX(Odchylky_v_nakladoch_na_marketing[],ROW()-ROW(Odchylky_v_nakladoch_na_marketing[[#Headers],[Aug]]),1),INDEX(Planovane_naklady_na_marketing[],,1),0),MATCH(Odchylky_v_nakladoch_na_marketing[[#Headers],[Aug]],Planovane_naklady_na_marketing[#Headers],0))-INDEX(Skutocne_naklady_na_marketing[],MATCH(INDEX(Odchylky_v_nakladoch_na_marketing[],ROW()-ROW(Odchylky_v_nakladoch_na_marketing[[#Headers],[Aug]]),1),INDEX(Planovane_naklady_na_marketing[],,1),0),MATCH(Odchylky_v_nakladoch_na_marketing[[#Headers],[Aug]],Skutocne_naklady_na_marketing[#Headers],0)) -> 500.00 EUR | K22: =INDEX(Planovane_naklady_na_marketing[],MATCH(INDEX(Odchylky_v_nakladoch_na_marketing[],ROW()-ROW(Odchylky_v_nakladoch_na_marketing[[#Headers],[Sep]]),1),INDEX(Planovane_naklady_na_marketing[],,1),0),MATCH(Odchylky_v_nakladoch_na_marketing[[#Headers],[Sep]],Planovane_naklady_na_marketing[#Headers],0))-INDEX(Skutocne_naklady_na_marketing[],MATCH(INDEX(Odchylky_v_nakladoch_na_marketing[],ROW()-ROW(Odchylky_v_nakladoch_na_marketing[[#Headers],[Sep]]),1),INDEX(Planovane_naklady_na_marketing[],,1),0),MATCH(Odchylky_v_nakladoch_na_marketing[[#Headers],[Sep]],Skutocne_naklady_na_marketing[#Headers],0)) -> 500.00 EUR | L22: =INDEX(Planovane_naklady_na_marketing[],MATCH(INDEX(Odchylky_v_nakladoch_na_marketing[],ROW()-ROW(Odchylky_v_nakladoch_na_marketing[[#Headers],[Okt]]),1),INDEX(Planovane_naklady_na_marketing[],,1),0),MATCH(Odchylky_v_nakladoch_na_marketing[[#Headers],[Okt]],Planovane_naklady_na_marketing[#Headers],0))-INDEX(Skutocne_naklady_na_marketing[],MATCH(INDEX(Odchylky_v_nakladoch_na_marketing[],ROW()-ROW(Odchylky_v_nakladoch_na_marketing[[#Headers],[Okt]]),1),INDEX(Planovane_naklady_na_marketing[],,1),0),MATCH(Odchylky_v_nakladoch_na_marketing[[#Headers],[Okt]],Skutocne_naklady_na_marketing[#Headers],0)) -> 500.00 EUR | M22: =INDEX(Planovane_naklady_na_marketing[],MATCH(INDEX(Odchylky_v_nakladoch_na_marketing[],ROW()-ROW(Odchylky_v_nakladoch_na_marketing[[#Headers],[Nov]]),1),INDEX(Planovane_naklady_na_marketing[],,1),0),MATCH(Odchylky_v_nakladoch_na_marketing[[#Headers],[Nov]],Planovane_naklady_na_marketing[#Headers],0))-INDEX(Skutocne_naklady_na_marketing[],MATCH(INDEX(Odchylky_v_nakladoch_na_marketing[],ROW()-ROW(Odchylky_v_nakladoch_na_marketing[[#Headers],[Nov]]),1),INDEX(Planovane_naklady_na_marketing[],,1),0),MATCH(Odchylky_v_nakladoch_na_marketing[[#Headers],[Nov]],Skutocne_naklady_na_marketing[#Headers],0)) -> 500.00 EUR | N22: =INDEX(Planovane_naklady_na_marketing[],MATCH(INDEX(Odchylky_v_nakladoch_na_marketing[],ROW()-ROW(Odchylky_v_nakladoch_na_marketing[[#Headers],[Dec]]),1),INDEX(Planovane_naklady_na_marketing[],,1),0),MATCH(Odchylky_v_nakladoch_na_marketing[[#Headers],[Dec]],Planovane_naklady_na_marketing[#Headers],0))-INDEX(Skutocne_naklady_na_marketing[],MATCH(INDEX(Odchylky_v_nakladoch_na_marketing[],ROW()-ROW(Odchylky_v_nakladoch_na_marketing[[#Headers],[Dec]]),1),INDEX(Planovane_naklady_na_marketing[],,1),0),MATCH(Odchylky_v_nakladoch_na_marketing[[#Headers],[Dec]],Skutocne_naklady_na_marketing[#Headers],0)) -> 500.00 EUR | O22: =SUM(Odchylky_v_nakladoch_na_marketing[[#This Row],[Jan]:[Dec]]) -> 3,000.00 EUR
B23: Aktualizácie webovej lokality | C23: =INDEX(Planovane_naklady_na_marketing[],MATCH(INDEX(Odchylky_v_nakladoch_na_marketing[],ROW()-ROW(Odchylky_v_nakladoch_na_marketing[[#Headers],[Jan]]),1),INDEX(Planovane_naklady_na_marketing[],,1),0),MATCH(Odchylky_v_nakladoch_na_marketing[[#Headers],[Jan]],Planovane_naklady_na_marketing[#Headers],0))-INDEX(Skutocne_naklady_na_marketing[],MATCH(INDEX(Odchylky_v_nakladoch_na_marketing[],ROW()-ROW(Odchylky_v_nakladoch_na_marketing[[#Headers],[Jan]]),1),INDEX(Planovane_naklady_na_marketing[],,1),0),MATCH(Odchylky_v_nakladoch_na_marketing[[#Headers],[Jan]],Skutocne_naklady_na_marketing[#Headers],0)) -> 0.00 EUR | D23: =INDEX(Planovane_naklady_na_marketing[],MATCH(INDEX(Odchylky_v_nakladoch_na_marketing[],ROW()-ROW(Odchylky_v_nakladoch_na_marketing[[#Headers],[Feb]]),1),INDEX(Planovane_naklady_na_marketing[],,1),0),MATCH(Odchylky_v_nakladoch_na_marketing[[#Headers],[Feb]],Planovane_naklady_na_marketing[#Headers],0))-INDEX(Skutocne_naklady_na_marketing[],MATCH(INDEX(Odchylky_v_nakladoch_na_marketing[],ROW()-ROW(Odchylky_v_nakladoch_na_marketing[[#Headers],[Feb]]),1),INDEX(Planovane_naklady_na_marketing[],,1),0),MATCH(Odchylky_v_nakladoch_na_marketing[[#Headers],[Feb]],Skutocne_naklady_na_marketing[#Headers],0)) -> 0.00 EUR | E23: =INDEX(Planovane_naklady_na_marketing[],MATCH(INDEX(Odchylky_v_nakladoch_na_marketing[],ROW()-ROW(Odchylky_v_nakladoch_na_marketing[[#Headers],[Mar]]),1),INDEX(Planovane_naklady_na_marketing[],,1),0),MATCH(Odchylky_v_nakladoch_na_marketing[[#Headers],[Mar]],Planovane_naklady_na_marketing[#Headers],0))-INDEX(Skutocne_naklady_na_marketing[],MATCH(INDEX(Odchylky_v_nakladoch_na_marketing[],ROW()-ROW(Odchylky_v_nakladoch_na_marketing[[#Headers],[Mar]]),1),INDEX(Planovane_naklady_na_marketing[],,1),0),MATCH(Odchylky_v_nakladoch_na_marketing[[#Headers],[Mar]],Skutocne_naklady_na_marketing[#Headers],0)) -> 0.00 EUR | F23: =INDEX(Planovane_naklady_na_marketing[],MATCH(INDEX(Odchylky_v_nakladoch_na_marketing[],ROW()-ROW(Odchylky_v_nakladoch_na_marketing[[#Headers],[Apr]]),1),INDEX(Planovane_naklady_na_marketing[],,1),0),MATCH(Odchylky_v_nakladoch_na_marketing[[#Headers],[Apr]],Planovane_naklady_na_marketing[#Headers],0))-INDEX(Skutocne_naklady_na_marketing[],MATCH(INDEX(Odchylky_v_nakladoch_na_marketing[],ROW()-ROW(Odchylky_v_nakladoch_na_marketing[[#Headers],[Apr]]),1),INDEX(Planovane_naklady_na_marketing[],,1),0),MATCH(Odchylky_v_nakladoch_na_marketing[[#Headers],[Apr]],Skutocne_naklady_na_marketing[#Headers],0)) -> 0.00 EUR | G23: =INDEX(Planovane_naklady_na_marketing[],MATCH(INDEX(Odchylky_v_nakladoch_na_marketing[],ROW()-ROW(Odchylky_v_nakladoch_na_marketing[[#Headers],[Máj]]),1),INDEX(Planovane_naklady_na_marketing[],,1),0),MATCH(Odchylky_v_nakladoch_na_marketing[[#Headers],[Máj]],Planovane_naklady_na_marketing[#Headers],0))-INDEX(Skutocne_naklady_na_marketing[],MATCH(INDEX(Odchylky_v_nakladoch_na_marketing[],ROW()-ROW(Odchylky_v_nakladoch_na_marketing[[#Headers],[Máj]]),1),INDEX(Planovane_naklady_na_marketing[],,1),0),MATCH(Odchylky_v_nakladoch_na_marketing[[#Headers],[Máj]],Skutocne_naklady_na_marketing[#Headers],0)) -> 0.00 EUR | H23: =INDEX(Planovane_naklady_na_marketing[],MATCH(INDEX(Odchylky_v_nakladoch_na_marketing[],ROW()-ROW(Odchylky_v_nakladoch_na_marketing[[#Headers],[Jún]]),1),INDEX(Planovane_naklady_na_marketing[],,1),0),MATCH(Odchylky_v_nakladoch_na_marketing[[#Headers],[Jún]],Planovane_naklady_na_marketing[#Headers],0))-INDEX(Skutocne_naklady_na_marketing[],MATCH(INDEX(Odchylky_v_nakladoch_na_marketing[],ROW()-ROW(Odchylky_v_nakladoch_na_marketing[[#Headers],[Jún]]),1),INDEX(Planovane_naklady_na_marketing[],,1),0),MATCH(Odchylky_v_nakladoch_na_marketing[[#Headers],[Jún]],Skutocne_naklady_na_marketing[#Headers],0)) -> -500.00 EUR | I23: =INDEX(Planovane_naklady_na_marketing[],MATCH(INDEX(Odchylky_v_nakladoch_na_marketing[],ROW()-ROW(Odchylky_v_nakladoch_na_marketing[[#Headers],[Júl]]),1),INDEX(Planovane_naklady_na_marketing[],,1),0),MATCH(Odchylky_v_nakladoch_na_marketing[[#Headers],[Júl]],Planovane_naklady_na_marketing[#Headers],0))-INDEX(Skutocne_naklady_na_marketing[],MATCH(INDEX(Odchylky_v_nakladoch_na_marketing[],ROW()-ROW(Odchylky_v_nakladoch_na_marketing[[#Headers],[Júl]]),1),INDEX(Planovane_naklady_na_marketing[],,1),0),MATCH(Odchylky_v_nakladoch_na_marketing[[#Headers],[Júl]],Skutocne_naklady_na_marketing[#Headers],0)) -> 200.00 EUR | J23: =INDEX(Planovane_naklady_na_marketing[],MATCH(INDEX(Odchylky_v_nakladoch_na_marketing[],ROW()-ROW(Odchylky_v_nakladoch_na_marketing[[#Headers],[Aug]]),1),INDEX(Planovane_naklady_na_marketing[],,1),0),MATCH(Odchylky_v_nakladoch_na_marketing[[#Headers],[Aug]],Planovane_naklady_na_marketing[#Headers],0))-INDEX(Skutocne_naklady_na_marketing[],MATCH(INDEX(Odchylky_v_nakladoch_na_marketing[],ROW()-ROW(Odchylky_v_nakladoch_na_marketing[[#Headers],[Aug]]),1),INDEX(Planovane_naklady_na_marketing[],,1),0),MATCH(Odchylky_v_nakladoch_na_marketing[[#Headers],[Aug]],Skutocne_naklady_na_marketing[#Headers],0)) -> 200.00 EUR | K23: =INDEX(Planovane_naklady_na_marketing[],MATCH(INDEX(Odchylky_v_nakladoch_na_marketing[],ROW()-ROW(Odchylky_v_nakladoch_na_marketing[[#Headers],[Sep]]),1),INDEX(Planovane_naklady_na_marketing[],,1),0),MATCH(Odchylky_v_nakladoch_na_marketing[[#Headers],[Sep]],Planovane_naklady_na_marketing[#Headers],0))-INDEX(Skutocne_naklady_na_marketing[],MATCH(INDEX(Odchylky_v_nakladoch_na_marketing[],ROW()-ROW(Odchylky_v_nakladoch_na_marketing[[#Headers],[Sep]]),1),INDEX(Planovane_naklady_na_marketing[],,1),0),MATCH(Odchylky_v_nakladoch_na_marketing[[#Headers],[Sep]],Skutocne_naklady_na_marketing[#Headers],0)) -> 200.00 EUR | L23: =INDEX(Planovane_naklady_na_marketing[],MATCH(INDEX(Odchylky_v_nakladoch_na_marketing[],ROW()-ROW(Odchylky_v_nakladoch_na_marketing[[#Headers],[Okt]]),1),INDEX(Planovane_naklady_na_marketing[],,1),0),MATCH(Odchylky_v_nakladoch_na_marketing[[#Headers],[Okt]],Planovane_naklady_na_marketing[#Headers],0))-INDEX(Skutocne_naklady_na_marketing[],MATCH(INDEX(Odchylky_v_nakladoch_na_marketing[],ROW()-ROW(Odchylky_v_nakladoch_na_marketing[[#Headers],[Okt]]),1),INDEX(Planovane_naklady_na_marketing[],,1),0),MATCH(Odchylky_v_nakladoch_na_marketing[[#Headers],[Okt]],Skutocne_naklady_na_marketing[#Headers],0)) -> 200.00 EUR | M23: =INDEX(Planovane_naklady_na_marketing[],MATCH(INDEX(Odchylky_v_nakladoch_na_marketing[],ROW()-ROW(Odchylky_v_nakladoch_na_marketing[[#Headers],[Nov]]),1),INDEX(Planovane_naklady_na_marketing[],,1),0),MATCH(Odchylky_v_nakladoch_na_marketing[[#Headers],[Nov]],Planovane_naklady_na_marketing[#Headers],0))-INDEX(Skutocne_naklady_na_marketing[],MATCH(INDEX(Odchylky_v_nakladoch_na_marketing[],ROW()-ROW(Odchylky_v_nakladoch_na_marketing[[#Headers],[Nov]]),1),INDEX(Planovane_naklady_na_marketing[],,1),0),MATCH(Odchylky_v_nakladoch_na_marketing[[#Headers],[Nov]],Skutocne_naklady_na_marketing[#Headers],0)) -> 200.00 EUR | N23: =INDEX(Planovane_naklady_na_marketing[],MATCH(INDEX(Odchylky_v_nakladoch_na_marketing[],ROW()-ROW(Odchylky_v_nakladoch_na_marketing[[#Headers],[Dec]]),1),INDEX(Planovane_naklady_na_marketing[],,1),0),MATCH(Odchylky_v_nakladoch_na_marketing[[#Headers],[Dec]],Planovane_naklady_na_marketing[#Headers],0))-INDEX(Skutocne_naklady_na_marketing[],MATCH(INDEX(Odchylky_v_nakladoch_na_marketing[],ROW()-ROW(Odchylky_v_nakladoch_na_marketing[[#Headers],[Dec]]),1),INDEX(Planovane_naklady_na_marketing[],,1),0),MATCH(Odchylky_v_nakladoch_na_marketing[[#Headers],[Dec]],Skutocne_naklady_na_marketing[#Headers],0)) -> 1,000.00 EUR | O23: =SUM(Odchylky_v_nakladoch_na_marketing[[#This Row],[Jan]:[Dec]]) -> 1,500.00 EUR
B24: Príprava sprievodnej dokumentácie | C24: =INDEX(Planovane_naklady_na_marketing[],MATCH(INDEX(Odchylky_v_nakladoch_na_marketing[],ROW()-ROW(Odchylky_v_nakladoch_na_marketing[[#Headers],[Jan]]),1),INDEX(Planovane_naklady_na_marketing[],,1),0),MATCH(Odchylky_v_nakladoch_na_marketing[[#Headers],[Jan]],Planovane_naklady_na_marketing[#Headers],0))-INDEX(Skutocne_naklady_na_marketing[],MATCH(INDEX(Odchylky_v_nakladoch_na_marketing[],ROW()-ROW(Odchylky_v_nakladoch_na_marketing[[#Headers],[Jan]]),1),INDEX(Planovane_naklady_na_marketing[],,1),0),MATCH(Odchylky_v_nakladoch_na_marketing[[#Headers],[Jan]],Skutocne_naklady_na_marketing[#Headers],0)) -> 200.00 EUR | D24: =INDEX(Planovane_naklady_na_marketing[],MATCH(INDEX(Odchylky_v_nakladoch_na_marketing[],ROW()-ROW(Odchylky_v_nakladoch_na_marketing[[#Headers],[Feb]]),1),INDEX(Planovane_naklady_na_marketing[],,1),0),MATCH(Odchylky_v_nakladoch_na_marketing[[#Headers],[Feb]],Planovane_naklady_na_marketing[#Headers],0))-INDEX(Skutocne_naklady_na_marketing[],MATCH(INDEX(Odchylky_v_nakladoch_na_marketing[],ROW()-ROW(Odchylky_v_nakladoch_na_marketing[[#Headers],[Feb]]),1),INDEX(Planovane_naklady_na_marketing[],,1),0),MATCH(Odchylky_v_nakladoch_na_marketing[[#Headers],[Feb]],Skutocne_naklady_na_marketing[#Headers],0)) -> 0.00 EUR | E24: =INDEX(Planovane_naklady_na_marketing[],MATCH(INDEX(Odchylky_v_nakladoch_na_marketing[],ROW()-ROW(Odchylky_v_nakladoch_na_marketing[[#Headers],[Mar]]),1),INDEX(Planovane_naklady_na_marketing[],,1),0),MATCH(Odchylky_v_nakladoch_na_marketing[[#Headers],[Mar]],Planovane_naklady_na_marketing[#Headers],0))-INDEX(Skutocne_naklady_na_marketing[],MATCH(INDEX(Odchylky_v_nakladoch_na_marketing[],ROW()-ROW(Odchylky_v_nakladoch_na_marketing[[#Headers],[Mar]]),1),INDEX(Planovane_naklady_na_marketing[],,1),0),MATCH(Odchylky_v_nakladoch_na_marketing[[#Headers],[Mar]],Skutocne_naklady_na_marketing[#Headers],0)) -> 0.00 EUR | F24: =INDEX(Planovane_naklady_na_marketing[],MATCH(INDEX(Odchylky_v_nakladoch_na_marketing[],ROW()-ROW(Odchylky_v_nakladoch_na_marketing[[#Headers],[Apr]]),1),INDEX(Planovane_naklady_na_marketing[],,1),0),MATCH(Odchylky_v_nakladoch_na_marketing[[#Headers],[Apr]],Planovane_naklady_na_marketing[#Headers],0))-INDEX(Skutocne_naklady_na_marketing[],MATCH(INDEX(Odchylky_v_nakladoch_na_marketing[],ROW()-ROW(Odchylky_v_nakladoch_na_marketing[[#Headers],[Apr]]),1),INDEX(Planovane_naklady_na_marketing[],,1),0),MATCH(Odchylky_v_nakladoch_na_marketing[[#Headers],[Apr]],Skutocne_naklady_na_marketing[#Headers],0)) -> -500.00 EUR | G24: =INDEX(Planovane_naklady_na_marketing[],MATCH(INDEX(Odchylky_v_nakladoch_na_marketing[],ROW()-ROW(Odchylky_v_nakladoch_na_marketing[[#Headers],[Máj]]),1),INDEX(Planovane_naklady_na_marketing[],,1),0),MATCH(Odchylky_v_nakladoch_na_marketing[[#Headers],[Máj]],Planovane_naklady_na_marketing[#Headers],0))-INDEX(Skutocne_naklady_na_marketing[],MATCH(INDEX(Odchylky_v_nakladoch_na_marketing[],ROW()-ROW(Odchylky_v_nakladoch_na_marketing[[#Headers],[Máj]]),1),INDEX(Planovane_naklady_na_marketing[],,1),0),MATCH(Odchylky_v_nakladoch_na_marketing[[#Headers],[Máj]],Skutocne_naklady_na_marketing[#Headers],0)) -> 0.00 EUR | H24: =INDEX(Planovane_naklady_na_marketing[],MATCH(INDEX(Odchylky_v_nakladoch_na_marketing[],ROW()-ROW(Odchylky_v_nakladoch_na_marketing[[#Headers],[Jún]]),1),INDEX(Planovane_naklady_na_marketing[],,1),0),MATCH(Odchylky_v_nakladoch_na_marketing[[#Headers],[Jún]],Planovane_naklady_na_marketing[#Headers],0))-INDEX(Skutocne_naklady_na_marketing[],MATCH(INDEX(Odchylky_v_nakladoch_na_marketing[],ROW()-ROW(Odchylky_v_nakladoch_na_marketing[[#Headers],[Jún]]),1),INDEX(Planovane_naklady_na_marketing[],,1),0),MATCH(Odchylky_v_nakladoch_na_marketing[[#Headers],[Jún]],Skutocne_naklady_na_marketing[#Headers],0)) -> 0.00 EUR | I24: =INDEX(Planovane_naklady_na_marketing[],MATCH(INDEX(Odchylky_v_nakladoch_na_marketing[],ROW()-ROW(Odchylky_v_nakladoch_na_marketing[[#Headers],[Júl]]),1),INDEX(Planovane_naklady_na_marketing[],,1),0),MATCH(Odchylky_v_nakladoch_na_marketing[[#Headers],[Júl]],Planovane_naklady_na_marketing[#Headers],0))-INDEX(Skutocne_naklady_na_marketing[],MATCH(INDEX(Odchylky_v_nakladoch_na_marketing[],ROW()-ROW(Odchylky_v_nakladoch_na_marketing[[#Headers],[Júl]]),1),INDEX(Planovane_naklady_na_marketing[],,1),0),MATCH(Odchylky_v_nakladoch_na_marketing[[#Headers],[Júl]],Skutocne_naklady_na_marketing[#Headers],0)) -> 5,000.00 EUR | J24: =INDEX(Planovane_naklady_na_marketing[],MATCH(INDEX(Odchylky_v_nakladoch_na_marketing[],ROW()-ROW(Odchylky_v_nakladoch_na_marketing[[#Headers],[Aug]]),1),INDEX(Planovane_naklady_na_marketing[],,1),0),MATCH(Odchylky_v_nakladoch_na_marketing[[#Headers],[Aug]],Planovane_naklady_na_marketing[#Headers],0))-INDEX(Skutocne_naklady_na_marketing[],MATCH(INDEX(Odchylky_v_nakladoch_na_marketing[],ROW()-ROW(Odchylky_v_nakladoch_na_marketing[[#Headers],[Aug]]),1),INDEX(Planovane_naklady_na_marketing[],,1),0),MATCH(Odchylky_v_nakladoch_na_marketing[[#Headers],[Aug]],Skutocne_naklady_na_marketing[#Headers],0)) -> 0.00 EUR | K24: =INDEX(Planovane_naklady_na_marketing[],MATCH(INDEX(Odchylky_v_nakladoch_na_marketing[],ROW()-ROW(Odchylky_v_nakladoch_na_marketing[[#Headers],[Sep]]),1),INDEX(Planovane_naklady_na_marketing[],,1),0),MATCH(Odchylky_v_nakladoch_na_marketing[[#Headers],[Sep]],Planovane_naklady_na_marketing[#Headers],0))-INDEX(Skutocne_naklady_na_marketing[],MATCH(INDEX(Odchylky_v_nakladoch_na_marketing[],ROW()-ROW(Odchylky_v_nakladoch_na_marketing[[#Headers],[Sep]]),1),INDEX(Planovane_naklady_na_marketing[],,1),0),MATCH(Odchylky_v_nakladoch_na_marketing[[#Headers],[Sep]],Skutocne_naklady_na_marketing[#Headers],0)) -> 0.00 EUR | L24: =INDEX(Planovane_naklady_na_marketing[],MATCH(INDEX(Odchylky_v_nakladoch_na_marketing[],ROW()-ROW(Odchylky_v_nakladoch_na_marketing[[#Headers],[Okt]]),1),INDEX(Planovane_naklady_na_marketing[],,1),0),MATCH(Odchylky_v_nakladoch_na_marketing[[#Headers],[Okt]],Planovane_naklady_na_marketing[#Headers],0))-INDEX(Skutocne_naklady_na_marketing[],MATCH(INDEX(Odchylky_v_nakladoch_na_marketing[],ROW()-ROW(Odchylky_v_nakladoch_na_marketing[[#Headers],[Okt]]),1),INDEX(Planovane_naklady_na_marketing[],,1),0),MATCH(Odchylky_v_nakladoch_na_marketing[[#Headers],[Okt]],Skutocne_naklady_na_marketing[#Headers],0)) -> 5,000.00 EUR | M24: =INDEX(Planovane_naklady_na_marketing[],MATCH(INDEX(Odchylky_v_nakladoch_na_marketing[],ROW()-ROW(Odchylky_v_nakladoch_na_marketing[[#Headers],[Nov]]),1),INDEX(Planovane_naklady_na_marketing[],,1),0),MATCH(Odchylky_v_nakladoch_na_marketing[[#Headers],[Nov]],Planovane_naklady_na_marketing[#Headers],0))-INDEX(Skutocne_naklady_na_marketing[],MATCH(INDEX(Odchylky_v_nakladoch_na_marketing[],ROW()-ROW(Odchylky_v_nakladoch_na_marketing[[#Headers],[Nov]]),1),INDEX(Planovane_naklady_na_marketing[],,1),0),MATCH(Odchylky_v_nakladoch_na_marketing[[#Headers],[Nov]],Skutocne_naklady_na_marketing[#Headers],0)) -> 0.00 EUR | N24: =INDEX(Planovane_naklady_na_marketing[],MATCH(INDEX(Odchylky_v_nakladoch_na_marketing[],ROW()-ROW(Odchylky_v_nakladoch_na_marketing[[#Headers],[Dec]]),1),INDEX(Planovane_naklady_na_marketing[],,1),0),MATCH(Odchylky_v_nakladoch_na_marketing[[#Headers],[Dec]],Planovane_naklady_na_marketing[#Headers],0))-INDEX(Skutocne_naklady_na_marketing[],MATCH(INDEX(Odchylky_v_nakladoch_na_marketing[],ROW()-ROW(Odchylky_v_nakladoch_na_marketing[[#Headers],[Dec]]),1),INDEX(Planovane_naklady_na_marketing[],,1),0),MATCH(Odchylky_v_nakladoch_na_marketing[[#Headers],[Dec]],Skutocne_naklady_na_marketing[#Headers],0)) -> 0.00 EUR | O24: =SUM(Odchylky_v_nakladoch_na_marketing[[#This Row],[Jan]:[Dec]]) -> 9,700.00 EUR
B25: Tlač sprievodnej dokumentácie | C25: =INDEX(Planovane_naklady_na_marketing[],MATCH(INDEX(Odchylky_v_nakladoch_na_marketing[],ROW()-ROW(Odchylky_v_nakladoch_na_marketing[[#Headers],[Jan]]),1),INDEX(Planovane_naklady_na_marketing[],,1),0),MATCH(Odchylky_v_nakladoch_na_marketing[[#Headers],[Jan]],Planovane_naklady_na_marketing[#Headers],0))-INDEX(Skutocne_naklady_na_marketing[],MATCH(INDEX(Odchylky_v_nakladoch_na_marketing[],ROW()-ROW(Odchylky_v_nakladoch_na_marketing[[#Headers],[Jan]]),1),INDEX(Planovane_naklady_na_marketing[],,1),0),MATCH(Odchylky_v_nakladoch_na_marketing[[#Headers],[Jan]],Skutocne_naklady_na_marketing[#Headers],0)) -> 100.00 EUR | D25: =INDEX(Planovane_naklady_na_marketing[],MATCH(INDEX(Odchylky_v_nakladoch_na_marketing[],ROW()-ROW(Odchylky_v_nakladoch_na_marketing[[#Headers],[Feb]]),1),INDEX(Planovane_naklady_na_marketing[],,1),0),MATCH(Odchylky_v_nakladoch_na_marketing[[#Headers],[Feb]],Planovane_naklady_na_marketing[#Headers],0))-INDEX(Skutocne_naklady_na_marketing[],MATCH(INDEX(Odchylky_v_nakladoch_na_marketing[],ROW()-ROW(Odchylky_v_nakladoch_na_marketing[[#Headers],[Feb]]),1),INDEX(Planovane_naklady_na_marketing[],,1),0),MATCH(Odchylky_v_nakladoch_na_marketing[[#Headers],[Feb]],Skutocne_naklady_na_marketing[#Headers],0)) -> -300.00 EUR | E25: =INDEX(Planovane_naklady_na_marketing[],MATCH(INDEX(Odchylky_v_nakladoch_na_marketing[],ROW()-ROW(Odchylky_v_nakladoch_na_marketing[[#Headers],[Mar]]),1),INDEX(Planovane_naklady_na_marketing[],,1),0),MATCH(Odchylky_v_nakladoch_na_marketing[[#Headers],[Mar]],Planovane_naklady_na_marketing[#Headers],0))-INDEX(Skutocne_naklady_na_marketing[],MATCH(INDEX(Odchylky_v_nakladoch_na_marketing[],ROW()-ROW(Odchylky_v_nakladoch_na_marketing[[#Headers],[Mar]]),1),INDEX(Planovane_naklady_na_marketing[],,1),0),MATCH(Odchylky_v_nakladoch_na_marketing[[#Headers],[Mar]],Skutocne_naklady_na_marketing[#Headers],0)) -> 100.00 EUR | F25: =INDEX(Planovane_naklady_na_marketing[],MATCH(INDEX(Odchylky_v_nakladoch_na_marketing[],ROW()-ROW(Odchylky_v_nakladoch_na_marketing[[#Headers],[Apr]]),1),INDEX(Planovane_naklady_na_marketing[],,1),0),MATCH(Odchylky_v_nakladoch_na_marketing[[#Headers],[Apr]],Planovane_naklady_na_marketing[#Headers],0))-INDEX(Skutocne_naklady_na_marketing[],MATCH(INDEX(Odchylky_v_nakladoch_na_marketing[],ROW()-ROW(Odchylky_v_nakladoch_na_marketing[[#Headers],[Apr]]),1),INDEX(Planovane_naklady_na_marketing[],,1),0),MATCH(Odchylky_v_nakladoch_na_marketing[[#Headers],[Apr]],Skutocne_naklady_na_marketing[#Headers],0)) -> 100.00 EUR | G25: =INDEX(Planovane_naklady_na_marketing[],MATCH(INDEX(Odchylky_v_nakladoch_na_marketing[],ROW()-ROW(Odchylky_v_nakladoch_na_marketing[[#Headers],[Máj]]),1),INDEX(Planovane_naklady_na_marketing[],,1),0),MATCH(Odchylky_v_nakladoch_na_marketing[[#Headers],[Máj]],Planovane_naklady_na_marketing[#Headers],0))-INDEX(Skutocne_naklady_na_marketing[],MATCH(INDEX(Odchylky_v_nakladoch_na_marketing[],ROW()-ROW(Odchylky_v_nakladoch_na_marketing[[#Headers],[Máj]]),1),INDEX(Planovane_naklady_na_marketing[],,1),0),MATCH(Odchylky_v_nakladoch_na_marketing[[#Headers],[Máj]],Skutocne_naklady_na_marketing[#Headers],0)) -> -400.00 EUR | H25: =INDEX(Planovane_naklady_na_marketing[],MATCH(INDEX(Odchylky_v_nakladoch_na_marketing[],ROW()-ROW(Odchylky_v_nakladoch_na_marketing[[#Headers],[Jún]]),1),INDEX(Planovane_naklady_na_marketing[],,1),0),MATCH(Odchylky_v_nakladoch_na_marketing[[#Headers],[Jún]],Planovane_naklady_na_marketing[#Headers],0))-INDEX(Skutocne_naklady_na_marketing[],MATCH(INDEX(Odchylky_v_nakladoch_na_marketing[],ROW()-ROW(Odchylky_v_nakladoch_na_marketing[[#Headers],[Jún]]),1),INDEX(Planovane_naklady_na_marketing[],,1),0),MATCH(Odchylky_v_nakladoch_na_marketing[[#Headers],[Jún]],Skutocne_naklady_na_marketing[#Headers],0)) -> 20.00 EUR | I25: =INDEX(Planovane_naklady_na_marketing[],MATCH(INDEX(Odchylky_v_nakladoch_na_marketing[],ROW()-ROW(Odchylky_v_nakladoch_na_marketing[[#Headers],[Júl]]),1),INDEX(Planovane_naklady_na_marketing[],,1),0),MATCH(Odchylky_v_nakladoch_na_marketing[[#Headers],[Júl]],Planovane_naklady_na_marketing[#Headers],0))-INDEX(Skutocne_naklady_na_marketing[],MATCH(INDEX(Odchylky_v_nakladoch_na_marketing[],ROW()-ROW(Odchylky_v_nakladoch_na_marketing[[#Headers],[Júl]]),1),INDEX(Planovane_naklady_na_marketing[],,1),0),MATCH(Odchylky_v_nakladoch_na_marketing[[#Headers],[Júl]],Skutocne_naklady_na_marketing[#Headers],0)) -> 200.00 EUR | J25: =INDEX(Planovane_naklady_na_marketing[],MATCH(INDEX(Odchylky_v_nakladoch_na_marketing[],ROW()-ROW(Odchylky_v_nakladoch_na_marketing[[#Headers],[Aug]]),1),INDEX(Planovane_naklady_na_marketing[],,1),0),MATCH(Odchylky_v_nakladoch_na_marketing[[#Headers],[Aug]],Planovane_naklady_na_marketing[#Headers],0))-INDEX(Skutocne_naklady_na_marketing[],MATCH(INDEX(Odchylky_v_nakladoch_na_marketing[],ROW()-ROW(Odchylky_v_nakladoch_na_marketing[[#Headers],[Aug]]),1),INDEX(Planovane_naklady_na_marketing[],,1),0),MATCH(Odchylky_v_nakladoch_na_marketing[[#Headers],[Aug]],Skutocne_naklady_na_marketing[#Headers],0)) -> 200.00 EUR | K25: =INDEX(Planovane_naklady_na_marketing[],MATCH(INDEX(Odchylky_v_nakladoch_na_marketing[],ROW()-ROW(Odchylky_v_nakladoch_na_marketing[[#Headers],[Sep]]),1),INDEX(Planovane_naklady_na_marketing[],,1),0),MATCH(Odchylky_v_nakladoch_na_marketing[[#Headers],[Sep]],Planovane_naklady_na_marketing[#Headers],0))-INDEX(Skutocne_naklady_na_marketing[],MATCH(INDEX(Odchylky_v_nakladoch_na_marketing[],ROW()-ROW(Odchylky_v_nakladoch_na_marketing[[#Headers],[Sep]]),1),INDEX(Planovane_naklady_na_marketing[],,1),0),MATCH(Odchylky_v_nakladoch_na_marketing[[#Headers],[Sep]],Skutocne_naklady_na_marketing[#Headers],0)) -> 200.00 EUR | L25: =INDEX(Planovane_naklady_na_marketing[],MATCH(INDEX(Odchylky_v_nakladoch_na_marketing[],ROW()-ROW(Odchylky_v_nakladoch_na_marketing[[#Headers],[Okt]]),1),INDEX(Planovane_naklady_na_marketing[],,1),0),MATCH(Odchylky_v_nakladoch_na_marketing[[#Headers],[Okt]],Planovane_naklady_na_marketing[#Headers],0))-INDEX(Skutocne_naklady_na_marketing[],MATCH(INDEX(Odchylky_v_nakladoch_na_marketing[],ROW()-ROW(Odchylky_v_nakladoch_na_marketing[[#Headers],[Okt]]),1),INDEX(Planovane_naklady_na_marketing[],,1),0),MATCH(Odchylky_v_nakladoch_na_marketing[[#Headers],[Okt]],Skutocne_naklady_na_marketing[#Headers],0)) -> 200.00 EUR | M25: =INDEX(Planovane_naklady_na_marketing[],MATCH(INDEX(Odchylky_v_nakladoch_na_marketing[],ROW()-ROW(Odchylky_v_nakladoch_na_marketing[[#Headers],[Nov]]),1),INDEX(Planovane_naklady_na_marketing[],,1),0),MATCH(Odchylky_v_nakladoch_na_marketing[[#Headers],[Nov]],Planovane_naklady_na_marketing[#Headers],0))-INDEX(Skutocne_naklady_na_marketing[],MATCH(INDEX(Odchylky_v_nakladoch_na_marketing[],ROW()-ROW(Odchylky_v_nakladoch_na_marketing[[#Headers],[Nov]]),1),INDEX(Planovane_naklady_na_marketing[],,1),0),MATCH(Odchylky_v_nakladoch_na_marketing[[#Headers],[Nov]],Skutocne_naklady_na_marketing[#Headers],0)) -> 200.00 EUR | N25: =INDEX(Planovane_naklady_na_marketing[],MATCH(INDEX(Odchylky_v_nakladoch_na_marketing[],ROW()-ROW(Odchylky_v_nakladoch_na_marketing[[#Headers],[Dec]]),1),INDEX(Planovane_naklady_na_marketing[],,1),0),MATCH(Odchylky_v_nakladoch_na_marketing[[#Headers],[Dec]],Planovane_naklady_na_marketing[#Headers],0))-INDEX(Skutocne_naklady_na_marketing[],MATCH(INDEX(Odchylky_v_nakladoch_na_marketing[],ROW()-ROW(Odchylky_v_nakladoch_na_marketing[[#Headers],[Dec]]),1),INDEX(Planovane_naklady_na_marketing[],,1),0),MATCH(Odchylky_v_nakladoch_na_marketing[[#Headers],[Dec]],Skutocne_naklady_na_marketing[#Headers],0)) -> 200.00 EUR | O25: =SUM(Odchylky_v_nakladoch_na_marketing[[#This Row],[Jan]:[Dec]]) -> 820.00 EUR
B26: Marketingové podujatia | C26: =INDEX(Planovane_naklady_na_marketing[],MATCH(INDEX(Odchylky_v_nakladoch_na_marketing[],ROW()-ROW(Odchylky_v_nakladoch_na_marketing[[#Headers],[Jan]]),1),INDEX(Planovane_naklady_na_marketing[],,1),0),MATCH(Odchylky_v_nakladoch_na_marketing[[#Headers],[Jan]],Planovane_naklady_na_marketing[#Headers],0))-INDEX(Skutocne_naklady_na_marketing[],MATCH(INDEX(Odchylky_v_nakladoch_na_marketing[],ROW()-ROW(Odchylky_v_nakladoch_na_marketing[[#Headers],[Jan]]),1),INDEX(Planovane_naklady_na_marketing[],,1),0),MATCH(Odchylky_v_nakladoch_na_marketing[[#Headers],[Jan]],Skutocne_naklady_na_marketing[#Headers],0)) -> 200.00 EUR | D26: =INDEX(Planovane_naklady_na_marketing[],MATCH(INDEX(Odchylky_v_nakladoch_na_marketing[],ROW()-ROW(Odchylky_v_nakladoch_na_marketing[[#Headers],[Feb]]),1),INDEX(Planovane_naklady_na_marketing[],,1),0),MATCH(Odchylky_v_nakladoch_na_marketing[[#Headers],[Feb]],Planovane_naklady_na_marketing[#Headers],0))-INDEX(Skutocne_naklady_na_marketing[],MATCH(INDEX(Odchylky_v_nakladoch_na_marketing[],ROW()-ROW(Odchylky_v_nakladoch_na_marketing[[#Headers],[Feb]]),1),INDEX(Planovane_naklady_na_marketing[],,1),0),MATCH(Odchylky_v_nakladoch_na_marketing[[#Headers],[Feb]],Skutocne_naklady_na_marketing[#Headers],0)) -> -200.00 EUR | E26: =INDEX(Planovane_naklady_na_marketing[],MATCH(INDEX(Odchylky_v_nakladoch_na_marketing[],ROW()-ROW(Odchylky_v_nakladoch_na_marketing[[#Headers],[Mar]]),1),INDEX(Planovane_naklady_na_marketing[],,1),0),MATCH(Odchylky_v_nakladoch_na_marketing[[#Headers],[Mar]],Planovane_naklady_na_marketing[#Headers],0))-INDEX(Skutocne_naklady_na_marketing[],MATCH(INDEX(Odchylky_v_nakladoch_na_marketing[],ROW()-ROW(Odchylky_v_nakladoch_na_marketing[[#Headers],[Mar]]),1),INDEX(Planovane_naklady_na_marketing[],,1),0),MATCH(Odchylky_v_nakladoch_na_marketing[[#Headers],[Mar]],Skutocne_naklady_na_marketing[#Headers],0)) -> -200.00 EUR | F26: =INDEX(Planovane_naklady_na_marketing[],MATCH(INDEX(Odchylky_v_nakladoch_na_marketing[],ROW()-ROW(Odchylky_v_nakladoch_na_marketing[[#Headers],[Apr]]),1),INDEX(Planovane_naklady_na_marketing[],,1),0),MATCH(Odchylky_v_nakladoch_na_marketing[[#Headers],[Apr]],Planovane_naklady_na_marketing[#Headers],0))-INDEX(Skutocne_naklady_na_marketing[],MATCH(INDEX(Odchylky_v_nakladoch_na_marketing[],ROW()-ROW(Odchylky_v_nakladoch_na_marketing[[#Headers],[Apr]]),1),INDEX(Planovane_naklady_na_marketing[],,1),0),MATCH(Odchylky_v_nakladoch_na_marketing[[#Headers],[Apr]],Skutocne_naklady_na_marketing[#Headers],0)) -> 300.00 EUR | G26: =INDEX(Planovane_naklady_na_marketing[],MATCH(INDEX(Odchylky_v_nakladoch_na_marketing[],ROW()-ROW(Odchylky_v_nakladoch_na_marketing[[#Headers],[Máj]]),1),INDEX(Planovane_naklady_na_marketing[],,1),0),MATCH(Odchylky_v_nakladoch_na_marketing[[#Headers],[Máj]],Planovane_naklady_na_marketing[#Headers],0))-INDEX(Skutocne_naklady_na_marketing[],MATCH(INDEX(Odchylky_v_nakladoch_na_marketing[],ROW()-ROW(Odchylky_v_nakladoch_na_marketing[[#Headers],[Máj]]),1),INDEX(Planovane_naklady_na_marketing[],,1),0),MATCH(Odchylky_v_nakladoch_na_marketing[[#Headers],[Máj]],Skutocne_naklady_na_marketing[#Headers],0)) -> 500.00 EUR | H26: =INDEX(Planovane_naklady_na_marketing[],MATCH(INDEX(Odchylky_v_nakladoch_na_marketing[],ROW()-ROW(Odchylky_v_nakladoch_na_marketing[[#Headers],[Jún]]),1),INDEX(Planovane_naklady_na_marketing[],,1),0),MATCH(Odchylky_v_nakladoch_na_marketing[[#Headers],[Jún]],Planovane_naklady_na_marketing[#Headers],0))-INDEX(Skutocne_naklady_na_marketing[],MATCH(INDEX(Odchylky_v_nakladoch_na_marketing[],ROW()-ROW(Odchylky_v_nakladoch_na_marketing[[#Headers],[Jún]]),1),INDEX(Planovane_naklady_na_marketing[],,1),0),MATCH(Odchylky_v_nakladoch_na_marketing[[#Headers],[Jún]],Skutocne_naklady_na_marketing[#Headers],0)) -> -300.00 EUR | I26: =INDEX(Planovane_naklady_na_marketing[],MATCH(INDEX(Odchylky_v_nakladoch_na_marketing[],ROW()-ROW(Odchylky_v_nakladoch_na_marketing[[#Headers],[Júl]]),1),INDEX(Planovane_naklady_na_marketing[],,1),0),MATCH(Odchylky_v_nakladoch_na_marketing[[#Headers],[Júl]],Planovane_naklady_na_marketing[#Headers],0))-INDEX(Skutocne_naklady_na_marketing[],MATCH(INDEX(Odchylky_v_nakladoch_na_marketing[],ROW()-ROW(Odchylky_v_nakladoch_na_marketing[[#Headers],[Júl]]),1),INDEX(Planovane_naklady_na_marketing[],,1),0),MATCH(Odchylky_v_nakladoch_na_marketing[[#Headers],[Júl]],Skutocne_naklady_na_marketing[#Headers],0)) -> 2,000.00 EUR | J26: =INDEX(Planovane_naklady_na_marketing[],MATCH(INDEX(Odchylky_v_nakladoch_na_marketing[],ROW()-ROW(Odchylky_v_nakladoch_na_marketing[[#Headers],[Aug]]),1),INDEX(Planovane_naklady_na_marketing[],,1),0),MATCH(Odchylky_v_nakladoch_na_marketing[[#Headers],[Aug]],Planovane_naklady_na_marketing[#Headers],0))-INDEX(Skutocne_naklady_na_marketing[],MATCH(INDEX(Odchylky_v_nakladoch_na_marketing[],ROW()-ROW(Odchylky_v_nakladoch_na_marketing[[#Headers],[Aug]]),1),INDEX(Planovane_naklady_na_marketing[],,1),0),MATCH(Odchylky_v_nakladoch_na_marketing[[#Headers],[Aug]],Skutocne_naklady_na_marketing[#Headers],0)) -> 5,000.00 EUR | K26: =INDEX(Planovane_naklady_na_marketing[],MATCH(INDEX(Odchylky_v_nakladoch_na_marketing[],ROW()-ROW(Odchylky_v_nakladoch_na_marketing[[#Headers],[Sep]]),1),INDEX(Planovane_naklady_na_marketing[],,1),0),MATCH(Odchylky_v_nakladoch_na_marketing[[#Headers],[Sep]],Planovane_naklady_na_marketing[#Headers],0))-INDEX(Skutocne_naklady_na_marketing[],MATCH(INDEX(Odchylky_v_nakladoch_na_marketing[],ROW()-ROW(Odchylky_v_nakladoch_na_marketing[[#Headers],[Sep]]),1),INDEX(Planovane_naklady_na_marketing[],,1),0),MATCH(Odchylky_v_nakladoch_na_marketing[[#Headers],[Sep]],Skutocne_naklady_na_marketing[#Headers],0)) -> 2,000.00 EUR | L26: =INDEX(Planovane_naklady_na_marketing[],MATCH(INDEX(Odchylky_v_nakladoch_na_marketing[],ROW()-ROW(Odchylky_v_nakladoch_na_marketing[[#Headers],[Okt]]),1),INDEX(Planovane_naklady_na_marketing[],,1),0),MATCH(Odchylky_v_nakladoch_na_marketing[[#Headers],[Okt]],Planovane_naklady_na_marketing[#Headers],0))-INDEX(Skutocne_naklady_na_marketing[],MATCH(INDEX(Odchylky_v_nakladoch_na_marketing[],ROW()-ROW(Odchylky_v_nakladoch_na_marketing[[#Headers],[Okt]]),1),INDEX(Planovane_naklady_na_marketing[],,1),0),MATCH(Odchylky_v_nakladoch_na_marketing[[#Headers],[Okt]],Skutocne_naklady_na_marketing[#Headers],0)) -> 2,000.00 EUR | M26: =INDEX(Planovane_naklady_na_marketing[],MATCH(INDEX(Odchylky_v_nakladoch_na_marketing[],ROW()-ROW(Odchylky_v_nakladoch_na_marketing[[#Headers],[Nov]]),1),INDEX(Planovane_naklady_na_marketing[],,1),0),MATCH(Odchylky_v_nakladoch_na_marketing[[#Headers],[Nov]],Planovane_naklady_na_marketing[#Headers],0))-INDEX(Skutocne_naklady_na_marketing[],MATCH(INDEX(Odchylky_v_nakladoch_na_marketing[],ROW()-ROW(Odchylky_v_nakladoch_na_marketing[[#Headers],[Nov]]),1),INDEX(Planovane_naklady_na_marketing[],,1),0),MATCH(Odchylky_v_nakladoch_na_marketing[[#Headers],[Nov]],Skutocne_naklady_na_marketing[#Headers],0)) -> 2,000.00 EUR | N26: =INDEX(Planovane_naklady_na_marketing[],MATCH(INDEX(Odchylky_v_nakladoch_na_marketing[],ROW()-ROW(Odchylky_v_nakladoch_na_marketing[[#Headers],[Dec]]),1),INDEX(Planovane_naklady_na_marketing[],,1),0),MATCH(Odchylky_v_nakladoch_na_marketing[[#Headers],[Dec]],Planovane_naklady_na_marketing[#Headers],0))-INDEX(Skutocne_naklady_na_marketing[],MATCH(INDEX(Odchylky_v_nakladoch_na_marketing[],ROW()-ROW(Odchylky_v_nakladoch_na_marketing[[#Headers],[Dec]]),1),INDEX(Planovane_naklady_na_marketing[],,1),0),MATCH(Odchylky_v_nakladoch_na_marketing[[#Headers],[Dec]],Skutocne_naklady_na_marketing[#Headers],0)) -> 5,000.00 EUR | O26: =SUM(Odchylky_v_nakladoch_na_marketing[[#This Row],[Jan]:[Dec]]) -> 18,300.00 EUR
B27: Rôzne výdavky | C27: =INDEX(Planovane_naklady_na_marketing[],MATCH(INDEX(Odchylky_v_nakladoch_na_marketing[],ROW()-ROW(Odchylky_v_nakladoch_na_marketing[[#Headers],[Jan]]),1),INDEX(Planovane_naklady_na_marketing[],,1),0),MATCH(Odchylky_v_nakladoch_na_marketing[[#Headers],[Jan]],Planovane_naklady_na_marketing[#Headers],0))-INDEX(Skutocne_naklady_na_marketing[],MATCH(INDEX(Odchylky_v_nakladoch_na_marketing[],ROW()-ROW(Odchylky_v_nakladoch_na_marketing[[#Headers],[Jan]]),1),INDEX(Planovane_naklady_na_marketing[],,1),0),MATCH(Odchylky_v_nakladoch_na_marketing[[#Headers],[Jan]],Skutocne_naklady_na_marketing[#Headers],0)) -> 55.00 EUR | D27: =INDEX(Planovane_naklady_na_marketing[],MATCH(INDEX(Odchylky_v_nakladoch_na_marketing[],ROW()-ROW(Odchylky_v_nakladoch_na_marketing[[#Headers],[Feb]]),1),INDEX(Planovane_naklady_na_marketing[],,1),0),MATCH(Odchylky_v_nakladoch_na_marketing[[#Headers],[Feb]],Planovane_naklady_na_marketing[#Headers],0))-INDEX(Skutocne_naklady_na_marketing[],MATCH(INDEX(Odchylky_v_nakladoch_na_marketing[],ROW()-ROW(Odchylky_v_nakladoch_na_marketing[[#Headers],[Feb]]),1),INDEX(Planovane_naklady_na_marketing[],,1),0),MATCH(Odchylky_v_nakladoch_na_marketing[[#Headers],[Feb]],Skutocne_naklady_na_marketing[#Headers],0)) -> 44.00 EUR | E27: =INDEX(Planovane_naklady_na_marketing[],MATCH(INDEX(Odchylky_v_nakladoch_na_marketing[],ROW()-ROW(Odchylky_v_nakladoch_na_marketing[[#Headers],[Mar]]),1),INDEX(Planovane_naklady_na_marketing[],,1),0),MATCH(Odchylky_v_nakladoch_na_marketing[[#Headers],[Mar]],Planovane_naklady_na_marketing[#Headers],0))-INDEX(Skutocne_naklady_na_marketing[],MATCH(INDEX(Odchylky_v_nakladoch_na_marketing[],ROW()-ROW(Odchylky_v_nakladoch_na_marketing[[#Headers],[Mar]]),1),INDEX(Planovane_naklady_na_marketing[],,1),0),MATCH(Odchylky_v_nakladoch_na_marketing[[#Headers],[Mar]],Skutocne_naklady_na_marketing[#Headers],0)) -> 77.00 EUR | F27: =INDEX(Planovane_naklady_na_marketing[],MATCH(INDEX(Odchylky_v_nakladoch_na_marketing[],ROW()-ROW(Odchylky_v_nakladoch_na_marketing[[#Headers],[Apr]]),1),INDEX(Planovane_naklady_na_marketing[],,1),0),MATCH(Odchylky_v_nakladoch_na_marketing[[#Headers],[Apr]],Planovane_naklady_na_marketing[#Headers],0))-INDEX(Skutocne_naklady_na_marketing[],MATCH(INDEX(Odchylky_v_nakladoch_na_marketing[],ROW()-ROW(Odchylky_v_nakladoch_na_marketing[[#Headers],[Apr]]),1),INDEX(Planovane_naklady_na_marketing[],,1),0),MATCH(Odchylky_v_nakladoch_na_marketing[[#Headers],[Apr]],Skutocne_naklady_na_marketing[#Headers],0)) -> -23.00 EUR | G27: =INDEX(Planovane_naklady_na_marketing[],MATCH(INDEX(Odchylky_v_nakladoch_na_marketing[],ROW()-ROW(Odchylky_v_nakladoch_na_marketing[[#Headers],[Máj]]),1),INDEX(Planovane_naklady_na_marketing[],,1),0),MATCH(Odchylky_v_nakladoch_na_marketing[[#Headers],[Máj]],Planovane_naklady_na_marketing[#Headers],0))-INDEX(Skutocne_naklady_na_marketing[],MATCH(INDEX(Odchylky_v_nakladoch_na_marketing[],ROW()-ROW(Odchylky_v_nakladoch_na_marketing[[#Headers],[Máj]]),1),INDEX(Planovane_naklady_na_marketing[],,1),0),MATCH(Odchylky_v_nakladoch_na_marketing[[#Headers],[Máj]],Skutocne_naklady_na_marketing[#Headers],0)) -> 13.00 EUR | H27: =INDEX(Planovane_naklady_na_marketing[],MATCH(INDEX(Odchylky_v_nakladoch_na_marketing[],ROW()-ROW(Odchylky_v_nakladoch_na_marketing[[#Headers],[Jún]]),1),INDEX(Planovane_naklady_na_marketing[],,1),0),MATCH(Odchylky_v_nakladoch_na_marketing[[#Headers],[Jún]],Planovane_naklady_na_marketing[#Headers],0))-INDEX(Skutocne_naklady_na_marketing[],MATCH(INDEX(Odchylky_v_nakladoch_na_marketing[],ROW()-ROW(Odchylky_v_nakladoch_na_marketing[[#Headers],[Jún]]),1),INDEX(Planovane_naklady_na_marketing[],,1),0),MATCH(Odchylky_v_nakladoch_na_marketing[[#Headers],[Jún]],Skutocne_naklady_na_marketing[#Headers],0)) -> -45.00 EUR | I27: =INDEX(Planovane_naklady_na_marketing[],MATCH(INDEX(Odchylky_v_nakladoch_na_marketing[],ROW()-ROW(Odchylky_v_nakladoch_na_marketing[[#Headers],[Júl]]),1),INDEX(Planovane_naklady_na_marketing[],,1),0),MATCH(Odchylky_v_nakladoch_na_marketing[[#Headers],[Júl]],Planovane_naklady_na_marketing[#Headers],0))-INDEX(Skutocne_naklady_na_marketing[],MATCH(INDEX(Odchylky_v_nakladoch_na_marketing[],ROW()-ROW(Odchylky_v_nakladoch_na_marketing[[#Headers],[Júl]]),1),INDEX(Planovane_naklady_na_marketing[],,1),0),MATCH(Odchylky_v_nakladoch_na_marketing[[#Headers],[Júl]],Skutocne_naklady_na_marketing[#Headers],0)) -> 200.00 EUR | J27: =INDEX(Planovane_naklady_na_marketing[],MATCH(INDEX(Odchylky_v_nakladoch_na_marketing[],ROW()-ROW(Odchylky_v_nakladoch_na_marketing[[#Headers],[Aug]]),1),INDEX(Planovane_naklady_na_marketing[],,1),0),MATCH(Odchylky_v_nakladoch_na_marketing[[#Headers],[Aug]],Planovane_naklady_na_marketing[#Headers],0))-INDEX(Skutocne_naklady_na_marketing[],MATCH(INDEX(Odchylky_v_nakladoch_na_marketing[],ROW()-ROW(Odchylky_v_nakladoch_na_marketing[[#Headers],[Aug]]),1),INDEX(Planovane_naklady_na_marketing[],,1),0),MATCH(Odchylky_v_nakladoch_na_marketing[[#Headers],[Aug]],Skutocne_naklady_na_marketing[#Headers],0)) -> 200.00 EUR | K27: =INDEX(Planovane_naklady_na_marketing[],MATCH(INDEX(Odchylky_v_nakladoch_na_marketing[],ROW()-ROW(Odchylky_v_nakladoch_na_marketing[[#Headers],[Sep]]),1),INDEX(Planovane_naklady_na_marketing[],,1),0),MATCH(Odchylky_v_nakladoch_na_marketing[[#Headers],[Sep]],Planovane_naklady_na_marketing[#Headers],0))-INDEX(Skutocne_naklady_na_marketing[],MATCH(INDEX(Odchylky_v_nakladoch_na_marketing[],ROW()-ROW(Odchylky_v_nakladoch_na_marketing[[#Headers],[Sep]]),1),INDEX(Planovane_naklady_na_marketing[],,1),0),MATCH(Odchylky_v_nakladoch_na_marketing[[#Headers],[Sep]],Skutocne_naklady_na_marketing[#Headers],0)) -> 200.00 EUR | L27: =INDEX(Planovane_naklady_na_marketing[],MATCH(INDEX(Odchylky_v_nakladoch_na_marketing[],ROW()-ROW(Odchylky_v_nakladoch_na_marketing[[#Headers],[Okt]]),1),INDEX(Planovane_naklady_na_marketing[],,1),0),MATCH(Odchylky_v_nakladoch_na_marketing[[#Headers],[Okt]],Planovane_naklady_na_marketing[#Headers],0))-INDEX(Skutocne_naklady_na_marketing[],MATCH(INDEX(Odchylky_v_nakladoch_na_marketing[],ROW()-ROW(Odchylky_v_nakladoch_na_marketing[[#Headers],[Okt]]),1),INDEX(Planovane_naklady_na_marketing[],,1),0),MATCH(Odchylky_v_nakladoch_na_marketing[[#Headers],[Okt]],Skutocne_naklady_na_marketing[#Headers],0)) -> 200.00 EUR | M27: =INDEX(Planovane_naklady_na_marketing[],MATCH(INDEX(Odchylky_v_nakladoch_na_marketing[],ROW()-ROW(Odchylky_v_nakladoch_na_marketing[[#Headers],[Nov]]),1),INDEX(Planovane_naklady_na_marketing[],,1),0),MATCH(Odchylky_v_nakladoch_na_marketing[[#Headers],[Nov]],Planovane_naklady_na_marketing[#Headers],0))-INDEX(Skutocne_naklady_na_marketing[],MATCH(INDEX(Odchylky_v_nakladoch_na_marketing[],ROW()-ROW(Odchylky_v_nakladoch_na_marketing[[#Headers],[Nov]]),1),INDEX(Planovane_naklady_na_marketing[],,1),0),MATCH(Odchylky_v_nakladoch_na_marketing[[#Headers],[Nov]],Skutocne_naklady_na_marketing[#Headers],0)) -> 200.00 EUR | N27: =INDEX(Planovane_naklady_na_marketing[],MATCH(INDEX(Odchylky_v_nakladoch_na_marketing[],ROW()-ROW(Odchylky_v_nakladoch_na_marketing[[#Headers],[Dec]]),1),INDEX(Planovane_naklady_na_marketing[],,1),0),MATCH(Odchylky_v_nakladoch_na_marketing[[#Headers],[Dec]],Planovane_naklady_na_marketing[#Headers],0))-INDEX(Skutocne_naklady_na_marketing[],MATCH(INDEX(Odchylky_v_nakladoch_na_marketing[],ROW()-ROW(Odchylky_v_nakladoch_na_marketing[[#Headers],[Dec]]),1),INDEX(Planovane_naklady_na_marketing[],,1),0),MATCH(Odchylky_v_nakladoch_na_marketing[[#Headers],[Dec]],Skutocne_naklady_na_marketing[#Headers],0)) -> 200.00 EUR | O27: =SUM(Odchylky_v_nakladoch_na_marketing[[#This Row],[Jan]:[Dec]]) -> 1,321.00 EUR
B28: Medzisúčet | C28: =SUBTOTAL(109,Odchylky_v_nakladoch_na_marketing[Jan]) -> 555.00 EUR | D28: =SUBTOTAL(109,Odchylky_v_nakladoch_na_marketing[Feb]) -> -456.00 EUR | E28: =SUBTOTAL(109,Odchylky_v_nakladoch_na_marketing[Mar]) -> -23.00 EUR | F28: =SUBTOTAL(109,Odchylky_v_nakladoch_na_marketing[Apr]) -> -123.00 EUR | G28: =SUBTOTAL(109,Odchylky_v_nakladoch_na_marketing[Máj]) -> 113.00 EUR | H28: =SUBTOTAL(109,Odchylky_v_nakladoch_na_marketing[Jún]) -> -825.00 EUR | I28: =SUBTOTAL(109,Odchylky_v_nakladoch_na_marketing[Júl]) -> 8,100.00 EUR | J28: =SUBTOTAL(109,Odchylky_v_nakladoch_na_marketing[Aug]) -> 6,100.00 EUR | K28: =SUBTOTAL(109,Odchylky_v_nakladoch_na_marketing[Sep]) -> 3,100.00 EUR | L28: =SUBTOTAL(109,Odchylky_v_nakladoch_na_marketing[Okt]) -> 8,100.00 EUR | M28: =SUBTOTAL(109,Odchylky_v_nakladoch_na_marketing[Nov]) -> 3,100.00 EUR | N28: =SUBTOTAL(109,Odchylky_v_nakladoch_na_marketing[Dec]) -> 6,900.00 EUR | O28: =SUBTOTAL(109,Odchylky_v_nakladoch_na_marketing[ROK]) -> 34,641.00 EUR
A30: V tabuľke odchýlok v Náklady na školenie a cestovné začínajúcej v bunke napravo sa automaticky vypočítajú odchylky v nakladoch na skolenie a cestovne. Ďalší pokyn je v bunke A35. | B30: Školenie/cestovné | C30: Jan | D30: Feb | E30: Mar | F30: Apr | G30: Máj | H30: Jún | I30: Júl | J30: Aug | K30: Sep | L30: Okt | M30: Nov | N30: Dec | O30: ROK
B31: Školiace kurzy | C31: =INDEX(Planovane_naklady_na_skolenie_a_cestovne[],MATCH(INDEX(Odchylky_v_nakladoch_na_skolenie_a_cestovne[],ROW()-ROW(Odchylky_v_nakladoch_na_skolenie_a_cestovne[[#Headers],[Jan]]),1),INDEX(Planovane_naklady_na_skolenie_a_cestovne[],,1),0),MATCH(Odchylky_v_nakladoch_na_skolenie_a_cestovne[[#Headers],[Jan]],Planovane_naklady_na_skolenie_a_cestovne[#Headers],0))-INDEX(Skutocne_naklady_na_skolenie_a_cestovne[],MATCH(INDEX(Odchylky_v_nakladoch_na_skolenie_a_cestovne[],ROW()-ROW(Odchylky_v_nakladoch_na_skolenie_a_cestovne[[#Headers],[Jan]]),1),INDEX(Planovane_naklady_na_skolenie_a_cestovne[],,1),0),MATCH(Odchylky_v_nakladoch_na_skolenie_a_cestovne[[#Headers],[Jan]],Skutocne_naklady_na_skolenie_a_cestovne[#Headers],0)) -> 400.00 EUR | D31: =INDEX(Planovane_naklady_na_skolenie_a_cestovne[],MATCH(INDEX(Odchylky_v_nakladoch_na_skolenie_a_cestovne[],ROW()-ROW(Odchylky_v_nakladoch_na_skolenie_a_cestovne[[#Headers],[Feb]]),1),INDEX(Planovane_naklady_na_skolenie_a_cestovne[],,1),0),MATCH(Odchylky_v_nakladoch_na_skolenie_a_cestovne[[#Headers],[Feb]],Planovane_naklady_na_skolenie_a_cestovne[#Headers],0))-INDEX(Skutocne_naklady_na_skolenie_a_cestovne[],MATCH(INDEX(Odchylky_v_nakladoch_na_skolenie_a_cestovne[],ROW()-ROW(Odchylky_v_nakladoch_na_skolenie_a_cestovne[[#Headers],[Feb]]),1),INDEX(Planovane_naklady_na_skolenie_a_cestovne[],,1),0),MATCH(Odchylky_v_nakladoch_na_skolenie_a_cestovne[[#Headers],[Feb]],Skutocne_naklady_na_skolenie_a_cestovne[#Headers],0)) -> -400.00 EUR | E31: =INDEX(Planovane_naklady_na_skolenie_a_cestovne[],MATCH(INDEX(Odchylky_v_nakladoch_na_skolenie_a_cestovne[],ROW()-ROW(Odchylky_v_nakladoch_na_skolenie_a_cestovne[[#Headers],[Mar]]),1),INDEX(Planovane_naklady_na_skolenie_a_cestovne[],,1),0),MATCH(Odchylky_v_nakladoch_na_skolenie_a_cestovne[[#Headers],[Mar]],Planovane_naklady_na_skolenie_a_cestovne[#Headers],0))-INDEX(Skutocne_naklady_na_skolenie_a_cestovne[],MATCH(INDEX(Odchylky_v_nakladoch_na_skolenie_a_cestovne[],ROW()-ROW(Odchylky_v_nakladoch_na_skolenie_a_cestovne[[#Headers],[Mar]]),1),INDEX(Planovane_naklady_na_skolenie_a_cestovne[],,1),0),MATCH(Odchylky_v_nakladoch_na_skolenie_a_cestovne[[#Headers],[Mar]],Skutocne_naklady_na_skolenie_a_cestovne[#Headers],0)) -> 600.00 EUR | F31: =INDEX(Planovane_naklady_na_skolenie_a_cestovne[],MATCH(INDEX(Odchylky_v_nakladoch_na_skolenie_a_cestovne[],ROW()-ROW(Odchylky_v_nakladoch_na_skolenie_a_cestovne[[#Headers],[Apr]]),1),INDEX(Planovane_naklady_na_skolenie_a_cestovne[],,1),0),MATCH(Odchylky_v_nakladoch_na_skolenie_a_cestovne[[#Headers],[Apr]],Planovane_naklady_na_skolenie_a_cestovne[#Headers],0))-INDEX(Skutocne_naklady_na_skolenie_a_cestovne[],MATCH(INDEX(Odchylky_v_nakladoch_na_skolenie_a_cestovne[],ROW()-ROW(Odchylky_v_nakladoch_na_skolenie_a_cestovne[[#Headers],[Apr]]),1),INDEX(Planovane_naklady_na_skolenie_a_cestovne[],,1),0),MATCH(Odchylky_v_nakladoch_na_skolenie_a_cestovne[[#Headers],[Apr]],Skutocne_naklady_na_skolenie_a_cestovne[#Headers],0)) -> 400.00 EUR | G31: =INDEX(Planovane_naklady_na_skolenie_a_cestovne[],MATCH(INDEX(Odchylky_v_nakladoch_na_skolenie_a_cestovne[],ROW()-ROW(Odchylky_v_nakladoch_na_skolenie_a_cestovne[[#Headers],[Máj]]),1),INDEX(Planovane_naklady_na_skolenie_a_cestovne[],,1),0),MATCH(Odchylky_v_nakladoch_na_skolenie_a_cestovne[[#Headers],[Máj]],Planovane_naklady_na_skolenie_a_cestovne[#Headers],0))-INDEX(Skutocne_naklady_na_skolenie_a_cestovne[],MATCH(INDEX(Odchylky_v_nakladoch_na_skolenie_a_cestovne[],ROW()-ROW(Odchylky_v_nakladoch_na_skolenie_a_cestovne[[#Headers],[Máj]]),1),INDEX(Planovane_naklady_na_skolenie_a_cestovne[],,1),0),MATCH(Odchylky_v_nakladoch_na_skolenie_a_cestovne[[#Headers],[Máj]],Skutocne_naklady_na_skolenie_a_cestovne[#Headers],0)) -> 800.00 EUR | H31: =INDEX(Planovane_naklady_na_skolenie_a_cestovne[],MATCH(INDEX(Odchylky_v_nakladoch_na_skolenie_a_cestovne[],ROW()-ROW(Odchylky_v_nakladoch_na_skolenie_a_cestovne[[#Headers],[Jún]]),1),INDEX(Planovane_naklady_na_skolenie_a_cestovne[],,1),0),MATCH(Odchylky_v_nakladoch_na_skolenie_a_cestovne[[#Headers],[Jún]],Planovane_naklady_na_skolenie_a_cestovne[#Headers],0))-INDEX(Skutocne_naklady_na_skolenie_a_cestovne[],MATCH(INDEX(Odchylky_v_nakladoch_na_skolenie_a_cestovne[],ROW()-ROW(Odchylky_v_nakladoch_na_skolenie_a_cestovne[[#Headers],[Jún]]),1),INDEX(Planovane_naklady_na_skolenie_a_cestovne[],,1),0),MATCH(Odchylky_v_nakladoch_na_skolenie_a_cestovne[[#Headers],[Jún]],Skutocne_naklady_na_skolenie_a_cestovne[#Headers],0)) -> -800.00 EUR | I31: =INDEX(Planovane_naklady_na_skolenie_a_cestovne[],MATCH(INDEX(Odchylky_v_nakladoch_na_skolenie_a_cestovne[],ROW()-ROW(Odchylky_v_nakladoch_na_skolenie_a_cestovne[[#Headers],[Júl]]),1),INDEX(Planovane_naklady_na_skolenie_a_cestovne[],,1),0),MATCH(Odchylky_v_nakladoch_na_skolenie_a_cestovne[[#Headers],[Júl]],Planovane_naklady_na_skolenie_a_cestovne[#Headers],0))-INDEX(Skutocne_naklady_na_skolenie_a_cestovne[],MATCH(INDEX(Odchylky_v_nakladoch_na_skolenie_a_cestovne[],ROW()-ROW(Odchylky_v_nakladoch_na_skolenie_a_cestovne[[#Headers],[Júl]]),1),INDEX(Planovane_naklady_na_skolenie_a_cestovne[],,1),0),MATCH(Odchylky_v_nakladoch_na_skolenie_a_cestovne[[#Headers],[Júl]],Skutocne_naklady_na_skolenie_a_cestovne[#Headers],0)) -> 2,000.00 EUR | J31: =INDEX(Planovane_naklady_na_skolenie_a_cestovne[],MATCH(INDEX(Odchylky_v_nakladoch_na_skolenie_a_cestovne[],ROW()-ROW(Odchylky_v_nakladoch_na_skolenie_a_cestovne[[#Headers],[Aug]]),1),INDEX(Planovane_naklady_na_skolenie_a_cestovne[],,1),0),MATCH(Odchylky_v_nakladoch_na_skolenie_a_cestovne[[#Headers],[Aug]],Planovane_naklady_na_skolenie_a_cestovne[#Headers],0))-INDEX(Skutocne_naklady_na_skolenie_a_cestovne[],MATCH(INDEX(Odchylky_v_nakladoch_na_skolenie_a_cestovne[],ROW()-ROW(Odchylky_v_nakladoch_na_skolenie_a_cestovne[[#Headers],[Aug]]),1),INDEX(Planovane_naklady_na_skolenie_a_cestovne[],,1),0),MATCH(Odchylky_v_nakladoch_na_skolenie_a_cestovne[[#Headers],[Aug]],Skutocne_naklady_na_skolenie_a_cestovne[#Headers],0)) -> 2,000.00 EUR | K31: =INDEX(Planovane_naklady_na_skolenie_a_cestovne[],MATCH(INDEX(Odchylky_v_nakladoch_na_skolenie_a_cestovne[],ROW()-ROW(Odchylky_v_nakladoch_na_skolenie_a_cestovne[[#Headers],[Sep]]),1),INDEX(Planovane_naklady_na_skolenie_a_cestovne[],,1),0),MATCH(Odchylky_v_nakladoch_na_skolenie_a_cestovne[[#Headers],[Sep]],Planovane_naklady_na_skolenie_a_cestovne[#Headers],0))-INDEX(Skutocne_naklady_na_skolenie_a_cestovne[],MATCH(INDEX(Odchylky_v_nakladoch_na_skolenie_a_cestovne[],ROW()-ROW(Odchylky_v_nakladoch_na_skolenie_a_cestovne[[#Headers],[Sep]]),1),INDEX(Planovane_naklady_na_skolenie_a_cestovne[],,1),0),MATCH(Odchylky_v_nakladoch_na_skolenie_a_cestovne[[#Headers],[Sep]],Skutocne_naklady_na_skolenie_a_cestovne[#Headers],0)) -> 2,000.00 EUR | L31: =INDEX(Planovane_naklady_na_skolenie_a_cestovne[],MATCH(INDEX(Odchylky_v_nakladoch_na_skolenie_a_cestovne[],ROW()-ROW(Odchylky_v_nakladoch_na_skolenie_a_cestovne[[#Headers],[Okt]]),1),INDEX(Planovane_naklady_na_skolenie_a_cestovne[],,1),0),MATCH(Odchylky_v_nakladoch_na_skolenie_a_cestovne[[#Headers],[Okt]],Planovane_naklady_na_skolenie_a_cestovne[#Headers],0))-INDEX(Skutocne_naklady_na_skolenie_a_cestovne[],MATCH(INDEX(Odchylky_v_nakladoch_na_skolenie_a_cestovne[],ROW()-ROW(Odchylky_v_nakladoch_na_skolenie_a_cestovne[[#Headers],[Okt]]),1),INDEX(Planovane_naklady_na_skolenie_a_cestovne[],,1),0),MATCH(Odchylky_v_nakladoch_na_skolenie_a_cestovne[[#Headers],[Okt]],Skutocne_naklady_na_skolenie_a_cestovne[#Headers],0)) -> 2,000.00 EUR | M31: =INDEX(Planovane_naklady_na_skolenie_a_cestovne[],MATCH(INDEX(Odchylky_v_nakladoch_na_skolenie_a_cestovne[],ROW()-ROW(Odchylky_v_nakladoch_na_skolenie_a_cestovne[[#Headers],[Nov]]),1),INDEX(Planovane_naklady_na_skolenie_a_cestovne[],,1),0),MATCH(Odchylky_v_nakladoch_na_skolenie_a_cestovne[[#Headers],[Nov]],Planovane_naklady_na_skolenie_a_cestovne[#Headers],0))-INDEX(Skutocne_naklady_na_skolenie_a_cestovne[],MATCH(INDEX(Odchylky_v_nakladoch_na_skolenie_a_cestovne[],ROW()-ROW(Odchylky_v_nakladoch_na_skolenie_a_cestovne[[#Headers],[Nov]]),1),INDEX(Planovane_naklady_na_skolenie_a_cestovne[],,1),0),MATCH(Odchylky_v_nakladoch_na_skolenie_a_cestovne[[#Headers],[Nov]],Skutocne_naklady_na_skolenie_a_cestovne[#Headers],0)) -> 2,000.00 EUR | N31: =INDEX(Planovane_naklady_na_skolenie_a_cestovne[],MATCH(INDEX(Odchylky_v_nakladoch_na_skolenie_a_cestovne[],ROW()-ROW(Odchylky_v_nakladoch_na_skolenie_a_cestovne[[#Headers],[Dec]]),1),INDEX(Planovane_naklady_na_skolenie_a_cestovne[],,1),0),MATCH(Odchylky_v_nakladoch_na_skolenie_a_cestovne[[#Headers],[Dec]],Planovane_naklady_na_skolenie_a_cestovne[#Headers],0))-INDEX(Skutocne_naklady_na_skolenie_a_cestovne[],MATCH(INDEX(Odchylky_v_nakladoch_na_skolenie_a_cestovne[],ROW()-ROW(Odchylky_v_nakladoch_na_skolenie_a_cestovne[[#Headers],[Dec]]),1),INDEX(Planovane_naklady_na_skolenie_a_cestovne[],,1),0),MATCH(Odchylky_v_nakladoch_na_skolenie_a_cestovne[[#Headers],[Dec]],Skutocne_naklady_na_skolenie_a_cestovne[#Headers],0)) -> 2,000.00 EUR | O31: =SUM(Odchylky_v_nakladoch_na_skolenie_a_cestovne[[#This Row],[Jan]:[Dec]]) -> 13,000.00 EUR
B32: Cestovné náklady súvisiace so školením | C32: =INDEX(Planovane_naklady_na_skolenie_a_cestovne[],MATCH(INDEX(Odchylky_v_nakladoch_na_skolenie_a_cestovne[],ROW()-ROW(Odchylky_v_nakladoch_na_skolenie_a_cestovne[[#Headers],[Jan]]),1),INDEX(Planovane_naklady_na_skolenie_a_cestovne[],,1),0),MATCH(Odchylky_v_nakladoch_na_skolenie_a_cestovne[[#Headers],[Jan]],Planovane_naklady_na_skolenie_a_cestovne[#Headers],0))-INDEX(Skutocne_naklady_na_skolenie_a_cestovne[],MATCH(INDEX(Odchylky_v_nakladoch_na_skolenie_a_cestovne[],ROW()-ROW(Odchylky_v_nakladoch_na_skolenie_a_cestovne[[#Headers],[Jan]]),1),INDEX(Planovane_naklady_na_skolenie_a_cestovne[],,1),0),MATCH(Odchylky_v_nakladoch_na_skolenie_a_cestovne[[#Headers],[Jan]],Skutocne_naklady_na_skolenie_a_cestovne[#Headers],0)) -> 800.00 EUR | D32: =INDEX(Planovane_naklady_na_skolenie_a_cestovne[],MATCH(INDEX(Odchylky_v_nakladoch_na_skolenie_a_cestovne[],ROW()-ROW(Odchylky_v_nakladoch_na_skolenie_a_cestovne[[#Headers],[Feb]]),1),INDEX(Planovane_naklady_na_skolenie_a_cestovne[],,1),0),MATCH(Odchylky_v_nakladoch_na_skolenie_a_cestovne[[#Headers],[Feb]],Planovane_naklady_na_skolenie_a_cestovne[#Headers],0))-INDEX(Skutocne_naklady_na_skolenie_a_cestovne[],MATCH(INDEX(Odchylky_v_nakladoch_na_skolenie_a_cestovne[],ROW()-ROW(Odchylky_v_nakladoch_na_skolenie_a_cestovne[[#Headers],[Feb]]),1),INDEX(Planovane_naklady_na_skolenie_a_cestovne[],,1),0),MATCH(Odchylky_v_nakladoch_na_skolenie_a_cestovne[[#Headers],[Feb]],Skutocne_naklady_na_skolenie_a_cestovne[#Headers],0)) -> -200.00 EUR | E32: =INDEX(Planovane_naklady_na_skolenie_a_cestovne[],MATCH(INDEX(Odchylky_v_nakladoch_na_skolenie_a_cestovne[],ROW()-ROW(Odchylky_v_nakladoch_na_skolenie_a_cestovne[[#Headers],[Mar]]),1),INDEX(Planovane_naklady_na_skolenie_a_cestovne[],,1),0),MATCH(Odchylky_v_nakladoch_na_skolenie_a_cestovne[[#Headers],[Mar]],Planovane_naklady_na_skolenie_a_cestovne[#Headers],0))-INDEX(Skutocne_naklady_na_skolenie_a_cestovne[],MATCH(INDEX(Odchylky_v_nakladoch_na_skolenie_a_cestovne[],ROW()-ROW(Odchylky_v_nakladoch_na_skolenie_a_cestovne[[#Headers],[Mar]]),1),INDEX(Planovane_naklady_na_skolenie_a_cestovne[],,1),0),MATCH(Odchylky_v_nakladoch_na_skolenie_a_cestovne[[#Headers],[Mar]],Skutocne_naklady_na_skolenie_a_cestovne[#Headers],0)) -> 600.00 EUR | F32: =INDEX(Planovane_naklady_na_skolenie_a_cestovne[],MATCH(INDEX(Odchylky_v_nakladoch_na_skolenie_a_cestovne[],ROW()-ROW(Odchylky_v_nakladoch_na_skolenie_a_cestovne[[#Headers],[Apr]]),1),INDEX(Planovane_naklady_na_skolenie_a_cestovne[],,1),0),MATCH(Odchylky_v_nakladoch_na_skolenie_a_cestovne[[#Headers],[Apr]],Planovane_naklady_na_skolenie_a_cestovne[#Headers],0))-INDEX(Skutocne_naklady_na_skolenie_a_cestovne[],MATCH(INDEX(Odchylky_v_nakladoch_na_skolenie_a_cestovne[],ROW()-ROW(Odchylky_v_nakladoch_na_skolenie_a_cestovne[[#Headers],[Apr]]),1),INDEX(Planovane_naklady_na_skolenie_a_cestovne[],,1),0),MATCH(Odchylky_v_nakladoch_na_skolenie_a_cestovne[[#Headers],[Apr]],Skutocne_naklady_na_skolenie_a_cestovne[#Headers],0)) -> 800.00 EUR | G32: =INDEX(Planovane_naklady_na_skolenie_a_cestovne[],MATCH(INDEX(Odchylky_v_nakladoch_na_skolenie_a_cestovne[],ROW()-ROW(Odchylky_v_nakladoch_na_skolenie_a_cestovne[[#Headers],[Máj]]),1),INDEX(Planovane_naklady_na_skolenie_a_cestovne[],,1),0),MATCH(Odchylky_v_nakladoch_na_skolenie_a_cestovne[[#Headers],[Máj]],Planovane_naklady_na_skolenie_a_cestovne[#Headers],0))-INDEX(Skutocne_naklady_na_skolenie_a_cestovne[],MATCH(INDEX(Odchylky_v_nakladoch_na_skolenie_a_cestovne[],ROW()-ROW(Odchylky_v_nakladoch_na_skolenie_a_cestovne[[#Headers],[Máj]]),1),INDEX(Planovane_naklady_na_skolenie_a_cestovne[],,1),0),MATCH(Odchylky_v_nakladoch_na_skolenie_a_cestovne[[#Headers],[Máj]],Skutocne_naklady_na_skolenie_a_cestovne[#Headers],0)) -> 1,200.00 EUR | H32: =INDEX(Planovane_naklady_na_skolenie_a_cestovne[],MATCH(INDEX(Odchylky_v_nakladoch_na_skolenie_a_cestovne[],ROW()-ROW(Odchylky_v_nakladoch_na_skolenie_a_cestovne[[#Headers],[Jún]]),1),INDEX(Planovane_naklady_na_skolenie_a_cestovne[],,1),0),MATCH(Odchylky_v_nakladoch_na_skolenie_a_cestovne[[#Headers],[Jún]],Planovane_naklady_na_skolenie_a_cestovne[#Headers],0))-INDEX(Skutocne_naklady_na_skolenie_a_cestovne[],MATCH(INDEX(Odchylky_v_nakladoch_na_skolenie_a_cestovne[],ROW()-ROW(Odchylky_v_nakladoch_na_skolenie_a_cestovne[[#Headers],[Jún]]),1),INDEX(Planovane_naklady_na_skolenie_a_cestovne[],,1),0),MATCH(Odchylky_v_nakladoch_na_skolenie_a_cestovne[[#Headers],[Jún]],Skutocne_naklady_na_skolenie_a_cestovne[#Headers],0)) -> -1,500.00 EUR | I32: =INDEX(Planovane_naklady_na_skolenie_a_cestovne[],MATCH(INDEX(Odchylky_v_nakladoch_na_skolenie_a_cestovne[],ROW()-ROW(Odchylky_v_nakladoch_na_skolenie_a_cestovne[[#Headers],[Júl]]),1),INDEX(Planovane_naklady_na_skolenie_a_cestovne[],,1),0),MATCH(Odchylky_v_nakladoch_na_skolenie_a_cestovne[[#Headers],[Júl]],Planovane_naklady_na_skolenie_a_cestovne[#Headers],0))-INDEX(Skutocne_naklady_na_skolenie_a_cestovne[],MATCH(INDEX(Odchylky_v_nakladoch_na_skolenie_a_cestovne[],ROW()-ROW(Odchylky_v_nakladoch_na_skolenie_a_cestovne[[#Headers],[Júl]]),1),INDEX(Planovane_naklady_na_skolenie_a_cestovne[],,1),0),MATCH(Odchylky_v_nakladoch_na_skolenie_a_cestovne[[#Headers],[Júl]],Skutocne_naklady_na_skolenie_a_cestovne[#Headers],0)) -> 2,000.00 EUR | J32: =INDEX(Planovane_naklady_na_skolenie_a_cestovne[],MATCH(INDEX(Odchylky_v_nakladoch_na_skolenie_a_cestovne[],ROW()-ROW(Odchylky_v_nakladoch_na_skolenie_a_cestovne[[#Headers],[Aug]]),1),INDEX(Planovane_naklady_na_skolenie_a_cestovne[],,1),0),MATCH(Odchylky_v_nakladoch_na_skolenie_a_cestovne[[#Headers],[Aug]],Planovane_naklady_na_skolenie_a_cestovne[#Headers],0))-INDEX(Skutocne_naklady_na_skolenie_a_cestovne[],MATCH(INDEX(Odchylky_v_nakladoch_na_skolenie_a_cestovne[],ROW()-ROW(Odchylky_v_nakladoch_na_skolenie_a_cestovne[[#Headers],[Aug]]),1),INDEX(Planovane_naklady_na_skolenie_a_cestovne[],,1),0),MATCH(Odchylky_v_nakladoch_na_skolenie_a_cestovne[[#Headers],[Aug]],Skutocne_naklady_na_skolenie_a_cestovne[#Headers],0)) -> 2,000.00 EUR | K32: =INDEX(Planovane_naklady_na_skolenie_a_cestovne[],MATCH(INDEX(Odchylky_v_nakladoch_na_skolenie_a_cestovne[],ROW()-ROW(Odchylky_v_nakladoch_na_skolenie_a_cestovne[[#Headers],[Sep]]),1),INDEX(Planovane_naklady_na_skolenie_a_cestovne[],,1),0),MATCH(Odchylky_v_nakladoch_na_skolenie_a_cestovne[[#Headers],[Sep]],Planovane_naklady_na_skolenie_a_cestovne[#Headers],0))-INDEX(Skutocne_naklady_na_skolenie_a_cestovne[],MATCH(INDEX(Odchylky_v_nakladoch_na_skolenie_a_cestovne[],ROW()-ROW(Odchylky_v_nakladoch_na_skolenie_a_cestovne[[#Headers],[Sep]]),1),INDEX(Planovane_naklady_na_skolenie_a_cestovne[],,1),0),MATCH(Odchylky_v_nakladoch_na_skolenie_a_cestovne[[#Headers],[Sep]],Skutocne_naklady_na_skolenie_a_cestovne[#Headers],0)) -> 2,000.00 EUR | L32: =INDEX(Planovane_naklady_na_skolenie_a_cestovne[],MATCH(INDEX(Odchylky_v_nakladoch_na_skolenie_a_cestovne[],ROW()-ROW(Odchylky_v_nakladoch_na_skolenie_a_cestovne[[#Headers],[Okt]]),1),INDEX(Planovane_naklady_na_skolenie_a_cestovne[],,1),0),MATCH(Odchylky_v_nakladoch_na_skolenie_a_cestovne[[#Headers],[Okt]],Planovane_naklady_na_skolenie_a_cestovne[#Headers],0))-INDEX(Skutocne_naklady_na_skolenie_a_cestovne[],MATCH(INDEX(Odchylky_v_nakladoch_na_skolenie_a_cestovne[],ROW()-ROW(Odchylky_v_nakladoch_na_skolenie_a_cestovne[[#Headers],[Okt]]),1),INDEX(Planovane_naklady_na_skolenie_a_cestovne[],,1),0),MATCH(Odchylky_v_nakladoch_na_skolenie_a_cestovne[[#Headers],[Okt]],Skutocne_naklady_na_skolenie_a_cestovne[#Headers],0)) -> 2,000.00 EUR | M32: =INDEX(Planovane_naklady_na_skolenie_a_cestovne[],MATCH(INDEX(Odchylky_v_nakladoch_na_skolenie_a_cestovne[],ROW()-ROW(Odchylky_v_nakladoch_na_skolenie_a_cestovne[[#Headers],[Nov]]),1),INDEX(Planovane_naklady_na_skolenie_a_cestovne[],,1),0),MATCH(Odchylky_v_nakladoch_na_skolenie_a_cestovne[[#Headers],[Nov]],Planovane_naklady_na_skolenie_a_cestovne[#Headers],0))-INDEX(Skutocne_naklady_na_skolenie_a_cestovne[],MATCH(INDEX(Odchylky_v_nakladoch_na_skolenie_a_cestovne[],ROW()-ROW(Odchylky_v_nakladoch_na_skolenie_a_cestovne[[#Headers],[Nov]]),1),INDEX(Planovane_naklady_na_skolenie_a_cestovne[],,1),0),MATCH(Odchylky_v_nakladoch_na_skolenie_a_cestovne[[#Headers],[Nov]],Skutocne_naklady_na_skolenie_a_cestovne[#Headers],0)) -> 2,000.00 EUR | N32: =INDEX(Planovane_naklady_na_skolenie_a_cestovne[],MATCH(INDEX(Odchylky_v_nakladoch_na_skolenie_a_cestovne[],ROW()-ROW(Odchylky_v_nakladoch_na_skolenie_a_cestovne[[#Headers],[Dec]]),1),INDEX(Planovane_naklady_na_skolenie_a_cestovne[],,1),0),MATCH(Odchylky_v_nakladoch_na_skolenie_a_cestovne[[#Headers],[Dec]],Planovane_naklady_na_skolenie_a_cestovne[#Headers],0))-INDEX(Skutocne_naklady_na_skolenie_a_cestovne[],MATCH(INDEX(Odchylky_v_nakladoch_na_skolenie_a_cestovne[],ROW()-ROW(Odchylky_v_nakladoch_na_skolenie_a_cestovne[[#Headers],[Dec]]),1),INDEX(Planovane_naklady_na_skolenie_a_cestovne[],,1),0),MATCH(Odchylky_v_nakladoch_na_skolenie_a_cestovne[[#Headers],[Dec]],Skutocne_naklady_na_skolenie_a_cestovne[#Headers],0)) -> 2,000.00 EUR | O32: =SUM(Odchylky_v_nakladoch_na_skolenie_a_cestovne[[#This Row],[Jan]:[Dec]]) -> 13,700.00 EUR
B33: Medzisúčet | C33: =SUBTOTAL(109,Odchylky_v_nakladoch_na_skolenie_a_cestovne[Jan]) -> 1,200.00 EUR | D33: =SUBTOTAL(109,Odchylky_v_nakladoch_na_skolenie_a_cestovne[Feb]) -> -600.00 EUR | E33: =SUBTOTAL(109,Odchylky_v_nakladoch_na_skolenie_a_cestovne[Mar]) -> 1,200.00 EUR | F33: =SUBTOTAL(109,Odchylky_v_nakladoch_na_skolenie_a_cestovne[Apr]) -> 1,200.00 EUR | G33: =SUBTOTAL(109,Odchylky_v_nakladoch_na_skolenie_a_cestovne[Máj]) -> 2,000.00 EUR | H33: =SUBTOTAL(109,Odchylky_v_nakladoch_na_skolenie_a_cestovne[Jún]) -> -2,300.00 EUR | I33: =SUBTOTAL(109,Odchylky_v_nakladoch_na_skolenie_a_cestovne[Júl]) -> 4,000.00 EUR | J33: =SUBTOTAL(109,Odchylky_v_nakladoch_na_skolenie_a_cestovne[Aug]) -> 4,000.00 EUR | K33: =SUBTOTAL(109,Odchylky_v_nakladoch_na_skolenie_a_cestovne[Sep]) -> 4,000.00 EUR | L33: =SUBTOTAL(109,Odchylky_v_nakladoch_na_skolenie_a_cestovne[Okt]) -> 4,000.00 EUR | M33: =SUBTOTAL(109,Odchylky_v_nakladoch_na_skolenie_a_cestovne[Nov]) -> 4,000.00 EUR | N33: =SUBTOTAL(109,Odchylky_v_nakladoch_na_skolenie_a_cestovne[Dec]) -> 4,000.00 EUR | O33: =SUBTOTAL(109,Odchylky_v_nakladoch_na_skolenie_a_cestovne[ROK]) -> 26,700.00 EUR
A35: V tabuľke celkových odchýlky vo výdavkoch v bunke napravo sa automaticky vypočítajú celkove odchylky vo výdavkoch. | B35: SÚČTY | C35: Jan | D35: Feb | E35: Mar | F35: Apr | G35: Máj | H35: Jún | I35: Júl | J35: Aug | K35: Sep | L35: Okt | M35: Nov | N35: Dec | O35: Rok
B36: Mesačné skutočné výdavky | C36: =Odchylky_v_nakladoch_na_skolenie_a_cestovne[[#Totals],[Jan]]+Odchylky_v_nakladoch_na_marketing[[#Totals],[Jan]]+Odchylky_v_nakladoch_na_kancelariu[[#Totals],[Jan]]+Odchylky_v_nakladoch[[#Totals],[Jan]] -> 1,738.00 EUR | D36: =Odchylky_v_nakladoch_na_skolenie_a_cestovne[[#Totals],[Feb]]+Odchylky_v_nakladoch_na_marketing[[#Totals],[Feb]]+Odchylky_v_nakladoch_na_kancelariu[[#Totals],[Feb]]+Odchylky_v_nakladoch[[#Totals],[Feb]] -> -984.00 EUR | E36: =Odchylky_v_nakladoch_na_skolenie_a_cestovne[[#Totals],[Mar]]+Odchylky_v_nakladoch_na_marketing[[#Totals],[Mar]]+Odchylky_v_nakladoch_na_kancelariu[[#Totals],[Mar]]+Odchylky_v_nakladoch[[#Totals],[Mar]] -> 1,255.00 EUR | F36: =Odchylky_v_nakladoch_na_skolenie_a_cestovne[[#Totals],[Apr]]+Odchylky_v_nakladoch_na_marketing[[#Totals],[Apr]]+Odchylky_v_nakladoch_na_kancelariu[[#Totals],[Apr]]+Odchylky_v_nakladoch[[#Totals],[Apr]] -> 301.00 EUR | G36: =Odchylky_v_nakladoch_na_skolenie_a_cestovne[[#Totals],[Máj]]+Odchylky_v_nakladoch_na_marketing[[#Totals],[Máj]]+Odchylky_v_nakladoch_na_kancelariu[[#Totals],[Máj]]+Odchylky_v_nakladoch[[#Totals],[Máj]] -> 1,440.00 EUR | H36: =Odchylky_v_nakladoch_na_skolenie_a_cestovne[[#Totals],[Jún]]+Odchylky_v_nakladoch_na_marketing[[#Totals],[Jún]]+Odchylky_v_nakladoch_na_kancelariu[[#Totals],[Jún]]+Odchylky_v_nakladoch[[#Totals],[Jún]] -> -3,744.00 EUR | I36: =Odchylky_v_nakladoch_na_skolenie_a_cestovne[[#Totals],[Júl]]+Odchylky_v_nakladoch_na_marketing[[#Totals],[Júl]]+Odchylky_v_nakladoch_na_kancelariu[[#Totals],[Júl]]+Odchylky_v_nakladoch[[#Totals],[Júl]] -> 134,695.00 EUR | J36: =Odchylky_v_nakladoch_na_skolenie_a_cestovne[[#Totals],[Aug]]+Odchylky_v_nakladoch_na_marketing[[#Totals],[Aug]]+Odchylky_v_nakladoch_na_kancelariu[[#Totals],[Aug]]+Odchylky_v_nakladoch[[#Totals],[Aug]] -> 138,918.00 EUR | K36: =Odchylky_v_nakladoch_na_skolenie_a_cestovne[[#Totals],[Sep]]+Odchylky_v_nakladoch_na_marketing[[#Totals],[Sep]]+Odchylky_v_nakladoch_na_kancelariu[[#Totals],[Sep]]+Odchylky_v_nakladoch[[#Totals],[Sep]] -> 135,918.00 EUR | L36: =Odchylky_v_nakladoch_na_skolenie_a_cestovne[[#Totals],[Okt]]+Odchylky_v_nakladoch_na_marketing[[#Totals],[Okt]]+Odchylky_v_nakladoch_na_kancelariu[[#Totals],[Okt]]+Odchylky_v_nakladoch[[#Totals],[Okt]] -> 140,918.00 EUR | M36: =Odchylky_v_nakladoch_na_skolenie_a_cestovne[[#Totals],[Nov]]+Odchylky_v_nakladoch_na_marketing[[#Totals],[Nov]]+Odchylky_v_nakladoch_na_kancelariu[[#Totals],[Nov]]+Odchylky_v_nakladoch[[#Totals],[Nov]] -> 136,218.00 EUR | N36: =Odchylky_v_nakladoch_na_skolenie_a_cestovne[[#Totals],[Dec]]+Odchylky_v_nakladoch_na_marketing[[#Totals],[Dec]]+Odchylky_v_nakladoch_na_kancelariu[[#Totals],[Dec]]+Odchylky_v_nakladoch[[#Totals],[Dec]] -> 140,018.00 EUR | O36: =Odchylky_v_nakladoch_na_skolenie_a_cestovne[[#Totals],[ROK]]+Odchylky_v_nakladoch_na_marketing[[#Totals],[ROK]]+Odchylky_v_nakladoch_na_kancelariu[[#Totals],[ROK]]+Odchylky_v_nakladoch[[#Totals],[ROK]] -> 826,691.00 EUR
B37: CELKOVÉ skutočné výdavky | C37: =SUM($C$36:C36) -> 1,738.00 EUR | D37: =SUM($C$36:D36) -> 754.00 EUR | E37: =SUM($C$36:E36) -> 2,009.00 EUR | F37: =SUM($C$36:F36) -> 2,310.00 EUR | G37: =SUM($C$36:G36) -> 3,750.00 EUR | H37: =SUM($C$36:H36) -> 6.00 EUR | I37: =SUM($C$36:I36) -> 134,701.00 EUR | J37: =SUM($C$36:J36) -> 273,619.00 EUR | K37: =SUM($C$36:K36) -> 409,537.00 EUR | L37: =SUM($C$36:L36) -> 550,455.00 EUR | M37: =SUM($C$36:M36) -> 686,673.00 EUR | N37: =SUM($C$36:N36) -> 826,691.00 EUR

Sheet ANALÝZA VÝDAVKOV
A1: V tomto hárku sa automaticky aktualizujú ročné plánované a skutočné výdavky, odchýlky vo výdavkoch a percentuálna hodnota odchýlky v jednotlivých kategóriách výdavkov. V bunkách v tomto stĺpci sú užitočné pokyny na používanie tohto hárka. Začnite stlačením šípky nadol.
A2: Názov spoločnosti v bunke napravo sa aktualizuje automaticky. Do bunky F2 pridajte logo. | B2: ='PLÁNOVANÉ VÝDAVKY'!B2:D3 -> Názov spoločnosti | F2: V tejto bunke je zástupné logo.
A3: V bunke E3 je uvedený názov hárka. Ďalší pokyn je v bunke A5. | E3: =worksheet_title -> Podrobné odhady výdavkov
A5: V tabuľke Analyza začínajúcej v bunke napravo sa automaticky vypočítajú plánované výdavky, skutočné výdavky, odchýlky vo výdavkoch a percentuálna hodnota odchýlky. Ďalší pokyn je v bunke A12. | B5: Kategória výdavkov | C5: Plánované výdavky | D5: Skutočné výdavky | E5: Odchýlky vo výdavkoch | F5: Percentuálna hodnota odchýlky
B6: Náklady na zamestnancov | C6: =Planovane_naklady_na_zamestnancov[[#Totals],[ROK]] -> 1,355,090.00 EUR | D6: =Skutocne_naklady_na_zamestnancov[[#Totals],[ROK]] -> 659,130.00 EUR | E6: =C6-D6 -> 695,960.00 EUR | F6: =E6/C6 -> 51%
B7: ='PLÁNOVANÉ VÝDAVKY'!B10 -> Náklady na kanceláriu | C7: =Planovane_naklady_na_kancelariu[[#Totals],[ROK]] -> 138,740.00 EUR | D7: =Skutocne_naklady_na_kancelariu[[#Totals],[ROK]] -> 69,350.00 EUR | E7: =C7-D7 -> 69,390.00 EUR | F7: =E7/C7 -> 50%
B8: ='PLÁNOVANÉ VÝDAVKY'!B21 -> Náklady na marketing | C8: =Planovane_naklady_na_marketing[[#Totals],[ROK]] -> 67,800.00 EUR | D8: =Skutocne_naklady_na_marketing[[#Totals],[ROK]] -> 33,159.00 EUR | E8: =C8-D8 -> 34,641.00 EUR | F8: =E8/C8 -> 51%
B9: ='PLÁNOVANÉ VÝDAVKY'!B30 -> Školenie/cestovné | C9: =Planovane_naklady_na_skolenie_a_cestovne[[#Totals],[ROK]] -> 48,000.00 EUR | D9: =Skutocne_naklady_na_skolenie_a_cestovne[[#Totals],[ROK]] -> 21,300.00 EUR | E9: =C9-D9 -> 26,700.00 EUR | F9: =E9/C9 -> 56%
B10: ='PLÁNOVANÉ VÝDAVKY'!B35 -> SÚČTY | C10: ='PLÁNOVANÉ VÝDAVKY'!O36 -> 1,609,630.00 EUR | D10: ='SKUTOČNÉ VÝDAVKY'!O36 -> 782,939.00 EUR | E10: =C10-D10 -> 826,691.00 EUR | F10: =E10/C10 -> 51%
A12: V bunke napravo je koláčový graf plánované výdavky a v bunke D12 je koláčový graf skutočné výdavky. Ďalší pokyn je v bunke A14. | B12: V tejto bunke je koláčový graf zobrazujúci plánované výdavky v rôznych kategóriách. | D12: V tejto bunke je koláčový graf zobrazujúci skutočné vzniknuté výdavky v rôznych kategóriách.
A14: V bunke napravo je graf zobrazujúci plánované a skutočné mesačné výdavky a odchýlka v mesačných výdavkoch.
